Workbook

Sheet Total Qty (hidden)
A2: Year ( FY) | B2: DLF (MT) | C2: LAT (MT) | D2: TOTAL QTY (MT)
A3: 2018-2019 | B3: 31.5 | C3: 1368.3 | D3: =SUM(B3:C3) -> 1399.8
A4: 2019-2020 | B4: 547.1 | C4: 15743.6 | D4: =SUM(B4:C4) -> 16290.6
A5: 2020-2021 | B5: 780.1 | C5: 15005.4 | D5: 15785.5
A6: 2021-2022 | B6: 894.3 | C6: 19379.7 | D6: 20274.0
A7: 2022-2023 | B7: 1043.7 | C7: 19397.9 | D7: 20441.5
A8: 2023-2024 | B8: 584.5 | C8: 15066.0 | D8: 18022.8
B10: =SUM(B3:B8) -> 3881.1 | C10: =SUM(C3:C8) -> 85960.9 | D10: =SUM(D3:D8) -> 92214.3

Sheet Escrow Details
B3: NELLORE | E3: 2018-19 | F3: 2019-20 | G3: 2020-21 | H3: 2021-22 | I3: 2022-23 | K3: FY | L3: DLF Qty | M3: LAT Qty | N3: Total Qty | O3: Avg DL Rate | P3: Revenue | Q3: Escrow amount
C4: Qty | D4: DLF | E4: 27.22 | F4: 490.97 | G4: 780.10 | H4: 884.00 | I4: 1,042.93 | K4: 2018-19 | L4: 27.22 | M4: 1,368.34 | N4: =+L4+M4 -> 1,395.56 | O4: 2871 | P4: =+N4*O4 -> 4,006,638 | Q4: =+P4*5% -> 200,332
D5: LAT | E5: 1,368.34 | F5: 14,293.10 | G5: 12,692.68 | H5: 16,572.61 | I5: 17,745.98 | K5: 2019-20 | L5: 490.97 | M5: 14,293.10 | N5: =L5+M5 -> 14,784.07 | O5: 2825 | P5: =+N5*O5 -> 41,764,998 | Q5: =+P5*5% -> 2,088,250
D6: Total | E6: =SUM(E4:E5) -> 1,395.56 | F6: 14,784.07 | G6: 13,472.78 | H6: 17,456.61 | I6: 18,788.91 | K6: 2020-21 | L6: 780.10 | M6: 12,692.68 | N6: 13,472.78 | O6: 2868 | P6: 38,639,933 | Q6: 1,931,997
C7: Revenue ( Rs.In Laks ) | D7: DLF | E7: 0.81 | F7: 15.28 | G7: 23.98 | H7: 27.07 | I7: 32.36 | K7: 2021-22 | L7: 884.00 | M7: 16,572.61 | N7: 17,456.61 | O7: 3017 | P7: 52,666,577 | Q7: 2,633,329
D8: LAT | E8: 66.55 | F8: 833.53 | G8: 766.36 | H8: 1147.85 | I8: 1,277.46 | K8: 2022-23 | L8: 1,042.93 | M8: 17,745.98 | N8: 18,788.91 | O8: 3017 | P8: 56,686,141 | Q8: 2,834,307
D9: LAB / Others | L9: =SUM(L4:L8) -> 3,225.22 | M9: =SUM(M4:M8) -> 62,672.71 | N9: =SUM(N4:N8) -> 65,897.92 | P9: =SUM(P4:P8) -> 193,764,288 | Q9: =SUM(Q4:Q8) -> 9,688,214
D10: Total | E10: =SUM(E7:E9) -> 67.36 | F10: 848.81 | G10: 790.34 | H10: =SUM(H7:H9) -> 1,174.92 | I10: =SUM(I7:I9) -> 1,309.82
C11: Ave.Price ( Amt In Rs.) | D11: DLF | E11: =+E7/E4*100000 -> 2,976 | F11: 3,112 | G11: 3,074 | H11: 3,062 | I11: 3,103
B13: ESCROW 5% ( Rs. In Lac ) | E13: =+(((E4+E5)*E11)*5%)/100000 -> 2.08 | F13: =+(((F4+F5)*F11)*5%)/100000 -> 23.01 | G13: 20.71 | H13: =+(((H4+H5)*H11)*5%)/100000 -> 26.73 | I13: =+(((I4+I5)*I11)*5%)/100000 -> 29.15

Sheet BDMA Customers (hidden)
C2: BDMA Customers
B3: 1 | C3: APL HEALTHCARE LIMITED
B4: 2 | C4: Aurobindo Pharma Limited -X
B5: 3 | C5: COHANCE LIFESCIENCES LIMITED
B6: 4 | C6: Inchem Laboratories Private Limited
B7: 5 | C7: Integrin Life Sciences Pvt Ltd
B8: 6 | C8: Inventaa Industries Private Limited
B9: 7 | C9: Maithi Life Sciences Pvt Ltd.
B10: 8 | C10: Porus Laboratories Pvt Ltd
B11: 9 | C11: Rachem Pharma Limited
B12: 10 | C12: Siflon Drugs
B13: 11 | C13: Siflon Drugs Pvt Ltd.,

Sheet 2018-2019
A1: COASTAL WASTE MANAGEMENT PROJECT UNIT-II
A2: LABORATORY YEARLY DATA 2018-2019
A3: S.NO | B3: Date | C3: Manifest No | D3: Member Ship No | E3: Generator Name | F3: Location | G3: District | H3: Type of Waste | I3: TONS | J3: DM | K3: Disposal Price | L3: Disposal Rev | M3: Escrow | N3: REMARKS
A4: 1 | B4: 2019-01-21 | C4: 53 | D4: 386 | E4: Adani Wilmar Ltd | F4: Mutukuru | G4: SPSR Nellore | H4: ETP Sludge | I4: 26.66 | J4: LAT-30 | K4: 6127.2 | L4: =+K4*I4 -> 163,351.15 | M4: =+L4*5% -> 8,167.6
A5: 2 | B5: 2019-01-22 | C5: 42 | D5: 402 | E5: Adani Wilmar Ltd | F5: Mutukuru | G5: SPSR Nellore | H5: MEE Salts | I5: 6.260 | J5: LAT-59K | K5: 9037 | L5: =+K5*I5 -> 56,571.62 | M5: =+L5*5% -> 2,828.6
A6: 3 | B6: 2019-01-22 | C6: 43 | D6: 402 | E6: Adani Wilmar Ltd | F6: Mutukuru | G6: SPSR Nellore | H6: ETP Sludge | I6: 15.000 | J6: LAT-30 | K6: 7534 | L6: 113,010.00 | M6: 5,650.5
A7: 4 | B7: 2019-01-22 | C7: 54 | D7: 386 | E7: Adani Wilmar Ltd | F7: Mutukuru | G7: SPSR Nellore | H7: ETP Sludge | I7: 24.580 | J7: LAT-30 | K7: 6127.2 | L7: 150,606.58 | M7: 7,530.3
A8: 5 | B8: 2019-01-24 | C8: 57 | D8: 293 | E8: Andhra Medi Pharma India Pvt Ltd | F8: Bapulapadu | G8: Krishna | H8: ETP Sludge | I8: 1.010 | J8: LAT-146 | K8: 7609 | L8: 7,685.09 | M8: 384.3
A9: 6 | B9: 2019-01-24 | C9: 14 | D9: 410 | E9: AWM Consulting Ltd | F9: vedunkuppam | G9: Chitoor | H9: Biomedical Ash | I9: 22.03 | J9: DLF | K9: 3017 | L9: 66,464.51 | M9: 3,323.2
A10: 7 | B10: 2019-01-24 | C10: 66 | D10: 410 | E10: AWM Consulting Ltd | F10: vedunkuppam | G10: Chitoor | H10: Biomedical Ash | I10: 1.600 | J10: DLF | K10: 3017 | L10: 4,827.20 | M10: 241.4
A11: 8 | B11: 2019-01-29 | C11: 38 | D11: 451 | E11: Ball Beverage Packing (India) Pvt Ltd | F11: Tada | G11: Nellore | H11: ETP Sludge | I11: 7.720 | J11: LAT-95 | K11: 7534 | L11: 58,162.48 | M11: 2,908.1
A12: 9 | B12: 2019-01-29 | C12: 41 | D12: 295 | E12: Bhagiradha Chemicals & Industries Ltd | F12: Ongole | G12: Prakasam | H12: Inorganic Solid Waste | I12: 27.245 | J12: LAT-120 | K12: 3850 | L12: 104,893.25 | M12: 5,244.7
A13: 10 | B13: 2019-02-01 | C13: 77 | D13: 295 | E13: Bhagiradha Chemicals & Industries Ltd | F13: Ongole | G13: Prakasam | H13: Inorganic Solid Waste | I13: 29.875 | J13: LAT-120 | K13: 3850 | L13: 115,018.75 | M13: 5,750.9
A14: 11 | B14: 2019-02-02 | C14: 76 | D14: 295 | E14: Bhagiradha Chemicals & Industries Ltd | F14: Ongole | G14: Prakasam | H14: Inorganic Solid Waste | I14: 27.895 | J14: LAT-120 | K14: 3850 | L14: 107,395.75 | M14: 5,369.8
A15: 12 | B15: 2019-02-03 | C15: 79 | D15: 295 | E15: Bhagiradha Chemicals & Industries Ltd | F15: Ongole | G15: Prakasam | H15: Inorganic Solid Waste | I15: 30.950 | J15: LAT-120 | K15: 3850 | L15: 119,157.50 | M15: 5,957.9
A16: 13 | B16: 2019-02-03 | C16: 78 | D16: 295 | E16: Bhagiradha Chemicals & Industries Ltd | F16: Ongole | G16: Prakasam | H16: Inorganic Solid Waste | I16: 31.450 | J16: LAT-120 | K16: 3850 | L16: 121,082.50 | M16: 6,054.1
A17: 14 | B17: 2019-02-05 | C17: 80 | D17: 295 | E17: Bhagiradha Chemicals & Industries Ltd | F17: Ongole | G17: Prakasam | H17: Inorganic Solid Waste | I17: 30.370 | J17: LAT-120 | K17: 3850 | L17: 116,924.50 | M17: 5,846.2
A18: 15 | B18: 2019-02-06 | C18: 81 | D18: 295 | E18: Bhagiradha Chemicals & Industries Ltd | F18: Ongole | G18: Prakasam | H18: Inorganic Solid Waste | I18: 31.840 | J18: LAT-120 | K18: 3850 | L18: 122,584.00 | M18: 6,129.2
A19: 16 | B19: 2019-02-06 | C19: 83 | D19: 295 | E19: Bhagiradha Chemicals & Industries Ltd | F19: Ongole | G19: Prakasam | H19: Inorganic Solid Waste | I19: 30.300 | J19: LAT-120 | K19: 3850 | L19: 116,655.00 | M19: 5,832.8
A20: 17 | B20: 2019-02-08 | C20: 82 | D20: 295 | E20: Bhagiradha Chemicals & Industries Ltd | F20: Ongole | G20: Prakasam | H20: Inorganic Solid Waste | I20: 32.590 | J20: LAT-120 | K20: 3850 | L20: 125,471.50 | M20: 6,273.6
A21: 18 | B21: 2019-02-08 | C21: 85 | D21: 295 | E21: Bhagiradha Chemicals & Industries Ltd | F21: Ongole | G21: Prakasam | H21: Inorganic Solid Waste | I21: 32.180 | J21: LAT-120 | K21: 3850 | L21: 123,893.00 | M21: 6,194.7
A22: 19 | B22: 2019-02-08 | C22: 84 | D22: 295 | E22: Bhagiradha Chemicals & Industries Ltd | F22: Ongole | G22: Prakasam | H22: Inorganic Solid Waste | I22: 33.280 | J22: LAT-120 | K22: 3850 | L22: 128,128.00 | M22: 6,406.4
A23: 20 | B23: 2019-02-08 | C23: 86 | D23: 295 | E23: Bhagiradha Chemicals & Industries Ltd | F23: Ongole | G23: Prakasam | H23: Inorganic Solid Waste | I23: 29.270 | J23: LAT-120 | K23: 3850 | L23: 112,689.50 | M23: 5,634.5
A24: 21 | B24: 2019-02-11 | C24: 87 | D24: 295 | E24: Bhagiradha Chemicals & Industries Ltd | F24: Ongole | G24: Prakasam | H24: Inorganic Solid Waste | I24: 31.480 | J24: LAT-120 | K24: 3850 | L24: 121,198.00 | M24: 6,059.9
A25: 22 | B25: 2019-02-12 | C25: 89 | D25: 295 | E25: Bhagiradha Chemicals & Industries Ltd | F25: Ongole | G25: Prakasam | H25: Inorganic Solid Waste | I25: 32.260 | J25: LAT-120 | K25: 3850 | L25: 124,201.00 | M25: 6,210.1
A26: 23 | B26: 2019-02-12 | C26: 88 | D26: 295 | E26: Bhagiradha Chemicals & Industries Ltd | F26: Ongole | G26: Prakasam | H26: Inorganic Solid Waste | I26: 31.320 | J26: LAT-120 | K26: 3850 | L26: 120,582.00 | M26: 6,029.1
A27: 24 | B27: 2019-02-13 | C27: 90 | D27: 295 | E27: Bhagiradha Chemicals & Industries Ltd | F27: Ongole | G27: Prakasam | H27: Inorganic Solid Waste | I27: 33.030 | J27: LAT-120 | K27: 3850 | L27: 127,165.50 | M27: 6,358.3
A28: 25 | B28: 2019-02-13 | C28: 91 | D28: 295 | E28: Bhagiradha Chemicals & Industries Ltd | F28: Ongole | G28: Prakasam | H28: Inorganic Solid Waste | I28: 27.870 | J28: LAT-120 | K28: 3850 | L28: 107,299.50 | M28: 5,365.0
A29: 26 | B29: 2019-02-13 | C29: 92 | D29: 295 | E29: Bhagiradha Chemicals & Industries Ltd | F29: Ongole | G29: Prakasam | H29: Inorganic Solid Waste | I29: 31.400 | J29: LAT-120 | K29: 3850 | L29: 120,890.00 | M29: 6,044.5
A30: 27 | B30: 2019-02-14 | C30: 10 | D30: 313 | E30: Coastal Laboratories | F30: Tada | G30: Nellore | H30: Forced Evaporation Sludge | I30: 1.900 | J30: LAT-149 | K30: 5925 | L30: 11,257.50 | M30: 562.9
A31: 28 | B31: 2019-02-15 | C31: 51 | D31: 400 | E31: Emami Agrotech Ltd | F31: Mutukuru | G31: SPSR Nellore | H31: ETP Sludge | I31: 11.150 | J31: LAT-182 | K31: 5926 | L31: 66,074.90 | M31: 3,303.7
A32: 29 | B32: 2019-02-15 | C32: 52 | D32: 400 | E32: Emami Agrotech Ltd | F32: Mutukuru | G32: SPSR Nellore | H32: MEE Salts | I32: 14.000 | J32: LAT-59AU | K32: 5926 | L32: 82,964.00 | M32: 4,148.2
A33: 30 | B33: 2019-02-15 | C33: 59 | D33: 320 | E33: Gemini Edibles & Fats India Pvt Ltd | F33: Mutukuru | G33: SPSR Nellore | H33: ETP Lime Sludge | I33: 16.880 | J33: LAT-24 | K33: 7034 | L33: 118,733.92 | M33: 5,936.7
A34: 31 | B34: 2019-02-15 | C34: 15 | D34: 443 | E34: Gravita India Ltd | F34: Ananthapuram | G34: Chitoor | H34: Lead Slag | I34: 15.300 | J34: LAT35 | K34: 5520 | L34: 84,456.00 | M34: 4,222.8
A35: 32 | B35: 2019-02-16 | C35: 1 | D35: 322 | E35: Greentech Industries (India) Pvt Ltd | F35: Naidupeta | G35: SPSR Nellore | H35: ETP Sludge | I35: 1.510 | J35: LAT-115 | K35: 11403 | L35: 17,218.53 | M35: 860.9
A36: 33 | B36: 2019-02-16 | C36: 40 | D36: 479 | E36: Indian Design Export Pvt Ltd | F36: Hindupur | G36: Anantapur | H36: ETP Sludge | I36: 31.140 | J36: LAT-29 | K36: 5276 | L36: 164,294.64 | M36: 8,214.7
A37: 34 | B37: 2019-02-16 | C37: 11 | D37: 307 | E37: Indo National Ltd | F37: Tada | G37: SPSR Nellore | H37: Mix Waste | I37: 10.040 | J37: LAT-147 | K37: 8056 | L37: 80,882.24 | M37: 4,044.1
A38: 35 | B38: 2019-02-16 | C38: 12 | D38: 307 | E38: Indo National Ltd | F38: Tada | G38: SPSR Nellore | H38: ETP Sludge | I38: 0.360 | J38: LAT-148 | K38: 5499 | L38: 1,979.64 | M38: 99.0
A39: 36 | B39: 2019-02-16 | C39: 63 | D39: 219 | E39: Mangal Industries Ltd-I | F39: Tirupati | G39: Chitoor | H39: ETP Sludge | I39: 20.820 | J39: LAT-171 | K39: 7766 | L39: 161,688.12 | M39: 8,084.4
A40: 37 | B40: 2019-02-18 | C40: 61 | D40: 220 | E40: Mangal Industries Ltd-II | F40: Petamitta | G40: Chitoor | H40: ETP Sludge | I40: 26.995 | J40: LAT-183 | K40: 6869 | L40: 185,428.66 | M40: 9,271.4
A41: 38 | B41: 2019-02-18 | C41: 4 | D41: 224 | E41: Nile Limited | F41: Renigunta | G41: Chitoor | H41: Lead Slag | I41: 20.420 | J41: LAT-178 | K41: 3850 | L41: 78,617.00 | M41: 3,930.9
A42: 39 | B42: 2019-02-18 | C42: 3 | D42: 224 | E42: Nile Limited | F42: Renigunta | G42: Chitoor | H42: Lead Slag | I42: 20.320 | J42: LAT-178 | K42: 3850 | L42: 78,232.00 | M42: 3,911.6
A43: 40 | B43: 2019-02-19 | C43: 2 | D43: 224 | E43: Nile Limited | F43: Renigunta | G43: Chitoor | H43: Lead Slag | I43: 20.830 | J43: LAT-178 | K43: 5200 | L43: 108,316.00 | M43: 5,415.8
A44: 41 | B44: 2019-02-19 | C44: 5 | D44: 224 | E44: Nile Limited | F44: Renigunta | G44: Chitoor | H44: Lead Slag | I44: 20.600 | J44: LAT-178 | K44: 5200 | L44: 107,120.00 | M44: 5,356.0
A45: 42 | B45: 2019-02-19 | C45: 7 | D45: 224 | E45: Nile Limited | F45: Renigunta | G45: Chitoor | H45: Lead Slag | I45: 21.050 | J45: LAT-178 | K45: 3850 | L45: 81,042.50 | M45: 4,052.1
A46: 43 | B46: 2019-02-20 | C46: 6 | D46: 224 | E46: Nile Limited | F46: Renigunta | G46: Chitoor | H46: Lead Slag | I46: 21.110 | J46: LAT-178 | K46: 5200 | L46: 109,772.00 | M46: 5,488.6
A47: 44 | B47: 2019-02-21 | C47: 251 | D47: 224 | E47: Nile Limited | F47: Renigunta | G47: Chitoor | H47: Lead Slag | I47: 21.840 | J47: LAT-178 | K47: 5200 | L47: 113,568.00 | M47: 5,678.4
A48: 45 | B48: 2019-02-22 | C48: 252 | D48: 224 | E48: Nile Limited | F48: Renigunta | G48: Chitoor | H48: Lead Slag | I48: 22.980 | J48: LAT-178 | K48: 5200 | L48: 119,496.00 | M48: 5,974.8
A49: 46 | B49: 2019-02-22 | C49: 253 | D49: 224 | E49: Nile Limited | F49: Renigunta | G49: Chitoor | H49: Lead Slag | I49: 21.770 | J49: LAT-178 | K49: 5200 | L49: 113,204.00 | M49: 5,660.2
A50: 47 | B50: 2019-02-22 | C50: 254 | D50: 224 | E50: Nile Limited | F50: Renigunta | G50: Chitoor | H50: Lead Slag | I50: 21.390 | J50: LAT-178 | K50: 5200 | L50: 111,228.00 | M50: 5,561.4
A51: 48 | B51: 2019-02-22 | C51: 256 | D51: 224 | E51: Nile Limited | F51: Renigunta | G51: Chitoor | H51: Lead Slag | I51: 20.980 | J51: LAT-178 | K51: 5200 | L51: 109,096.00 | M51: 5,454.8
A52: 49 | B52: 2019-02-22 | C52: 255 | D52: 224 | E52: Nile Limited | F52: Renigunta | G52: Chitoor | H52: Lead Slag | I52: 20.900 | J52: LAT-178 | K52: 5200 | L52: 108,680.00 | M52: 5,434.0
A53: 50 | B53: 2019-02-23 | C53: 257 | D53: 224 | E53: Nile Limited | F53: Renigunta | G53: Chitoor | H53: Lead Slag | I53: 22.410 | J53: LAT-178 | K53: 5200 | L53: 116,532.00 | M53: 5,826.6
A54: 51 | B54: 2019-02-23 | C54: 26 | D54: 196 | E54: Pondy Oxides & Chemicals Ltd | F54: Renigunta | G54: Chitoor | H54: Smelter Spent Carbon & Silica | I54: 25.060 | J54: LAT-161 | K54: 7020 | L54: 175,921.20 | M54: 8,796.1
A55: 52 | B55: 2019-02-23 | C55: 27 | D55: 196 | E55: Pondy Oxides & Chemicals Ltd | F55: Renigunta | G55: Chitoor | H55: Smelter Spent Carbon & Silica | I55: 25.180 | J55: LAT-161 | K55: 7020 | L55: 176,763.60 | M55: 8,838.2
A56: 53 | B56: 2019-02-23 | C56: 28 | D56: 196 | E56: Pondy Oxides & Chemicals Ltd | F56: Renigunta | G56: Chitoor | H56: Smelter Spent Carbon & Silica | I56: 25.070 | J56: LAT-161 | K56: 7020 | L56: 175,991.40 | M56: 8,799.6
A57: 54 | B57: 2019-02-23 | C57: 30 | D57: 196 | E57: Pondy Oxides & Chemicals Ltd | F57: Renigunta | G57: Chitoor | H57: Smelter Spent Carbon & Silica | I57: 25.120 | J57: LAT-161 | K57: 3850 | L57: 96,712.00 | M57: 4,835.6
A58: 55 | B58: 2019-02-23 | C58: 29 | D58: 196 | E58: Pondy Oxides & Chemicals Ltd | F58: Renigunta | G58: Chitoor | H58: Smelter Spent Carbon & Silica | I58: 25.120 | J58: LAT-161 | K58: 7020 | L58: 176,342.40 | M58: 8,817.1
A59: 56 | B59: 2019-02-25 | C59: 31 | D59: 196 | E59: Pondy Oxides & Chemicals Ltd | F59: Renigunta | G59: Chitoor | H59: Smelter Spent Carbon & Silica | I59: 25.110 | J59: LAT-161 | K59: 7020 | L59: 176,272.20 | M59: 8,813.6
A60: 57 | B60: 2019-02-25 | C60: 32 | D60: 196 | E60: Pondy Oxides & Chemicals Ltd | F60: Renigunta | G60: Chitoor | H60: Smelter Spent Carbon & Silica | I60: 25.180 | J60: LAT-161 | K60: 7020 | L60: 176,763.60 | M60: 8,838.2
A61: 58 | B61: 2019-02-25 | C61: 67 | D61: 352 | E61: Powertrek Industries | F61: Autonagar | G61: Guntur | H61: Slag | I61: 4.030 | J61: LAT-163 | K61: 4945 | L61: 19,928.35 | M61: 996.4
A62: 59 | B62: 2019-02-25 | C62: 13 | D62: 387 | E62: RA Chem Pharma Ltd | F62: Jaggayyapeta | G62: Krishna | H62: Insulation Wool | I62: 4.275 | J62: DLF | K62: 12000 | L62: 51,300.00 | M62: 0 | N62: BDMA Customer, Escrow Not Applicable
A63: 60 | B63: 2019-02-25 | C63: 37 | D63: 502 | E63: Safenviron | F63: Mangalagiri | G63: Guntur | H63: Incineration Ash | I63: 3.590 | J63: DLF | K63: 2581 | L63: 9,265.79 | M63: 463.3
A64: 61 | B64: 2019-02-25 | C64: 64 | D64: 314 | E64: Venkatanarayana Active Ingredients Pvt Ltd | F64: Vinjamur | G64: SPSR Nellore | H64: Inorganic Waste | I64: 21.725 | J64: LAT-59BP | K64: 5520 | L64: 119,922.00 | M64: 5,996.1
A65: 62 | B65: 2019-02-26 | C65: 18 | D65: 222 | E65: White House | F65: Nagari | G65: Chitoor | H65: Evaporation SALT | I65: 25.585 | J65: LAT-58 | K65: 3317 | L65: 84,865.45 | M65: 4,243.3
A66: 63 | B66: 2019-02-26 | C66: 19 | D66: 222 | E66: White House | F66: Nagari | G66: Chitoor | H66: Evaporation SALT | I66: 26.210 | J66: LAT-58 | K66: 3317 | L66: 86,938.57 | M66: 4,346.9
A67: 64 | B67: 2019-02-27 | C67: 20 | D67: 222 | E67: White House | F67: Nagari | G67: Chitoor | H67: Evaporation SALT | I67: 26.450 | J67: LAT-58 | K67: 3317 | L67: 87,734.65 | M67: 4,386.7
A68: 65 | B68: 2019-02-27 | C68: 21 | D68: 222 | E68: White House | F68: Nagari | G68: Chitoor | H68: Evaporation SALT | I68: 25.965 | J68: LAT-58 | K68: 3317 | L68: 86,125.91 | M68: 4,306.3
A69: 66
A70: 67
A71: 68 | I71: =SUM(I4:I68) -> 1399.830 | L71: =SUM(L4:L68) -> 6,786,636.63 | M71: =SUM(M4:M68) -> 336,766.8

Sheet 2019-2020
A1: COASTAL WASTE MAGEMENT PROJECT UNIT-II,NELLORE
A2: LABORATORY YEARLY DATA 2018-2019
A3: S.NO | B3: Date | C3: Manifest No | D3: Member Ship No | E3: Generator Name | F3: Location | G3: District | H3: Type of Waste | I3: TONS | J3: DM | K3: Disposal Price | L3: Disposal Rev | M3: Escrow | N3: REMARKS
A4: 526 | B4: 2019-11-16 | C4: 675 | D4: 550 | E4: Mangal Industries Ltd-II(Fasters Division) | F4: Tenepalli | G4: Chittoor | H4: ETP Sludge | I4: 16.395 | J4: 30 | K4: 7,904.00 | L4: =+K4*I4 -> 129,586.08 | M4: =+L4*5% -> 6,479.30
A5: 630 | B5: 2019-12-19 | C5: 827 | E5: Hyundai Transys | F5: Penukonda | G5: Anantapur | H5: FE Powder | I5: 2.41 | J5: DLF | K5: 3,017.00 | L5: 7,270.97 | M5: =+L5*5% -> 363.55
A6: 492 | B6: 2019-10-31 | C6: 776 | D6: 446 | E6: Aurobindo Pharma Ltd Unit-X | F6: Naidupeta | G6: Nellore | H6: Insulation Wool | I6: 3.09 | J6: DLF | K6: 8,000.00 | L6: 24,720.00 | N6: BDMA Customer
A7: 499 | B7: 2019-11-01 | C7: 777 | D7: 446 | E7: Aurobindo Pharma Ltd Unit-X | F7: Naidupeta | G7: Nellore | H7: Insulation Wool | I7: 3.85 | J7: DLF | K7: 8,000.00 | L7: 30,800.00 | N7: BDMA Customer
A8: 501 | B8: 2019-11-02 | C8: 779 | D8: 446 | E8: Aurobindo Pharma Ltd Unit-X | F8: Naidupeta | G8: Nellore | H8: Insulation Wool | I8: 2.58 | J8: DLF | K8: 8,000.00 | L8: 20,640.00 | N8: BDMA Customer
A9: 785 | B9: 17.02.20 | C9: 780 | D9: 446 | E9: Aurobindo Pharma Ltd Unit-X | F9: Naidupeta | G9: Nellore | H9: Insulation Wool | I9: 2.650 | J9: DLF | K9: 8,000.00 | L9: 21,200.00 | N9: BDMA Customer
A10: 3 | B10: 2019-04-25 | C10: 151 | D10: 410 | E10: AWM Consulting Ltd | F10: vedunkuppam | G10: Chittoor | H10: Biomedical Ash | I10: 5.330 | J10: DLF | K10: 3,017.00 | L10: 16,080.61 | M10: =+L10*5% -> 804.03
A11: 14 | B11: 2019-04-27 | C11: 157 | D11: 410 | E11: AWM Consulting Ltd | F11: vedunkuppam | G11: Chittoor | H11: Biomedical Ash | I11: 4.430 | J11: DLF | K11: 3,017.00 | L11: 13,365.31 | M11: 668.27
A12: 179 | B12: 2019-06-29 | C12: 322 | D12: 410 | E12: AWM Consulting Ltd | F12: vedunkuppam | G12: Chittoor | H12: Biomedical Ash | I12: 2.640 | J12: DLF | K12: 3,017.00 | L12: 7,964.88 | M12: 398.24
A13: 298 | B13: 2019-08-10 | C13: 323 | D13: 410 | E13: AWM Consulting Ltd | F13: vedunkuppam | G13: Chittoor | H13: Biomedical Ash | I13: 3.515 | J13: DLF | K13: 3,017.00 | L13: 10,604.76 | M13: 530.24
A14: 313 | B14: 2019-08-17 | C14: 324 | D14: 410 | E14: AWM Consulting Ltd | F14: vedunkuppam | G14: Chittoor | H14: Biomedical Ash | I14: 4.235 | J14: DLF | K14: 3,017.00 | L14: 12,777.00 | M14: 638.85
A15: 318 | B15: 2019-08-19 | C15: 325 | D15: 410 | E15: AWM Consulting Ltd | F15: vedunkuppam | G15: Chittoor | H15: Biomedical Ash | I15: 3.705 | J15: DLF | K15: 3,017.00 | L15: 11,177.99 | M15: 558.90
A16: 338 | B16: 2019-08-26 | C16: 551 | D16: 410 | E16: AWM Consulting Ltd | F16: vedunkuppam | G16: Chittoor | H16: Biomedical Ash | I16: 3.665 | J16: DLF | K16: 3,017.00 | L16: 11,057.31 | M16: 552.87
A17: 404 | B17: 16.09.19 | C17: 552 | D17: 410 | E17: AWM Consulting Ltd | F17: vedunkuppam | G17: Chittoor | H17: Biomedical Ash | I17: 4.480 | J17: DLF | K17: 3,017.00 | L17: 13,516.16 | M17: 675.81
A18: 450 | B18: 2019-10-14 | C18: 701 | D18: 410 | E18: AWM Consulting Ltd | F18: vedunkuppam | G18: Chittoor | H18: Biomedical Ash | I18: 3.170 | J18: DLF | K18: 3,017.00 | L18: 9,563.89 | M18: 478.19
A19: 460 | B19: 2019-10-19 | C19: 702 | D19: 410 | E19: AWM Consulting Ltd | F19: vedunkuppam | G19: Chittoor | H19: Biomedical Ash | I19: 3.170 | J19: DLF | K19: 3,017.00 | L19: 9,563.89 | M19: 478.19
A20: 513 | B20: 2019-11-08 | C20: 703 | D20: 410 | E20: AWM Consulting Ltd | F20: vedunkuppam | G20: Chittoor | H20: Biomedical Ash | I20: 4.23 | J20: DLF | K20: 3,017.00 | L20: 12,761.91 | M20: 638.10
A21: 618 | B21: 2019-12-16 | C21: 704 | D21: 410 | E21: AWM Consulting Ltd | F21: vedunkuppam | G21: Chittoor | H21: Biomedical Ash | I21: 3.06 | J21: DLF | K21: 3,017.00 | L21: 9,232.02 | M21: 461.60
A22: 684 | B22: 2020-01-06 | C22: 963 | D22: 410 | E22: AWM Consulting Ltd | F22: vedunkuppam | G22: Chittoor | H22: Biomedical Ash | I22: 3.550 | J22: DLF | K22: 3,017.00 | L22: 10,710.35 | M22: 535.52
A23: 719 | B23: 2020-01-25 | C23: 964 | D23: 410 | E23: AWM Consulting Ltd | F23: vedunkuppam | G23: Chittoor | H23: Biomedical Ash | I23: 3.805 | J23: DLF | K23: 3,017.00 | L23: 11,479.69 | M23: 573.98
A24: 735 | B24: 2020-01-29 | C24: 965 | D24: 410 | E24: AWM Consulting Ltd | F24: vedunkuppam | G24: Chittoor | H24: Biomedical Ash | I24: 3.650 | J24: DLF | K24: 3,017.00 | L24: 11,012.05 | M24: 550.60
A25: 761 | B25: 2020-02-07 | C25: 966 | D25: 410 | E25: AWM Consulting Ltd | F25: vedunkuppam | G25: Chittoor | H25: Biomedical Ash | I25: 4.140 | J25: DLF | K25: 3,017.00 | L25: 12,490.38 | M25: 624.52
A26: 805 | B26: 2020-02-23 | C26: 1176 | D26: 410 | E26: AWM Consulting Ltd | F26: vedunkuppam | G26: Chittoor | H26: Biomedical Ash | I26: 3.895 | J26: DLF | K26: 3,017.00 | L26: 11,751.22 | M26: 587.56
A27: 845 | B27: 13.03.20 | C27: 1177 | D27: 410 | E27: AWM Consulting Ltd | F27: vedunkuppam | G27: Chittoor | H27: Biomedical Ash | I27: 3.000 | J27: DLF | K27: 3,017.00 | L27: 9,051.00 | M27: 452.55
A28: 34 | B28: 2019-05-07 | C28: 165 | D28: 250 | E28: Bergen pipe supports pvt | F28: Sri City | G28: Chittoor | H28: Fiber luool | I28: 3.5 | J28: DLF | K28: 12,000.00 | L28: 42,000.00 | M28: 2,100.00
A29: 237 | B29: 2019-07-23 | C29: 377 | D29: 290 | E29: Coromandel Paints Pvt Ltd Unit-II | F29: Nuzvid | G29: Krishna | H29: Water Based Waste Paint(Powder) | I29: 10.050 | J29: DLF | K29: 3,017.00 | L29: 30,320.85 | M29: 1,516.04
A30: 275 | B30: 2019-08-02 | C30: 378 | D30: 290 | E30: Coromandel Paints Pvt Ltd Unit-II | F30: Nuzvid | G30: Krishna | H30: Water Based Waste Paint(Powder Folw) | I30: 10.245 | J30: DLF | K30: 3,017.00 | L30: 30,909.17 | M30: 1,545.46
A31: 311 | B31: 2019-08-17 | C31: 393 | D31: 290 | E31: Coromandel Paints Pvt Ltd Unit-II | F31: Nuzvid | G31: Krishna | H31: Water Based Waste Paint-1 (Powder Form) | I31: 10.140 | J31: DLF | K31: 3,017.00 | L31: 30,592.38 | M31: 1,529.62
A32: 412 | B32: 19.09.19 | C32: 400 | D32: 290 | E32: Coromandel Paints Pvt Ltd Unit-II | F32: Nuzvid | G32: Krishna | H32: Repacking Wastes,NCIP,Residues,Sludges | I32: 10.190 | J32: DLF | K32: 3,017.00 | L32: 30,743.23 | M32: 1,537.16
A33: 858 | B33: 2020-03-21 | C33: 1514 | D33: 281 | E33: Enersys India Batteries P LTD | F33: Narasimharaopalem | G33: Krishna | H33: FRP Linning | I33: 1.075 | J33: DLF | K33: 3,017.00 | L33: 3,243.28 | M33: 162.16
A34: 859 | B34: 2020-03-21 | C34: 1514 | D34: 281 | E34: Enersys India Batteries P LTD | F34: Narasimharaopalem | G34: Krishna | H34: Insulation | I34: 0.285 | J34: DLF | K34: 12,000.00 | L34: 3,420.00 | M34: 171.00
A35: 153 | B35: 2019-06-21 | C35: 176 | D35: 359 | E35: Jocil Ltd | F35: Dokiparru | G35: Guntur | H35: ETP Sludge | I35: 25.420 | J35: DLF | K35: 3,017.00 | L35: 76,692.14 | M35: 3,834.61
A36: 195 | B36: 2019-07-05 | C36: 177 | D36: 359 | E36: Jocil Ltd | F36: Dokiparru | G36: Guntur | H36: ETP Sludge | I36: 24.400 | J36: DLF | K36: 3,017.00 | L36: 73,614.80 | M36: 3,680.74
A37: 458 | B37: 2019-10-18 | C37: 320 | D37: 359 | E37: Jocil Ltd | F37: Dokiparru | G37: Guntur | H37: ETP Sludge | I37: 26.340 | J37: DLF | K37: 3,017.00 | L37: 79,467.78 | M37: 3,973.39
A38: 475 | B38: 2019-10-25 | C38: 321 | D38: 359 | E38: Jocil Ltd | F38: Dokiparru | G38: Guntur | H38: ETP Sludge | I38: 30.96 | J38: DLF | K38: 3,017.00 | L38: 93,406.32 | M38: 4,670.32
A39: 788 | B39: 2020-02-18 | C39: 729 | D39: 359 | E39: Jocil Ltd | F39: Dokiparru | G39: Guntur | H39: ETP Sludge | I39: 30.345 | J39: DLF | K39: 3,017.00 | L39: 91,550.87 | M39: 4,577.54
A40: 781 | B40: 2020-02-14 | C40: 796 | D40: 359 | E40: Jocil Ltd | F40: Dokiparru | G40: Guntur | H40: ETP Sludge | I40: 30.235 | J40: DLF | K40: 3,017.00 | L40: 91,219.00 | M40: 4,560.95
A41: 605 | B41: 2019-12-12 | C41: 924 | D41: 359 | E41: Jocil Ltd | F41: Dokiparru | G41: Guntur | H41: ETP Sludge | I41: 25.44 | J41: DLF | K41: 3,017.00 | L41: 76,752.48 | M41: 3,837.62
A42: 615 | B42: 2019-12-14 | C42: 925 | D42: 359 | E42: Jocil Ltd | F42: Dokiparru | G42: Guntur | H42: ETP Sludge | I42: 25.6 | J42: DLF | K42: 3,017.00 | L42: 77,235.20 | M42: =+L42*5% -> 3,861.76
A43: 824 | B43: 2020-02-29 | C43: 951 | D43: 359 | E43: Jocil Ltd | F43: Dokiparru | G43: Guntur | H43: ETP Sludge | I43: 30.430 | J43: DLF | K43: 3,017.00 | L43: 91,807.31 | M43: 4,590.37
A44: 614 | B44: 2019-12-14 | C44: 530 | D44: 388 | E44: Kusalava International Ltd | F44: Nuzvid | G44: Krishna | H44: Used Refractory Sheets | I44: 1 | J44: DLF | K44: 6,070.50 | L44: 6,070.50 | M44: 303.53
A45: 398 | B45: 15.09.19 | C45: 678 | D45: 388 | E45: Kusalava International Ltd | F45: Nuzvid | G45: Krishna | H45: Used Refractory Sheets | I45: 1 | J45: DLF | K45: 15,000.00 | L45: 15,000.00 | M45: 750.00
A46: 853 | B46: 2020-03-17 | C46: 1208 | D46: 388 | E46: Kusalava International Ltd | F46: Nuzvid | G46: Krishna | H46: Used Refractory Sheets | I46: 2.000 | J46: DLF | K46: 15,000.00 | L46: 30,000.00 | M46: 1,500.00
A47: 795 | B47: 2020-02-20 | C47: 1226 | D47: 449 | E47: S.S Bio Care | F47: Ozili | G47: Nellore | H47: Solid Ash | I47: 16.010 | J47: DLF | K47: 3,017.00 | L47: 48,302.17 | M47: 2,415.11
A48: 44 | B48: 2019-05-10 | C48: 142 | D48: 502 | E48: Safenviron | F48: Mangalagiri | G48: Guntur | H48: Incineration Ash | I48: 3.810 | J48: DLF | K48: 2,581.00 | L48: 9,833.61 | M48: 491.68
A49: 86 | B49: 2019-05-28 | C49: 144 | D49: 502 | E49: Safenviron | F49: Mangalagiri | G49: Guntur | H49: Incineration Ash | I49: 3.000 | J49: DLF | K49: 2,581.00 | L49: 7,743.00 | M49: 387.15
A50: 97 | B50: 2019-05-30 | C50: 145 | D50: 502 | E50: Safenviron | F50: Mangalagiri | G50: Guntur | H50: Incineration Ash | I50: 3.095 | J50: DLF | K50: 2,581.00 | L50: 7,988.20 | M50: 399.41
A51: 192 | B51: 2019-07-05 | C51: 202 | D51: 502 | E51: Safenviron | F51: Mangalagiri | G51: Guntur | H51: Incineration Ash | I51: 3.280 | J51: DLF | K51: 2,581.00 | L51: 8,465.68 | M51: 423.28
A52: 289 | B52: 2019-08-07 | C52: 387 | D52: 502 | E52: Safenviron | F52: Mangalagiri | G52: Guntur | H52: Incineration Ash | I52: 3.670 | J52: DLF | K52: 2,581.00 | L52: 9,472.27 | M52: 473.61
A53: 309 | B53: 2019-08-16 | C53: 389 | D53: 502 | E53: Safenviron | F53: Mangalagiri | G53: Guntur | H53: Incineration Ash | I53: 3.505 | J53: DLF | K53: 2,581.00 | L53: 9,046.41 | M53: 452.32
A54: 483 | B54: 2019-10-29 | C54: 718 | D54: 502 | E54: Safenviron | F54: Mangalagiri | G54: Guntur | H54: Incineration Ash | I54: 3.73 | J54: DLF | K54: 2,581.00 | L54: 9,627.13 | M54: 481.36
A55: 502 | B55: 2019-11-02 | C55: 720 | D55: 502 | E55: Safenviron | F55: Mangalagiri | G55: Guntur | H55: Incineration Ash | I55: 3.76 | J55: DLF | K55: 2,581.00 | L55: 9,704.56 | M55: 485.23
A56: 535 | B56: 2019-11-21 | C56: 722 | D56: 502 | E56: Safenviron | F56: Mangalagiri | G56: Guntur | H56: Incineration Ash | I56: 3.67 | J56: DLF | K56: 2,581.00 | L56: 9,472.27 | M56: 473.61
A57: 559 | B57: 2019-11-28 | C57: 724 | D57: 502 | E57: Safenviron | F57: Mangalagiri | G57: Guntur | H57: Incineration Ash | I57: 3.665 | J57: DLF | K57: 2,581.00 | L57: 9,459.37 | M57: 472.97
A58: 604 | B58: 2019-12-12 | C58: 809 | D58: 502 | E58: Safenviron | F58: Mangalagiri | G58: Guntur | H58: Incineration Ash | I58: 3.85 | J58: DLF | K58: 2,581.00 | L58: 9,936.85 | M58: 496.84
A59: 656 | B59: 2019-12-28 | C59: 810 | D59: 502 | E59: Safenviron | F59: Mangalagiri | G59: Guntur | H59: Incineration Ash | I59: 3.610 | J59: DLF | K59: 2,581.00 | L59: 9,317.41 | M59: 465.87
A60: 76 | B60: 2019-05-24 | C60: 143 | D60: 503 | E60: Safenviron unit II | F60: Jaggaiahpeta | G60: Krishna | H60: Incineration Ash | I60: 4.04 | J60: DLF | K60: 2,581.00 | L60: 10,427.24 | M60: 521.36
A61: 129 | B61: 2019-06-11 | C61: 201 | D61: 503 | E61: Safenviron unit II | F61: Jaggaiahpeta | G61: Krishna | H61: Incineration Ash | I61: 3.310 | J61: DLF | K61: 2,581.00 | L61: 8,543.11 | M61: 427.16
A62: 202 | B62: 2019-07-10 | C62: 203 | D62: 503 | E62: Safenviron unit II | F62: Jaggaiahpeta | G62: Krishna | H62: Incineration Ash | I62: 3.070 | J62: DLF | K62: 2,581.00 | L62: 7,923.67 | M62: 396.18
A63: 222 | B63: 2019-07-17 | C63: 204 | D63: 503 | E63: Safenviron unit II | F63: Jaggaiahpeta | G63: Krishna | H63: Incineration Ash | I63: 3.370 | J63: DLF | K63: 2,581.00 | L63: 8,697.97 | M63: 434.90
A64: 498 | B64: 2019-10-31 | C64: 719 | D64: 503 | E64: Safenviron unit II | F64: Jaggaiahpeta | G64: Krishna | H64: Incineration Ash | I64: 4 | J64: DLF | K64: 2,581.00 | L64: 10,324.00 | M64: 516.20
A65: 512 | B65: 2019-11-07 | C65: 721 | D65: 503 | E65: Safenviron unit II | F65: Jaggaiahpeta | G65: Krishna | H65: Incineration Ash | I65: 3.93 | J65: DLF | K65: 2,581.00 | L65: 10,143.33 | M65: 507.17
A66: 552 | B66: 2019-11-26 | C66: 723 | D66: 503 | E66: Safenviron unit II | F66: Jaggaiahpeta | G66: Krishna | H66: Incineration Ash | I66: 4.31 | J66: DLF | K66: 2,581.00 | L66: 11,124.11 | M66: 556.21
A67: 683 | B67: 2020-01-05 | C67: 811 | D67: 503 | E67: Safenviron unit II | F67: Jaggaiahpeta | G67: Krishna | H67: Incineration Ash | I67: 4.010 | J67: DLF | K67: 2,581.00 | L67: 10,349.81 | M67: 517.49
A68: 740 | B68: 2020-01-30 | C68: 812 | D68: 503 | E68: Safenviron unit II | F68: Jaggaiahpeta | G68: Krishna | H68: Incineration Ash | I68: 3.550 | J68: DLF | K68: 2,581.00 | L68: =+K68*I68 -> 9,162.55 | M68: 458.13
A69: 809 | B69: 2020-02-26 | C69: 814 | D69: 503 | E69: Safenviron unit II | F69: Jaggaiahpeta | G69: Krishna | H69: Incineration Ash | I69: 3.780 | J69: DLF | K69: 2,581.00 | L69: 9,756.18 | M69: 487.81
A70: 752 | B70: 2020-02-01 | C70: 813 | D70: 503 | E70: Safenviron-I | F70: Mangalagiri | G70: Guntur | H70: Incineration Ash | I70: 3.505 | J70: DLF | K70: 2,581.00 | L70: 9,046.41 | M70: 452.32
A71: 817 | B71: 2020-02-28 | C71: 815 | D71: 502 | E71: Safenviron-I | F71: Mangalagiri | G71: Guntur | H71: Incineration Ash | I71: 3.890 | J71: DLF | K71: 2,581.00 | L71: 10,040.09 | M71: 502.00
A72: 297 | B72: 2019-08-10 | C72: 388 | D72: 503 | E72: safenviron-unit-ll | F72: Jaggaiahpeta | G72: krishna | H72: Inocineration ash | I72: 3.235 | J72: DLF | K72: 2,581.00 | L72: 8,349.54 | M72: 417.48
A73: 322 | B73: 2019-08-21 | C73: 390 | D73: 503 | E73: safenviron-unit-ll | F73: Jaggaiahpeta | G73: krishna | H73: Inocineration ash | I73: 3.080 | J73: DLF | K73: 2,581.00 | L73: 7,949.48 | M73: 397.47
A74: 342 | B74: 2019-08-27 | C74: 532 | D74: 503 | E74: safenviron-unit-ll | F74: Jaggaiahpeta | G74: krishna | H74: Inocineration ash | I74: 3.890 | J74: DLF | K74: 2,581.00 | L74: 10,040.09 | M74: =+L74*5% -> 502.00
A75: 409 | B75: 18.09.19 | C75: 533 | D75: 503 | E75: safenviron-unit-ll | F75: Jaggaiahpeta | G75: krishna | H75: Inocineration ash | I75: 3.340 | J75: DLF | K75: 2,851.00 | L75: 9,522.34 | M75: 476.12
A76: 422 | B76: 24.09.19 | C76: 534 | D76: 503 | E76: safenviron-unit-ll | F76: Jaggaiahpeta | G76: krishna | H76: Inocineration ash | I76: 3.310 | J76: DLF | K76: 2,851.00 | L76: 9,436.81 | M76: 471.84
A77: 47 | B77: 2019-05-11 | C77: 178 | E77: Takenakn India PVT LTD | F77: Puttur | G77: Chittoor | H77: Glass woal | I77: 1.96 | J77: DLF | K77: 12,000.00 | L77: 23,520.00 | M77: 1,176.00
A78: 500 | B78: 2019-11-02 | C78: 778 | D78: 446 | E78: Aurobindo Pharma Ltd Unit-X | F78: Naidupeta | G78: Nellore | H78: ETP Sludge | I78: 2.93 | J78: LAT-106 | K78: 6,475.00 | L78: 18,971.75 | N78: BDMA Customer
A79: 786 | B79: 17.02.20 | C79: 781 | D79: 446 | E79: Aurobindo Pharma Ltd Unit-X | F79: Naidupeta | G79: Nellore | H79: ETP Sludge | I79: 8.420 | J79: LAT-106 | K79: 6,475.00 | L79: 54,519.50 | N79: BDMA Customer
A80: 401 | B80: 15.09.19 | C80: 654 | D80: 220 | E80: Mangal Industries Ltd-II | F80: Petamitta | G80: Chittoor | H80: ETP Sludge-B | I80: 4.55 | J80: LAT-109 | K80: 7,810.00 | L80: 35,535.50 | M80: =+L80*5% -> 1,776.78
A81: 862 | B81: 2020-03-24 | C81: 1527 | D81: 344 | E81: Saptagir Camphor Ltd | F81: Kottapalli | G81: Anantapur | H81: ETP Sludge | I81: 1.890 | J81: LAT-109 | K81: 10,977.00 | L81: 20,746.53 | M81: 1,037.33
A82: 168 | B82: 2019-06-26 | C82: 8 | D82: 322 | E82: Greentech Industries (India) Pvt Ltd | F82: Naidupeta | G82: Nellore | H82: ETP Sludge | I82: 1.950 | J82: LAT-115 | K82: 12,103.00 | L82: 23,600.85 | M82: 1,180.04
A83: 370 | B83: 2019-09-05 | C83: 9 | D83: 322 | E83: Greentech Industries (India) Pvt Ltd | F83: Naidupeta | G83: Nellore | H83: ETP Sludge | I83: 1.950 | J83: LAT-115 | K83: 12,103.00 | L83: 23,600.85 | M83: 1,180.04
A84: 638 | B84: 2019-12-21 | C84: 962 | D84: 322 | E84: Greentech Industries (India) Pvt Ltd | F84: Naidupeta | G84: Nellore | H84: ETP Sludge | I84: 4.17 | J84: LAT-115 | K84: 12,103.00 | L84: 50,469.51 | M84: 2,523.48
A85: 112 | B85: 2019-06-04 | C85: 171 | D85: 354 | E85: Pearl Beverages Ltd | F85: Nadimpalem | G85: Guntur | H85: ETP Sludge | I85: 15.210 | J85: LAT-115 | K85: 11,403.00 | L85: 173,439.63 | M85: 8,671.98
A86: 110 | B86: 2019-06-04 | C86: 172 | D86: 354 | E86: Pearl Beverages Ltd | F86: Nadimpalem | G86: Guntur | H86: ETP Sludge | I86: 30.220 | J86: LAT-115 | K86: 11,403.00 | L86: 344,598.66 | M86: 17,229.93
A87: 118 | B87: 2019-06-07 | C87: 173 | D87: 354 | E87: Pearl Beverages Ltd | F87: Nadimpalem | G87: Guntur | H87: ETP Sludge | I87: 25.430 | J87: LAT-115 | K87: 11,403.00 | L87: 289,978.29 | M87: 14,498.91
A88: 171 | B88: 2019-06-27 | C88: 174 | D88: 354 | E88: Pearl Beverages Ltd | F88: Nadimpalem | G88: Guntur | H88: ETP Sludge | I88: 30.210 | J88: LAT-115 | K88: 6,377.20 | L88: 192,655.21 | M88: 9,632.76
A89: 173 | B89: 2019-06-28 | C89: 175 | D89: 354 | E89: Pearl Beverages Ltd | F89: Nadimpalem | G89: Guntur | H89: ETP Sludge | I89: 28.820 | J89: LAT-115 | K89: 7,047.00 | L89: 203,094.54 | M89: 10,154.73
A90: 253 | B90: 2019-07-27 | C90: 317 | D90: 354 | E90: Pearl Beverages Ltd | F90: Nadimpalem | G90: Guntur | H90: ETP Sludge | I90: 26.570 | J90: LAT-115 | K90: 7,047.00 | L90: 187,238.79 | M90: 9,361.94
A91: 257 | B91: 2019-07-29 | C91: 318 | D91: 354 | E91: Pearl Beverages Ltd | F91: Nadimpalem | G91: Guntur | H91: ETP Sludge | I91: 23.960 | J91: LAT-115 | K91: 7,047.00 | L91: 168,846.12 | M91: 8,442.31
A92: 687 | B92: 2020-01-11 | C92: 3 | D92: 295 | E92: Bhagiradha Chemicals & Industries Ltd | F92: Ongole | G92: Prakasam | H92: Inorganic Solid Waste | I92: 29.590 | J92: LAT-120 | K92: 3,850.00 | L92: 113,921.50 | M92: 5,696.08
A93: 688 | B93: 2020-01-11 | C93: 4 | D93: 295 | E93: Bhagiradha Chemicals & Industries Ltd | F93: Ongole | G93: Prakasam | H93: Inorganic Solid Waste | I93: 29.945 | J93: LAT-120 | K93: 3,850.00 | L93: 115,288.25 | M93: 5,764.41
A94: 690 | B94: 13.01.20 | C94: 7 | D94: 295 | E94: Bhagiradha Chemicals & Industries Ltd | F94: Ongole | G94: Prakasam | H94: Inorganic Solid Waste | I94: 29.890 | J94: LAT-120 | K94: 3,850.00 | L94: 115,076.50 | M94: 5,753.83
A95: 691 | B95: 13.01.20 | C95: 8 | D95: 295 | E95: Bhagiradha Chemicals & Industries Ltd | F95: Ongole | G95: Prakasam | H95: Inorganic Solid Waste | I95: 29.920 | J95: LAT-120 | K95: 3,850.00 | L95: 115,192.00 | M95: 5,759.60
A96: 693 | B96: 17.01.20 | C96: 17 | D96: 295 | E96: Bhagiradha Chemicals & Industries Ltd | F96: Ongole | G96: Prakasam | H96: Inorganic Solid Waste | I96: 29.955 | J96: LAT-120 | K96: 3,850.00 | L96: 115,326.75 | M96: 5,766.34
A97: 694 | B97: 18.01.20 | C97: 22 | D97: 295 | E97: Bhagiradha Chemicals & Industries Ltd | F97: Ongole | G97: Prakasam | H97: Inorganic Solid Waste | I97: 29.970 | J97: LAT-120 | K97: 3,850.00 | L97: 115,384.50 | M97: 5,769.23
A98: 697 | B98: 19.01.20 | C98: 30 | D98: 295 | E98: Bhagiradha Chemicals & Industries Ltd | F98: Ongole | G98: Prakasam | H98: Inorganic Solid Waste | I98: 30.060 | J98: LAT-120 | K98: 3,850.00 | L98: 115,731.00 | M98: 5,786.55
A99: 700 | B99: 2020-01-21 | C99: 43 | D99: 295 | E99: Bhagiradha Chemicals & Industries Ltd | F99: Ongole | G99: Prakasam | H99: Inorganic Solid Waste | I99: 29.920 | J99: LAT-120 | K99: 7,534.00 | L99: 225,417.28 | M99: 11,270.86
A100: 8 | B100: 2019-04-26 | C100: 96 | D100: 295 | E100: Bhagiradha Chemicals & Industries Ltd | F100: Ongole | G100: Prakasam | H100: Inorganic Solid Waste | I100: 32.750 | J100: LAT-120 | K100: 3,850.00 | L100: 126,087.50 | M100: 6,304.38
A101: 16 | B101: 2019-04-28 | C101: 97 | D101: 295 | E101: Bhagiradha Chemicals & Industries Ltd | F101: Ongole | G101: Prakasam | H101: Inorganic Solid Waste | I101: 33.330 | J101: LAT-120 | K101: 3,850.00 | L101: 128,320.50 | M101: 6,416.03
A102: 20 | B102: 2019-04-30 | C102: 98 | D102: 295 | E102: Bhagiradha Chemicals & Industries Ltd | F102: Ongole | G102: Prakasam | H102: Inorganic Solid Waste | I102: 34.490 | J102: LAT-120 | K102: 3,850.00 | L102: 132,786.50 | M102: 6,639.33
A103: 26 | B103: 2019-05-02 | C103: 99 | D103: 295 | E103: Bhagiradha Chemicals & Industries Ltd | F103: Ongole | G103: Prakasam | H103: Inorganic Solid Waste | I103: 32.370 | J103: LAT-120 | K103: 3,850.00 | L103: 124,624.50 | M103: 6,231.23
A104: 24 | B104: 2019-05-02 | C104: 100 | D104: 295 | E104: Bhagiradha Chemicals & Industries Ltd | F104: Ongole | G104: Prakasam | H104: Inorganic Solid Waste | I104: 32.110 | J104: LAT-120 | K104: 3,850.00 | L104: 123,623.50 | M104: 6,181.18
A105: 745 | B105: 2020-01-31 | C105: 118 | D105: 295 | E105: Bhagiradha Chemicals & Industries Ltd | F105: Ongole | G105: Prakasam | H105: Inorganic Solid Waste | I105: 30.660 | J105: LAT-120 | K105: 3,850.00 | L105: 118,041.00 | M105: 5,902.05
A106: 744 | B106: 2020-01-31 | C106: 119 | D106: 295 | E106: Bhagiradha Chemicals & Industries Ltd | F106: Ongole | G106: Prakasam | H106: Inorganic Solid Waste | I106: 29.410 | J106: LAT-120 | K106: 3,850.00 | L106: 113,228.50 | M106: 5,661.43
A107: 754 | B107: 2020-02-03 | C107: 143 | D107: 295 | E107: Bhagiradha Chemicals & Industries Ltd | F107: Ongole | G107: Prakasam | H107: Inorganic Solid Waste | I107: 30.280 | J107: LAT-120 | K107: 3,850.00 | L107: 116,578.00 | M107: 5,828.90
A108: 756 | B108: 2020-02-04 | C108: 174 | D108: 295 | E108: Bhagiradha Chemicals & Industries Ltd | F108: Ongole | G108: Prakasam | H108: Inorganic Solid Waste | I108: 30.150 | J108: LAT-120 | K108: 3,850.00 | L108: 116,077.50 | M108: 5,803.88
A109: 758 | B109: 2020-02-06 | C109: 213 | D109: 295 | E109: Bhagiradha Chemicals & Industries Ltd | F109: Ongole | G109: Prakasam | H109: Inorganic Solid Waste | I109: 29.930 | J109: LAT-120 | K109: 3,850.00 | L109: 115,230.50 | M109: 5,761.53
A110: 29 | B110: 2019-05-03 | C110: 226 | D110: 295 | E110: Bhagiradha Chemicals & Industries Ltd | F110: Ongole | G110: Prakasam | H110: Inorganic Solid Waste | I110: 32.970 | J110: LAT-120 | K110: 3,850.00 | L110: 126,934.50 | M110: 6,346.73
A111: 30 | B111: 2019-05-04 | C111: 227 | D111: 295 | E111: Bhagiradha Chemicals & Industries Ltd | F111: Ongole | G111: Prakasam | H111: Inorganic Solid Waste | I111: 32.420 | J111: LAT-120 | K111: 3,850.00 | L111: 124,817.00 | M111: 6,240.85
A112: 33 | B112: 2019-05-06 | C112: 228 | D112: 295 | E112: Bhagiradha Chemicals & Industries Ltd | F112: Ongole | G112: prakasam | H112: Inorganic Solid Waste | I112: 33.4 | J112: LAT-120 | K112: 3,850.00 | L112: 128,590.00 | M112: 6,429.50
A113: 36 | B113: 2019-05-07 | C113: 229 | D113: 250 | E113: Bhagiradha Chemicals & Industries Ltd | F113: Ongole | G113: prakasam | H113: Inorganic Solid Waste | I113: 31.4 | J113: LAT-120 | K113: 3,850.00 | L113: 120,890.00 | M113: 6,044.50
A114: 38 | B114: 2019-05-08 | C114: 230 | D114: 295 | E114: Bhagiradha Chemicals & Industries Ltd | F114: Ongole | G114: prakasam | H114: Inorganic Solid Waste | I114: 31.160 | J114: LAT-120 | K114: 3,850.00 | L114: 119,966.00 | M114: 5,998.30
A115: 42 | B115: 2019-05-10 | C115: 231 | D115: 295 | E115: Bhagiradha Chemicals & Industries Ltd | F115: Ongole | G115: Prakasam | H115: Inorganic Solid Waste | I115: 33.620 | J115: LAT-120 | K115: 3,850.00 | L115: 129,437.00 | M115: 6,471.85
A116: 48 | B116: 2019-05-11 | C116: 232 | D116: 295 | E116: Bhagiradha Chemicals & Industries Ltd | F116: Ongole | G116: prakasam | H116: Inorganic Solid Waste | I116: 31.99 | J116: LAT-120 | K116: 3,850.00 | L116: 123,161.50 | M116: 6,158.08
A117: 51 | B117: 2019-05-13 | C117: 233 | D117: 295 | E117: Bhagiradha Chemicals & Industries Ltd | F117: Ongole | G117: Prakasam | H117: Inorganic Solid Waste | I117: 33.840 | J117: LAT-120 | K117: 3,850.00 | L117: 130,284.00 | M117: 6,514.20
A118: 50 | B118: 2019-05-13 | C118: 234 | D118: 295 | E118: Bhagiradha Chemicals & Industries Ltd | F118: Ongole | G118: Prakasam | H118: Inorganic Solid Waste | I118: 34.930 | J118: LAT-120 | K118: 3,850.00 | L118: 134,480.50 | M118: 6,724.03
A119: 59 | B119: 2019-05-14 | C119: 235 | D119: 295 | E119: Bhagiradha Chemicals & Industries Ltd | F119: Ongole | G119: Prakasam | H119: Inorganic Solid Waste | I119: 32.320 | J119: LAT-120 | K119: 3,850.00 | L119: 124,432.00 | M119: 6,221.60
A120: 58 | B120: 2019-05-14 | C120: 236 | D120: 295 | E120: Bhagiradha Chemicals & Industries Ltd | F120: Ongole | G120: Prakasam | H120: Inorganic Solid Waste | I120: 32.820 | J120: LAT-120 | K120: 3,850.00 | L120: 126,357.00 | M120: 6,317.85
A121: 62 | B121: 2019-05-16 | C121: 237 | D121: 295 | E121: Bhagiradha Chemicals & Industries Ltd | F121: Ongole | G121: Prakasam | H121: Inorganic Solid Waste | I121: 34.370 | J121: LAT-120 | K121: 3,850.00 | L121: 132,324.50 | M121: 6,616.23
A122: 66 | B122: 2019-05-18 | C122: 238 | D122: 295 | E122: Bhagiradha Chemicals & Industries Ltd | F122: Ongole | G122: Prakasam | H122: Inorganic Solid Waste | I122: 35.590 | J122: LAT-120 | K122: 3,850.00 | L122: 137,021.50 | M122: 6,851.08
A123: 68 | B123: 2019-05-20 | C123: 239 | D123: 295 | E123: Bhagiradha Chemicals & Industries Ltd | F123: Ongole | G123: Prakasam | H123: Inorganic Solid Waste | I123: 38.260 | J123: LAT-120 | K123: 3,850.00 | L123: 147,301.00 | M123: 7,365.05
A124: 74 | B124: 2019-05-23 | C124: 240 | D124: 295 | E124: Bhagiradha Chemicals & Industries Ltd | F124: Ongole | G124: Prakasam | H124: Inorganic Solid Waste | I124: 37.630 | J124: LAT-120 | K124: 3,850.00 | L124: 144,875.50 | M124: 7,243.78
A125: 77 | B125: 2019-05-24 | C125: 241 | D125: 295 | E125: Bhagiradha Chemicals & Industries Ltd | F125: Ongole | G125: Prakasam | H125: Inorganic Solid Waste | I125: 34.23 | J125: LAT-120 | K125: 3,850.00 | L125: 131,785.50 | M125: 6,589.28
A126: 85 | B126: 2019-05-27 | C126: 242 | D126: 295 | E126: Bhagiradha Chemicals & Industries Ltd | F126: Ongole | G126: prakasam | H126: Inorganic Solid Waste | I126: 37.330 | J126: LAT-120 | K126: 3,850.00 | L126: 143,720.50 | M126: 7,186.03
A127: 91 | B127: 2019-05-29 | C127: 243 | D127: 295 | E127: Bhagiradha Chemicals & Industries Ltd | F127: Ongole | G127: Prakasam | H127: Inorganic Solid Waste | I127: 35.330 | J127: LAT-120 | K127: 3,850.00 | L127: 136,020.50 | M127: 6,801.03
A128: 101 | B128: 2019-05-31 | C128: 244 | D128: 295 | E128: Bhagiradha Chemicals & Industries Ltd | F128: Ongole | G128: Prakasam | H128: Inorganic Solid Waste | I128: 33.200 | J128: LAT-120 | K128: 3,850.00 | L128: 127,820.00 | M128: 6,391.00
A129: 109 | B129: 2019-06-03 | C129: 245 | D129: 295 | E129: Bhagiradha Chemicals & Industries Ltd | F129: Ongole | G129: Prakasam | H129: Inorganic Solid Waste | I129: 34.250 | J129: LAT-120 | K129: 3,850.00 | L129: 131,862.50 | M129: 6,593.13
A130: 113 | B130: 2019-06-06 | C130: 246 | D130: 295 | E130: Bhagiradha Chemicals & Industries Ltd | F130: Ongole | G130: Prakasam | H130: Inorganic Solid Waste | I130: 33.540 | J130: LAT-120 | K130: 3,850.00 | L130: 129,129.00 | M130: 6,456.45
A131: 117 | B131: 2019-06-07 | C131: 247 | D131: 295 | E131: Bhagiradha Chemicals & Industries Ltd | F131: Ongole | G131: Prakasam | H131: Inorganic Solid Waste | I131: 32.900 | J131: LAT-120 | K131: 3,850.00 | L131: 126,665.00 | M131: 6,333.25
A132: 759 | B132: 2020-02-07 | C132: 247 | D132: 295 | E132: Bhagiradha Chemicals & Industries Ltd | F132: Ongole | G132: Prakasam | H132: Inorganic Solid Waste | I132: 30.130 | J132: LAT-120 | K132: 3,850.00 | L132: =+K132*I132 -> 116,000.50 | M132: 5,800.03
A133: 125 | B133: 2019-06-11 | C133: 248 | D133: 295 | E133: Bhagiradha Chemicals & Industries Ltd | F133: Ongole | G133: Prakasam | H133: Inorganic Solid Waste | I133: 33.900 | J133: LAT-120 | K133: 3,850.00 | L133: 130,515.00 | M133: 6,525.75
A134: 126 | B134: 2019-06-11 | C134: 249 | D134: 295 | E134: Bhagiradha Chemicals & Industries Ltd | F134: Ongole | G134: Prakasam | H134: Inorganic Solid Waste | I134: 34.590 | J134: LAT-120 | K134: 3,850.00 | L134: 133,171.50 | M134: 6,658.58
A135: 133 | B135: 2019-06-12 | C135: 250 | D135: 295 | E135: Bhagiradha Chemicals & Industries Ltd | F135: Ongole | G135: prakasam | H135: Inorganic Solid Waste | I135: 34.140 | J135: LAT-120 | K135: 3,850.00 | L135: 131,439.00 | M135: 6,571.95
A136: 764 | B136: 2020-02-08 | C136: 262 | D136: 295 | E136: Bhagiradha Chemicals & Industries Ltd | F136: Ongole | G136: Prakasam | H136: Inorganic Solid Waste | I136: 30.120 | J136: LAT-120 | K136: 3,850.00 | L136: 115,962.00 | M136: 5,798.10
A137: 768 | B137: 2020-02-11 | C137: 346 | D137: 295 | E137: Bhagiradha Chemicals & Industries Ltd | F137: Ongole | G137: Prakasam | H137: Inorganic Solid Waste | I137: 30.990 | J137: LAT-120 | K137: 7,923.00 | L137: 245,533.77 | M137: 12,276.69
A138: 259 | B138: 2019-07-29 | C138: 358 | D138: 295 | E138: Bhagiradha Chemicals & Industries Ltd | F138: Ongole | G138: Prakasam | H138: Inorganic Solid Waste | I138: 32.620 | J138: LAT-120 | K138: 3,850.00 | L138: 125,587.00 | M138: 6,279.35
A139: 258 | B139: 2019-07-29 | C139: 359 | D139: 295 | E139: Bhagiradha Chemicals & Industries Ltd | F139: Ongole | G139: Prakasam | H139: Inorganic Solid Waste | I139: 33.170 | J139: LAT-120 | K139: 3,850.00 | L139: 127,704.50 | M139: 6,385.23
A140: 267 | B140: 2019-07-31 | C140: 360 | D140: 295 | E140: Bhagiradha Chemicals & Industries Ltd | F140: Ongole | G140: Prakasam | H140: Inorganic Solid Waste | I140: 33.540 | J140: LAT-120 | K140: 3,850.00 | L140: 129,129.00 | M140: 6,456.45
A141: 268 | B141: 2019-07-31 | C141: 361 | D141: 295 | E141: Bhagiradha Chemicals & Industries Ltd | F141: Ongole | G141: Prakasam | H141: Inorganic Solid Waste | I141: 34.540 | J141: LAT-120 | K141: 3,850.00 | L141: 132,979.00 | M141: 6,648.95
A142: 277 | B142: 2019-08-03 | C142: 362 | D142: 295 | E142: Bhagiradha Chemicals & Industries Ltd | F142: Ongole | G142: Prakasam | H142: Inorganic Solid Waste | I142: 34.450 | J142: LAT-120 | K142: 3,850.00 | L142: 132,632.50 | M142: 6,631.63
A143: 285 | B143: 2019-08-06 | C143: 363 | D143: 295 | E143: Bhagiradha Chemicals & Industries Ltd | F143: Ongole | G143: Prakasam | H143: Inorganic Solid Waste | I143: 32.520 | J143: LAT-120 | K143: 3,850.00 | L143: 125,202.00 | M143: 6,260.10
A144: 288 | B144: 2019-08-07 | C144: 364 | D144: 295 | E144: Bhagiradha Chemicals & Industries Ltd | F144: Ongole | G144: Prakasam | H144: Inorganic Solid Waste | I144: 32.860 | J144: LAT-120 | K144: 3,850.00 | L144: 126,511.00 | M144: =+L144*5% -> 6,325.55
A145: 290 | B145: 2019-08-08 | C145: 365 | D145: 295 | E145: Bhagiradha Chemicals & Industries Ltd | F145: Ongole | G145: Prakasam | H145: Inorganic Solid Waste | I145: 33.920 | J145: LAT-120 | K145: 3,850.00 | L145: 130,592.00 | M145: 6,529.60
A146: 294 | B146: 2019-08-09 | C146: 366 | D146: 295 | E146: Bhagiradha Chemicals & Industries Ltd | F146: Ongole | G146: Prakasam | H146: Inorganic Solid Waste | I146: 34.260 | J146: LAT-120 | K146: 3,850.00 | L146: 131,901.00 | M146: 6,595.05
A147: 296 | B147: 2019-08-10 | C147: 367 | D147: 255 | E147: Bhagiradha Chemicals & Industries Ltd | F147: Ongole | G147: Prakasam | H147: Inorganic Solid Waste | I147: 34.230 | J147: LAT-120 | K147: 3,850.00 | L147: 131,785.50 | M147: 6,589.28
A148: 300 | B148: 2019-08-13 | C148: 368 | D148: 295 | E148: Bhagiradha Chemicals & Industries Ltd | F148: Ongole | G148: Prakasam | H148: Inorganic Solid Waste | I148: 32.570 | J148: LAT-120 | K148: 3,850.00 | L148: 125,394.50 | M148: 6,269.73
A149: 305 | B149: 2019-08-14 | C149: 369 | D149: 295 | E149: Bhagiradha Chemicals & Industries Ltd | F149: Ongole | G149: Prakasam | H149: Inorganic Solid Waste | I149: 32.040 | J149: LAT-120 | K149: 3,850.00 | L149: 123,354.00 | M149: 6,167.70
A150: 304 | B150: 2019-08-14 | C150: 370 | D150: 295 | E150: Bhagiradha Chemicals & Industries Ltd | F150: Ongole | G150: Prakasam | H150: Inorganic Solid Waste | I150: 28.270 | J150: LAT-120 | K150: 3,850.00 | L150: 108,839.50 | M150: 5,441.98
A151: 307 | B151: 2019-08-16 | C151: 371 | D151: 295 | E151: Bhagiradha Chemicals & Industries Ltd | F151: Ongole | G151: Prakasam | H151: Inorganic Solid Waste | I151: 35.060 | J151: LAT-120 | K151: 3,850.00 | L151: 134,981.00 | M151: 6,749.05
A152: 312 | B152: 2019-08-17 | C152: 372 | D152: 295 | E152: Bhagiradha Chemicals & Industries Ltd | F152: Ongole | G152: Prakasam | H152: Inorganic Solid Waste | I152: 33.460 | J152: LAT-120 | K152: 3,850.00 | L152: 128,821.00 | M152: 6,441.05
A153: 317 | B153: 2019-08-19 | C153: 373 | D153: 295 | E153: Bhagiradha Chemicals & Industries Ltd | F153: Ongole | G153: Prakasam | H153: Inorganic Solid Waste | I153: 34.180 | J153: LAT-120 | K153: 3,850.00 | L153: 131,593.00 | M153: 6,579.65
A154: 316 | B154: 2019-08-19 | C154: 374 | D154: 295 | E154: Bhagiradha Chemicals & Industries Ltd | F154: Ongole | G154: Prakasam | H154: Inorganic Solid Waste | I154: 37.100 | J154: LAT-120 | K154: 3,850.00 | L154: 142,835.00 | M154: 7,141.75
A155: 136 | B155: 2019-06-14 | C155: 401 | D155: 295 | E155: Bhagiradha Chemicals & Industries Ltd | F155: Ongole | G155: Prakasam | H155: Inorganic Solid Waste | I155: 33.830 | J155: LAT-120 | K155: 3,850.00 | L155: 130,245.50 | M155: 6,512.28
A156: 139 | B156: 2019-06-17 | C156: 402 | D156: 295 | E156: Bhagiradha Chemicals & Industries Ltd | F156: Ongole | G156: Prakasam | H156: Inorganic Solid Waste | I156: 34.870 | J156: LAT-120 | K156: 3,850.00 | L156: 134,249.50 | M156: 6,712.48
A157: 774 | B157: 2020-02-13 | C157: 402 | D157: 295 | E157: Bhagiradha Chemicals & Industries Ltd | F157: Ongole | G157: Prakasam | H157: Inorganic Solid Waste | I157: 30.270 | J157: LAT-120 | K157: 3,850.00 | L157: 116,539.50 | M157: 5,826.98
A158: 150 | B158: 2019-06-20 | C158: 403 | D158: 295 | E158: Bhagiradha Chemicals & Industries Ltd | F158: Ongole | G158: Prakasam | H158: Inorganic Solid Waste | I158: 33.470 | J158: LAT-120 | K158: 3,850.00 | L158: 128,859.50 | M158: 6,442.98
A159: 151 | B159: 2019-06-21 | C159: 404 | D159: 295 | E159: Bhagiradha Chemicals & Industries Ltd | F159: Ongole | G159: Prakasam | H159: Inorganic Solid Waste | I159: 34.080 | J159: LAT-120 | K159: 3,850.00 | L159: 131,208.00 | M159: 6,560.40
A160: 157 | B160: 2019-06-22 | C160: 405 | D160: 295 | E160: Bhagiradha Chemicals & Industries Ltd | F160: Ongole | G160: Prakasam | H160: Inorganic Solid Waste | I160: 34.070 | J160: LAT-120 | K160: 3,850.00 | L160: 131,169.50 | M160: 6,558.48
A161: 160 | B161: 2019-06-24 | C161: 406 | D161: 295 | E161: Bhagiradha Chemicals & Industries Ltd | F161: Ongole | G161: Prakasam | H161: Inorganic Solid Waste | I161: 32.990 | J161: LAT-120 | K161: 3,850.00 | L161: 127,011.50 | M161: 6,350.58
A162: 164 | B162: 2019-06-26 | C162: 407 | D162: 295 | E162: Bhagiradha Chemicals & Industries Ltd | F162: Ongole | G162: Prakasam | H162: Inorganic Solid Waste | I162: 33.730 | J162: LAT-120 | K162: 3,850.00 | L162: 129,860.50 | M162: 6,493.03
A163: 174 | B163: 2019-06-28 | C163: 408 | D163: 295 | E163: Bhagiradha Chemicals & Industries Ltd | F163: Ongole | G163: Prakasam | H163: Inorganic Solid Waste | I163: 33.000 | J163: LAT-120 | K163: 3,850.00 | L163: 127,050.00 | M163: 6,352.50
A164: 191 | B164: 2019-07-04 | C164: 409 | D164: 295 | E164: Bhagiradha Chemicals & Industries Ltd | F164: Ongole | G164: Prakasam | H164: Inorganic Solid Waste | I164: 37.630 | J164: LAT-120 | K164: 3,850.00 | L164: 144,875.50 | M164: 7,243.78
A165: 199 | B165: 2019-07-09 | C165: 410 | D165: 295 | E165: Bhagiradha Chemicals & Industries Ltd | F165: Ongole | G165: Prakasam | H165: Inorganic Solid Waste | I165: 35.210 | J165: LAT-120 | K165: 3,850.00 | L165: 135,558.50 | M165: 6,777.93
A166: 203 | B166: 2019-07-11 | C166: 411 | D166: 295 | E166: Bhagiradha Chemicals & Industries Ltd | F166: Ongole | G166: Prakasam | H166: Inorganic Solid Waste | I166: 33.350 | J166: LAT-120 | K166: 3,850.00 | L166: 128,397.50 | M166: 6,419.88
A167: 214 | B167: 2019-07-13 | C167: 412 | D167: 295 | E167: Bhagiradha Chemicals & Industries Ltd | F167: Ongole | G167: Prakasam | H167: Inorganic Solid Waste | I167: 34.410 | J167: LAT-120 | K167: 3,850.00 | L167: 132,478.50 | M167: 6,623.93
A168: 215 | B168: 2019-07-13 | C168: 413 | D168: 295 | E168: Bhagiradha Chemicals & Industries Ltd | F168: Ongole | G168: Prakasam | H168: Inorganic Solid Waste | I168: 32.080 | J168: LAT-120 | K168: 3,850.00 | L168: 123,508.00 | M168: 6,175.40
A169: 216 | B169: 2019-07-15 | C169: 414 | D169: 295 | E169: Bhagiradha Chemicals & Industries Ltd | F169: Ongole | G169: Prakasam | H169: Inorganic Solid Waste | I169: 38.080 | J169: LAT-120 | K169: 3,850.00 | L169: 146,608.00 | M169: 7,330.40
A170: 220 | B170: 2019-07-16 | C170: 415 | D170: 295 | E170: Bhagiradha Chemicals & Industries Ltd | F170: Ongole | G170: Prakasam | H170: Inorganic Solid Waste | I170: 29.880 | J170: LAT-120 | K170: 3,850.00 | L170: 115,038.00 | M170: 5,751.90
A171: 224 | B171: 2019-07-18 | C171: 416 | D171: 295 | E171: Bhagiradha Chemicals & Industries Ltd | F171: Ongole | G171: Prakasam | H171: Inorganic Solid Waste | I171: 32.750 | J171: LAT-120 | K171: 3,850.00 | L171: 126,087.50 | M171: 6,304.38
A172: 226 | B172: 2019-07-19 | C172: 417 | D172: 295 | E172: Bhagiradha Chemicals & Industries Ltd | F172: Ongole | G172: Prakasam | H172: Inorganic Solid Waste | I172: 32.700 | J172: LAT-120 | K172: 3,850.00 | L172: 125,895.00 | M172: 6,294.75
A173: 231 | B173: 2019-07-20 | C173: 418 | D173: 295 | E173: Bhagiradha Chemicals & Industries Ltd | F173: Ongole | G173: Prakasam | H173: Inorganic Solid Waste | I173: 33.150 | J173: LAT-120 | K173: 3,850.00 | L173: 127,627.50 | M173: 6,381.38
A174: 236 | B174: 2019-07-21 | C174: 419 | D174: 295 | E174: Bhagiradha Chemicals & Industries Ltd | F174: Ongole | G174: Prakasam | H174: Inorganic Solid Waste | I174: 37.300 | J174: LAT-120 | K174: 3,850.00 | L174: 143,605.00 | M174: 7,180.25
A175: 235 | B175: 2019-07-21 | C175: 420 | D175: 295 | E175: Bhagiradha Chemicals & Industries Ltd | F175: Ongole | G175: Prakasam | H175: Inorganic Solid Waste | I175: 32.010 | J175: LAT-120 | K175: 3,850.00 | L175: 123,238.50 | M175: 6,161.93
A176: 239 | B176: 2019-07-23 | C176: 421 | D176: 295 | E176: Bhagiradha Chemicals & Industries Ltd | F176: Ongole | G176: Prakasam | H176: Inorganic Solid Waste | I176: 32.060 | J176: LAT-120 | K176: 3,850.00 | L176: 123,431.00 | M176: 6,171.55
A177: 242 | B177: 2019-07-24 | C177: 422 | D177: 295 | E177: Bhagiradha Chemicals & Industries Ltd | F177: Ongole | G177: Prakasam | H177: Inorganic Solid Waste | I177: 36.250 | J177: LAT-120 | K177: 3,850.00 | L177: 139,562.50 | M177: 6,978.13
A178: 241 | B178: 2019-07-24 | C178: 423 | D178: 295 | E178: Bhagiradha Chemicals & Industries Ltd | F178: Ongole | G178: Prakasam | H178: Inorganic Solid Waste | I178: 32.080 | J178: LAT-120 | K178: 3,850.00 | L178: 123,508.00 | M178: 6,175.40
A179: 248 | B179: 2019-07-26 | C179: 424 | D179: 295 | E179: Bhagiradha Chemicals & Industries Ltd | F179: Ongole | G179: Prakasam | H179: Inorganic Solid Waste | I179: 32.100 | J179: LAT-120 | K179: 3,850.00 | L179: 123,585.00 | M179: 6,179.25
A180: 251 | B180: 2019-07-26 | C180: 425 | D180: 295 | E180: Bhagiradha Chemicals & Industries Ltd | F180: Ongole | G180: Prakasam | H180: Inorganic Solid Waste | I180: 31.780 | J180: LAT-120 | K180: 3,850.00 | L180: 122,353.00 | M180: 6,117.65
A181: 324 | B181: 2019-08-21 | C181: 553 | D181: 295 | E181: Bhagiradha Chemicals & Industries Ltd | F181: Ongole | G181: Prakasam | H181: Inorganic Solid Waste | I181: 32.340 | J181: LAT-120 | K181: 3,850.00 | L181: 124,509.00 | M181: 6,225.45
A182: 323 | B182: 2019-08-21 | C182: 554 | D182: 295 | E182: Bhagiradha Chemicals & Industries Ltd | F182: Ongole | G182: Prakasam | H182: Inorganic Solid Waste | I182: 32.330 | J182: LAT-120 | K182: 3,850.00 | L182: 124,470.50 | M182: 6,223.53
A183: 326 | B183: 2019-08-23 | C183: 555 | D183: 295 | E183: Bhagiradha Chemicals & Industries Ltd | F183: Ongole | G183: Prakasam | H183: Inorganic Solid Waste | I183: 33.420 | J183: LAT-120 | K183: 3,850.00 | L183: 128,667.00 | M183: 6,433.35
A184: 327 | B184: 2019-08-23 | C184: 556 | D184: 295 | E184: Bhagiradha Chemicals & Industries Ltd | F184: Ongole | G184: Prakasam | H184: Inorganic Solid Waste | I184: 32.320 | J184: LAT-120 | K184: 3,850.00 | L184: 124,432.00 | M184: 6,221.60
A185: 329 | B185: 2019-08-24 | C185: 557 | D185: 295 | E185: Bhagiradha Chemicals & Industries Ltd | F185: Ongole | G185: Prakasam | H185: Inorganic Solid Waste | I185: 31.320 | J185: LAT-120 | K185: 3,850.00 | L185: 120,582.00 | M185: 6,029.10
A186: 337 | B186: 2019-08-26 | C186: 558 | D186: 295 | E186: Bhagiradha Chemicals & Industries Ltd | F186: Ongole | G186: Prakasam | H186: Inorganic Solid Waste | I186: 34.030 | J186: LAT-120 | K186: 3,850.00 | L186: 131,015.50 | M186: 6,550.78
A187: 340 | B187: 2019-08-27 | C187: 559 | D187: 295 | E187: Bhagiradha Chemicals & Industries Ltd | F187: Ongole | G187: Prakasam | H187: Inorganic Solid Waste | I187: 30.460 | J187: LAT-120 | K187: 3,850.00 | L187: 117,271.00 | M187: 5,863.55
A188: 343 | B188: 2019-08-28 | C188: 560 | D188: 295 | E188: Bhagiradha Chemicals & Industries Ltd | F188: Ongole | G188: Prakasam | H188: Inorganic Solid Waste | I188: 31.750 | J188: LAT-120 | K188: 3,850.00 | L188: 122,237.50 | M188: 6,111.88
A189: 345 | B189: 2019-08-29 | C189: 561 | D189: 295 | E189: Bhagiradha Chemicals & Industries Ltd | F189: Ongole | G189: Prakasam | H189: Inorganic Solid Waste | I189: 34.080 | J189: LAT-120 | K189: 3,850.00 | L189: 131,208.00 | M189: 6,560.40
A190: 348 | B190: 2019-08-30 | C190: 562 | D190: 295 | E190: Bhagiradha Chemicals & Industries Ltd | F190: Ongole | G190: Prakasam | H190: Inorganic Solid Waste | I190: 33.550 | J190: LAT-120 | K190: 3,850.00 | L190: 129,167.50 | M190: 6,458.38
A191: 357 | B191: 2019-08-31 | C191: 563 | D191: 295 | E191: Bhagiradha Chemicals & Industries Ltd | F191: Ongole | G191: Prakasam | H191: Inorganic Solid Waste | I191: 33.030 | J191: LAT-120 | K191: 3,850.00 | L191: 127,165.50 | M191: 6,358.28
A192: 364 | B192: 2019-09-03 | C192: 564 | D192: 295 | E192: Bhagiradha Chemicals & Industries Ltd | F192: Ongole | G192: Prakasam | H192: Inorganic Solid Waste | I192: 31.050 | J192: LAT-120 | K192: 3,850.00 | L192: 119,542.50 | M192: 5,977.13
A193: 367 | B193: 2019-09-05 | C193: 565 | D193: 295 | E193: Bhagiradha Chemicals & Industries Ltd | F193: Ongole | G193: Prakasam | H193: Inorganic Solid Waste | I193: 34.580 | J193: LAT-120 | K193: 3,850.00 | L193: 133,133.00 | M193: 6,656.65
A194: 374 | B194: 2019-09-07 | C194: 566 | D194: 295 | E194: Bhagiradha Chemicals & Industries Ltd | F194: Ongole | G194: Prakasam | H194: Inorganic Solid Waste | I194: 32.630 | J194: LAT-120 | K194: 3,850.00 | L194: 125,625.50 | M194: 6,281.28
A195: 375 | B195: 2019-09-07 | C195: 567 | D195: 295 | E195: Bhagiradha Chemicals & Industries Ltd | F195: Ongole | G195: Prakasam | H195: Inorganic Solid Waste | I195: 31.590 | J195: LAT-120 | K195: 3,850.00 | L195: 121,621.50 | M195: 6,081.08
A196: 379 | B196: 2019-09-09 | C196: 568 | D196: 295 | E196: Bhagiradha Chemicals & Industries Ltd | F196: Ongole | G196: Prakasam | H196: Inorganic Solid Waste | I196: 33.960 | J196: LAT-120 | K196: 3,850.00 | L196: =+K196*I196 -> 130,746.00 | M196: 6,537.30
A197: 380 | B197: 2019-09-09 | C197: 569 | D197: 295 | E197: Bhagiradha Chemicals & Industries Ltd | F197: Ongole | G197: Prakasam | H197: Inorganic Solid Waste | I197: 32.470 | J197: LAT-120 | K197: 3,850.00 | L197: 125,009.50 | M197: 6,250.48
A198: 385 | B198: 2019-09-11 | C198: 570 | D198: 295 | E198: Bhagiradha Chemicals & Industries Ltd | F198: Ongole | G198: Prakasam | H198: Inorganic Solid Waste | I198: 34.000 | J198: LAT-120 | K198: 3,850.00 | L198: 130,900.00 | M198: 6,545.00
A199: 384 | B199: 2019-09-11 | C199: 571 | D199: 295 | E199: Bhagiradha Chemicals & Industries Ltd | F199: Ongole | G199: Prakasam | H199: Inorganic Solid Waste | I199: 33.190 | J199: LAT-120 | K199: 3,850.00 | L199: 127,781.50 | M199: 6,389.08
A200: 386 | B200: 2019-09-12 | C200: 572 | D200: 295 | E200: Bhagiradha Chemicals & Industries Ltd | F200: Ongole | G200: Prakasam | H200: Inorganic Solid Waste | I200: 32.320 | J200: LAT-120 | K200: 3,850.00 | L200: 124,432.00 | M200: 6,221.60
... 8817 more rows

Sheet 2020-2021
A1: COASTAL WASTE MAGEMENT PROJECT UNIT-II,NELLORE
A2: LABORATORY YEARLY DATA
A3: YEARLY WASTE RECIEPTS -Jan-2020 to Dec-2020
A4: S.NO | B4: Date | C4: Manifest No | D4: Mem No | E4: Generator Name | F4: Location | G4: District | H4: Type of Waste | I4: TONS | J4: DM | K4: Disposal Price | L4: Disposal Rev | M4: Escrow | N4: REMARKS
A5: 403 | B5: 2020-10-20 | C5: 8592 | D5: 434 | E5: 3F Industries Ltd | F5: Muthukur | G5: Nellore | H5: ETP Sludge | I5: 23.400 | J5: LAT-95 | K5: 9381 | L5: =+K5*I5 -> 219515.4 | M5: =+L5*5% -> 10975.77
A6: 685 | B6: 31.01.21 | C6: 13497 | D6: 434 | E6: 3F Industries Ltd | F6: Muthukur | G6: Nellore | H6: ETP Sludge | I6: 8.72 | J6: LAT-95 | K6: 9381 | L6: 81802.32 | M6: 4090.116
A7: 680 | B7: 30.01.21 | C7: 13387 | D7: 434 | E7: 3F Industries Ltd | F7: Muthukur | G7: Nellore | H7: ETP Sludge | I7: 8.61 | J7: LAT-95 | K7: 9381 | L7: 80770.41 | M7: 4038.5205
A8: 292 | B8: 10.09.20 | C8: 7172 | D8: 323 | E8: Adani wilmar limited | F8: Mantralayam | G8: Kurnool | H8: ETP Sludge | I8: 11.54 | J8: LAT-106 | K8: 7331 | L8: 84599.74 | M8: 4229.987
A9: 362 | B9: 2020-10-06 | C9: 8181 | D9: 402 | E9: Adani wilmar limited unit -1 | F9: muthukur | G9: Nellore | H9: ETP Sludge | I9: 17.270 | J9: LAT-30 | K9: 7534 | L9: 130112.18 | M9: 6505.609
A10: 84 | B10: 04.06.20 | C10: 3549 | D10: 402 | E10: Adani wilmar limited unit -1 | F10: muthukur | G10: Nellore | H10: ETP Sludge | I10: 16.85 | J10: LAT-30 | K10: 7534 | L10: 126947.9 | M10: 6347.395
A11: 509 | B11: 01.12.20 | C11: 10225 | D11: 402 | E11: Adani wilmar limited unit -1 | F11: muthukur | G11: Nellore | H11: ETP Sludge | I11: 16.490 | J11: LAT-30 | K11: 7534 | L11: 124235.66 | M11: 6211.783
A12: 160 | B12: 14.07.20 | C12: 4882 | D12: 402 | E12: Adani wilmar limited unit -1 | F12: muthukur | G12: Nellore | H12: ETP Sludge | I12: 16.19 | J12: LAT-30 | K12: 7534 | L12: 121975.46 | M12: 6098.773
A13: 673 | B13: 29.01.21 | C13: 13336 | D13: 402 | E13: Adani wilmar limited unit -1 | F13: muthukur | G13: Nellore | H13: ETP Sludge | I13: 15.52 | J13: LAT-30 | K13: 7534 | L13: 116927.68 | M13: 5846.384
A14: 271 | B14: 02.09.20 | C14: 6865 | D14: 402 | E14: Adani wilmar limited unit -1 | F14: muthukur | G14: Nellore | H14: ETP Sludge | I14: 15.1 | J14: LAT-30 | K14: 7534 | L14: 113763.4 | M14: 5688.17
A15: 821 | B15: 13.03.21 | C15: 16251 | D15: 402 | E15: Adani wilmar limited unit -1 | F15: muthukur | G15: Nellore | H15: ETP Sludge | I15: 13.71 | J15: LAT-30 | K15: 7534 | L15: 103291.14 | M15: 5164.557
A16: 510 | B16: 01.12.20 | C16: 10225 | D16: 402 | E16: Adani wilmar limited unit -1 | F16: muthukur | G16: Nellore | H16: MEE Salts | I16: 7.500 | J16: LAT-59K | K16: 9037 | L16: 67777.5 | M16: 3388.875
A17: 363 | B17: 2020-10-06 | C17: 8181 | D17: 402 | E17: Adani wilmar limited unit -1 | F17: muthukur | G17: Nellore | H17: MEE Salts | I17: 7.250 | J17: LAT-59K | K17: 9037 | L17: 65518.25 | M17: 3275.9125
A18: 272 | B18: 02.09.20 | C18: 6865 | D18: 402 | E18: Adani wilmar limited unit -1 | F18: muthukur | G18: Nellore | H18: MEE Salts | I18: 7.16 | J18: LAT-59K | K18: 9037 | L18: 64704.92 | M18: 3235.246
A19: 674 | B19: 29.01.21 | C19: 13336 | D19: 402 | E19: Adani wilmar limited unit -1 | F19: muthukur | G19: Nellore | H19: MEE Salts | I19: 7 | J19: LAT-59K | K19: 9037 | L19: 63259 | M19: 3162.95
A20: 161 | B20: 14.07.20 | C20: 4882 | D20: 402 | E20: Adani wilmar limited unit -1 | F20: muthukur | G20: Nellore | H20: MEE Salts | I20: 6.75 | J20: LAT-59K | K20: 9037 | L20: 60999.75 | M20: 3049.9875
A21: 822 | B21: 13.03.21 | C21: 16251 | D21: 402 | E21: Adani wilmar limited unit -1 | F21: muthukur | G21: Nellore | H21: MEE Salts | I21: 6.5 | J21: LAT-59K | K21: 9037 | L21: 58740.5 | M21: 2937.025
A22: 85 | B22: 04.06.20 | C22: 3530 | D22: 402 | E22: Adani wilmar limited unit -1 | F22: muthukur | G22: Nellore | H22: MEE Salts | I22: 6.45 | J22: LAT-59K | K22: 9037 | L22: 58288.65 | M22: 2914.4325
A23: 17 | B23: 23.04.2020 | C23: 2236 | D23: 386 | E23: Adani wilmar ltd -II | F23: Muthukur | G23: Nellore | H23: ETP sludge | I23: 26.200 | J23: LAT-30 | K23: 7904 | L23: 207084.8 | M23: 10354.24
A24: 103 | B24: 15.06.20 | C24: 3834 | D24: 386 | E24: Adani wilmar ltd- II | F24: Muthukur | G24: Nellore | H24: ETP Sludge | I24: 24.79 | J24: LAT-30 | K24: 7904 | L24: 195940.16 | M24: 9797.008
A25: 71 | B25: 29.05.20 | C25: 3322 | D25: 386 | E25: Adani wilmar ltd- II | F25: Muthukur | G25: Nellore | H25: Etp sludge | I25: 23.88 | J25: LAT-30 | K25: 7904 | L25: 188747.52 | M25: 9437.376
A26: 40 | B26: 08.05.20 | C26: 2614 | D26: 386 | E26: Adani wilmar ltd- II | F26: Muthukur | G26: Nellore | H26: Etp sludge | I26: 23.34 | J26: LAT-30 | K26: 7904 | L26: 184479.36 | M26: 9223.968
A27: 12 | B27: 21.04.2020 | C27: 2199 | D27: 402 | E27: Adani wilmar Ltd-I | F27: Muthukur | G27: Nellore | H27: Etp sludge | I27: 16.620 | J27: LAT-30 | K27: 7534 | L27: 125215.08 | M27: 6260.754
A28: 11 | B28: 21.04.2020 | C28: 2198 | D28: 402 | E28: Adani wilmar Ltd-I | F28: Muthukur | G28: Nellore | H28: Mee Salts | I28: 5.250 | J28: LAT-59K | K28: 9037 | L28: 47444.25 | M28: 2372.2125
A29: 642 | B29: 19.01.21 | C29: 12734 | D29: 386 | E29: Adani Wilmar Ltd-II | F29: Muthukur | G29: Nellore | H29: MEE Saalt & Etp Sludge | I29: 25 | J29: LAT-30 | K29: 7904 | L29: 197600 | M29: 9880
A30: 360 | B30: 2020-10-04 | C30: 8124 | D30: 386 | E30: Adani Wilmar Ltd-II | F30: Pantapalem | G30: Nellore | H30: ETP Sludge | I30: 24.970 | J30: LAT-30 | K30: 7904 | L30: 197362.88 | M30: 9868.144
A31: 244 | B31: 25.08.20 | C31: 6457 | D31: 386 | E31: Adani Wilmar Ltd-II | F31: Pantapalem | G31: Nellore | H31: ETP Sludge | I31: 24.9 | J31: LAT-30 | K31: 7904 | L31: 196809.6 | M31: 9840.48
A32: 448 | B32: 2020-10-31 | C32: 9049 | D32: 386 | E32: Adani Wilmar Ltd-II | F32: Pantapalem | G32: Nellore | H32: ETP Sludge | I32: 24.820 | J32: LAT-30 | K32: 7904 | L32: 196177.28 | M32: 9808.864
A33: 553 | B33: 17.12.20 | C33: 11002 | D33: 386 | E33: Adani Wilmar Ltd-II | F33: Muthukur | G33: Nellore | H33: Etp Sludge | I33: 24.800 | J33: LAT-30 | K33: 7904 | L33: 196019.2 | M33: 9800.96
A34: 729 | B34: 14.02.21 | C34: 14391 | D34: 386 | E34: Adani Wilmar Ltd-II | F34: Muthukur | G34: Nellore | H34: MEE Saalt & Etp Sludge | I34: 24.6 | J34: LAT-30 | K34: 7904 | L34: 194438.4 | M34: 9721.92
A35: 879 | B35: 28.03.21 | C35: 17310 | D35: 386 | E35: Adani Wilmar Ltd-II | F35: Muthukuru | G35: Nellore | H35: MEE Salts & ETP Sludge | I35: 24.55 | J35: LAT-30 | K35: 7904 | L35: 194043.2 | M35: 9702.16
A36: 835 | B36: 17.03.21 | C36: 16531 | D36: 386 | E36: Adani Wilmar Ltd-II | F36: Muthukuru | G36: Nellore | H36: MEE Salts & ETP Sludge | I36: 24.49 | J36: LAT-30 | K36: 7904 | L36: 193568.96 | M36: 9678.448
A37: 455 | B37: 04.11.20 | C37: 9219 | D37: 386 | E37: Adani Wilmar Ltd-II | F37: Muthukur | G37: Nellore | H37: MEE Saalt & Etp Sludge | I37: 24.460 | J37: LAT-30 | K37: 7904 | L37: 193331.84 | M37: =+L37*5% -> 9666.592
A38: 573 | B38: 24.12.20 | C38: 11410 | D38: 386 | E38: Adani Wilmar Ltd-II | F38: Muthukur | G38: Nellore | H38: MEE Saalt & Etp Sludge | I38: 24.440 | J38: LAT-30 | K38: 7904 | L38: 193173.76 | M38: 9658.688
A39: 209 | B39: 07.08.20 | C39: 5818 | D39: 386 | E39: Adani Wilmar Ltd-II | F39: Pantapalem | G39: Nellore | H39: ETP Sludge | I39: 24.32 | J39: LAT-30 | K39: 7904 | L39: 192225.28 | M39: 9611.264
A40: 294 | B40: 11.09.20 | C40: 7217 | D40: 386 | E40: Adani Wilmar Ltd-II | F40: Pantapalem | G40: Nellore | H40: ETP Sludge | I40: 24.11 | J40: LAT-30 | K40: 7904 | L40: 190565.44 | M40: 9528.272
A41: 173 | B41: 21.07.20 | C41: 5109 | D41: 386 | E41: Adani Wilmar Ltd-II | F41: Pantapalem | G41: Nellore | H41: ETP Sludge | I41: 24.08 | J41: LAT-30 | K41: 7904 | L41: 190328.32 | M41: 9516.416
A42: 197 | B42: 31.07.20 | C42: 5574 | D42: 386 | E42: Adani Wilmar Ltd-II | F42: Pantapalem | G42: Nellore | H42: ETP Sludge | I42: 17 | J42: LAT-30 | K42: 7904 | L42: 134368 | M42: 6718.4
A43: 224 | B43: 17.08.20 | C43: 6127 | D43: 509 | E43: Agrisol India Pvt Ltd | F43: Dhone | G43: Kurnool | H43: Evaporation salt | I43: 24.98 | J43: LAT-174 | K43: 8789 | L43: 219549.22 | M43: 10977.461
A44: 14 | B44: 22.04.2020 | C44: 2204 | D44: 509 | E44: Agrisol india pvt Ltd | F44: Dhone | G44: Kurnool | H44: Evaporation Salt | I44: 24.090 | J44: LAT-174 | K44: 8789 | L44: 211727.01 | M44: 10586.3505
A45: 382 | B45: 2020-10-14 | C45: 8421 | D45: 509 | E45: Agrisol India Pvt Ltd | F45: Dhone | G45: Kurnool | H45: Evaporation salt | I45: 23.700 | J45: LAT-174 | K45: 8789 | L45: 208299.3 | M45: 10414.965
A46: 181 | B46: 25.07.20 | C46: 5251 | D46: 509 | E46: Agrisol India Pvt Ltd | F46: Dhone | G46: Kurnool | H46: Evaporation salt | I46: 23.25 | J46: LAT-174 | K46: 8789 | L46: 204344.25 | M46: 10217.2125
A47: 309 | B47: 20.09.20 | C47: 7530 | D47: 509 | E47: Agrisol India Pvt Ltd | F47: Dhone | G47: Kurnool | H47: Evaporation salt | I47: 21.86 | J47: LAT-174 | K47: 8789 | L47: 192127.54 | M47: 9606.377
A48: 72 | B48: 30.05.20 | C48: 3335 | D48: 509 | E48: Agrisol India Pvt Ltd | F48: Dhone | G48: Kurnool | H48: Evaporation salt | I48: 21.01 | J48: LAT-174 | K48: 8789 | L48: 184656.89 | M48: 9232.8445
A49: 153 | B49: 10.07.20 | C49: 4745 | D49: 509 | E49: Agrisol India Pvt Ltd | F49: Dhone | G49: Kurnool | H49: Evaporation salt | I49: 20.76 | J49: LAT-174 | K49: 8789 | L49: 182459.64 | M49: 9122.982
A50: 454 | B50: 04.11.20 | C50: 9206 | D50: 509 | E50: Agrisol India Pvt Ltd | F50: Dhone | G50: Kurnool | H50: Evaporation salt | I50: 20.120 | J50: LAT-174 | K50: 8789 | L50: 176834.68 | M50: 8841.734
A51: 519 | B51: 04.12.20 | C51: 10401 | D51: 509 | E51: Agrisol India Pvt Ltd | F51: Dhone | G51: Kurnool | H51: Evaporation salt | I51: 22.060 | J51: LAT-59BT | K51: 8789 | L51: 193885.34 | M51: 9694.267
A52: 836 | B52: 17.03.21 | C52: 16506 | D52: 509 | E52: Agrisol India Pvt Ltd | F52: Dhone | G52: Kurnool | H52: Evaporation salt | I52: 21.71 | J52: LAT-59BT | K52: 8789 | L52: 190809.19 | M52: 9540.4595
A53: 61 | B53: 23.05.20 | C53: 3047 | D53: 226 | E53: Amara raja batteries | F53: Renigunta | G53: Chittoor | H53: Etp sludge | I53: 22.65 | J53: LAT-192 | K53: 9927 | L53: 224846.55 | M53: 11242.3275
A54: 216 | B54: 11.08.20 | C54: 5965 | D54: 226 | E54: Amarraja Batteries | F54: Renigunta | G54: Chittoor | H54: ETP Sludge | I54: 24.61 | J54: LAT-192 | K54: 9927 | L54: 244303.47 | M54: 12215.1735
A55: 647 | B55: 20.01.21 | C55: 12798 | D55: 226 | E55: Amarraja Batteries | F55: Renigunta | G55: Chittoor | H55: ETP Sludge | I55: 22.3 | J55: LAT-192 | K55: 9927 | L55: 221372.1 | M55: 11068.605
A56: 468 | B56: 06.11.20 | C56: 9339 | D56: 226 | E56: Amarraja Batteries | F56: Renigunta | G56: Chittoor | H56: ETP Sludge | I56: 21.860 | J56: LAT-192 | K56: 9927 | L56: 217004.22 | M56: 10850.211
A57: 709 | B57: 09.02.21 | C57: 13916 | D57: 293 | E57: Andhra Medi Pharma India Pvt Ltd | F57: Bapulapadu | G57: Krishna | H57: ETP Sludge | I57: 4.5 | J57: LAT-110 | K57: 15920 | L57: 71640 | M57: 3582
A58: 354 | B58: 2020-10-02 | C58: 8034 | D58: 494 | E58: Ardee Industries Pvt Ltd | F58: Naidupeta | G58: Nellore | H58: Lead slag | I58: 24.800 | J58: LAT-54 | K58: 5920 | L58: 146816 | M58: 7340.8
A59: 352 | B59: 2020-10-01 | C59: 8007 | D59: 494 | E59: Ardee Industries Pvt Ltd | F59: Naidupeta | G59: Nellore | H59: Lead slag | I59: 24.720 | J59: LAT-54 | K59: 5920 | L59: 146342.4 | M59: 7317.12
A60: 343 | B60: 30.09.20 | C60: 7956 | D60: 494 | E60: Ardee Industries Pvt Ltd | F60: Naidupeta | G60: Nellore | H60: Lead slag | I60: 16.97 | J60: LAT-54 | K60: 5920 | L60: 100462.4 | M60: 5023.12
A61: 342 | B61: 30.09.20 | C61: 7958 | D61: 494 | E61: Ardee Industries Pvt Ltd | F61: Naidupeta | G61: Nellore | H61: Lead slag | I61: 16.95 | J61: LAT-54 | K61: 5920 | L61: 100344 | M61: 5017.2
A62: 348 | B62: 30.09.20 | C62: 7986 | D62: 494 | E62: Ardee Industries Pvt Ltd | F62: Naidupeta | G62: Nellore | H62: Lead slag | I62: 16.9 | J62: LAT-54 | K62: 5920 | L62: 100048 | M62: 5002.4
A63: 351 | B63: 30.09.20 | C63: 7996 | D63: 494 | E63: Ardee Industries Pvt Ltd | F63: Naidupeta | G63: Nellore | H63: Lead slag | I63: 16.88 | J63: LAT-54 | K63: 5920 | L63: 99929.6 | M63: 4996.48
A64: 350 | B64: 30.09.20 | C64: 7989 | D64: 494 | E64: Ardee Industries Pvt Ltd | F64: Naidupeta | G64: Nellore | H64: Lead slag | I64: 16.86 | J64: LAT-54 | K64: 5920 | L64: 99811.2 | M64: 4990.56
A65: 344 | B65: 30.09.20 | C65: 7962 | D65: 494 | E65: Ardee Industries Pvt Ltd | F65: Naidupeta | G65: Nellore | H65: Lead slag | I65: 16.76 | J65: LAT-54 | K65: 5920 | L65: 99219.2 | M65: 4960.96
A66: 60 | B66: 23.05.20 | C66: 3024 | D66: 446 | E66: Aurobindo pharma limited | F66: Naidupet | G66: Nellore | H66: Etp sludge | I66: 7.33 | J66: LAT-106 | K66: 6475 | L66: 47461.75 | N66: BDMA Customer, Escrow Not Applicable
A67: 147 | B67: 08.07.20 | C67: 4658 | D67: 446 | E67: Aurobindo Pharma Ltd Unit-X | F67: Naidupet | G67: Nellore | H67: ETP Sludge | I67: 6.67 | J67: LAT-106 | K67: 6475 | L67: 43188.25 | N67: BDMA Customer, Escrow Not Applicable
A68: 370 | B68: 2020-10-09 | C68: 8271 | D68: 446 | E68: Aurobindo Pharma Ltd Unit-X | F68: Naidupeta | G68: Nellore | H68: ETP Sludge | I68: 6.900 | J68: LAT-106 | K68: 6475 | L68: 44677.5 | N68: BDMA Customer, Escrow Not Applicable
A69: 737 | B69: 17.02.21 | C69: 14563 | D69: 446 | E69: Aurobindo Pharma Ltd Unit-X | F69: Naidupeta | G69: Nellore | H69: ETP Sludge | I69: 6.9 | J69: LAT-106 | K69: 6475 | L69: =+K69*I69 -> 44677.5 | N69: BDMA Customer, Escrow Not Applicable
A70: 778 | B70: 27.02.21 | C70: 15248 | D70: 227 | E70: Avanti Leathers Ltd | F70: Varadaiahpalem | G70: Chittoor | H70: ETP Sludge | I70: 16.975 | J70: LAT-79 | K70: 7954 | L70: 135019.15 | M70: =+L70*5% -> 6750.9575
A71: 748 | B71: 20.02.21 | C71: 14770 | D71: 227 | E71: Avanti Leathers Ltd | F71: Varadaiahpalem | G71: Chittoor | H71: ETP Sludge | I71: 12.905 | J71: LAT-79 | K71: 7954 | L71: 102646.37 | M71: 5132.3185
A72: 871 | B72: 26.03.21 | C72: 17130 | D72: 410 | E72: AWM Consulting Ltd | F72: vedunkuppam | G72: Chittoor | H72: Incineration Ash | I72: 4.57 | J72: DLF | K72: 3017 | L72: 13787.69 | M72: 689.3845
A73: 808 | B73: 08.03.21 | C73: 15939 | D73: 410 | E73: AWM Consulting Ltd | F73: vedunkuppam | G73: Chittoor | H73: Incineration Ash | I73: 3.64 | J73: DLF | K73: 3017 | L73: 10981.88 | M73: 549.094
A74: 667 | B74: 27.01.21 | C74: 13147 | D74: 410 | E74: AWM Consulting Ltd | F74: vedunkuppam | G74: Chittoor | H74: Incineration Ash | I74: 3.47 | J74: DLF | K74: 3017 | L74: 10468.99 | M74: 523.4495
A75: 16 | B75: 22.04.2020 | C75: 1179 | D75: 410 | E75: AWM Consulting Ltd | F75: vedunkuppam | G75: Chittoor | H75: Biomedical Ash | I75: 3.290 | J75: DLF | K75: 3017 | L75: 9925.93 | M75: 496.2965
A76: 57 | B76: 19.05.20 | C76: 1181 | D76: 410 | E76: Awm consulting ltd | F76: vedunkuppam | G76: Chittoor | H76: Bio medical ash | I76: 3.1 | J76: DLF | K76: 3017 | L76: 9352.7 | M76: 467.635
A77: 687 | B77: 01.02.21 | C77: 13585 | D77: 410 | E77: AWM Consulting Ltd | F77: vedunkuppam | G77: Chittoor | H77: Incineration Ash | I77: 3.1 | J77: DLF | K77: 3017 | L77: 9352.7 | M77: 467.635
A78: 35 | B78: 05.05.20 | C78: 1180 | D78: 410 | E78: Awm consulting ltd | F78: vedunkuppam | G78: Chittoor | H78: Bio medical ash | I78: 2.86 | J78: DLF | K78: 3017 | L78: 8628.62 | M78: 431.431
A79: 94 | B79: 10.06.20 | C79: 1182 | D79: 410 | E79: Awm consulting ltd | F79: vedunkuppam | G79: Chittoor | H79: Bio medical ash | I79: 2.68 | J79: DLF | K79: 3017 | L79: 8085.56 | M79: 404.278
A80: 1 | B80: 08.04.20 | C80: 1178 | D80: 410 | E80: AWM Consulting Ltd. | F80: Vedurukuppam | G80: chitoor | H80: BIO Medical ash | I80: 3.360 | J80: DLF | K80: 3017 | L80: 10137.12 | M80: 506.856
A81: 843 | B81: 19.03.21 | C81: 16661 | D81: 501 | E81: Axora Resources Ltd | F81: Tottembedu | G81: Chittoor | H81: Lead slag | I81: 24.9 | J81: LAT-42 | K81: 4544 | L81: 113145.6 | M81: 5657.28
A82: 844 | B82: 19.03.21 | C82: 16657 | D82: 501 | E82: Axora Resources Ltd | F82: Tottembedu | G82: Chittoor | H82: Lead slag | I82: 24.19 | J82: LAT-42 | K82: 4544 | L82: 109919.36 | M82: 5495.968
A83: 82 | B83: 03.06.20 | C83: 3510 | D83: 451 | E83: Ball Beverage Packaging (india) Private Limited | F83: Sricity | G83: Chittoor | H83: ETP Sludge | I83: 7 | J83: LAT-95 | K83: 9431 | L83: 66017 | M83: 3300.85
A84: 108 | B84: 16.06.20 | C84: 3870 | D84: 451 | E84: Ball Beverage Packaging (india) Private Limited | F84: Sricity | G84: Chittoor | H84: ETP Sludge | I84: 4.91 | J84: LAT-95 | K84: 9431 | L84: 46306.21 | M84: 2315.3105
A85: 853 | B85: 21.03.21 | C85: 16775 | D85: 451 | E85: Ball Beverage Packing (India) Pvt Ltd | F85: Sricity | G85: Chittoor | H85: ETP Sludge | I85: 8.56 | J85: LAT-95 | K85: 9431 | L85: 80729.36 | M85: 4036.468
A86: 676 | B86: 29.01.21 | C86: 13362 | D86: 451 | E86: Ball Beverage Packing (India) Pvt Ltd | F86: Sricity | G86: Chittoor | H86: ETP Sludge | I86: 7.46 | J86: LAT-95 | K86: 9431 | L86: 70355.26 | M86: 3517.763
A87: 830 | B87: 15.03.21 | C87: 16284 | D87: 451 | E87: Ball Beverage Packing (India) Pvt Ltd | F87: Sricity | G87: Chittoor | H87: ETP Sludge | I87: 7.44 | J87: LAT-95 | K87: 9431 | L87: 70166.64 | M87: 3508.332
A88: 557 | B88: 18.12.20 | C88: 11093 | D88: 451 | E88: Ball Beverage Packing (India) Pvt Ltd | F88: Sricity | G88: Chittoor | H88: ETP Sludge | I88: 7.280 | J88: LAT-95 | K88: 9431 | L88: 68657.68 | M88: 3432.884
A89: 796 | B89: 03.03.21 | C89: 15552 | D89: 451 | E89: Ball Beverage Packing (India) Pvt Ltd | F89: Sricity | G89: Chittoor | H89: ETP Sludge | I89: 6.97 | J89: LAT-95 | K89: 9431 | L89: 65734.07 | M89: 3286.7035
A90: 637 | B90: 17.01.21 | C90: 12516 | D90: 451 | E90: Ball Beverage Packing (India) Pvt Ltd | F90: Sricity | G90: Chittoor | H90: ETP Sludge | I90: 6.92 | J90: LAT-95 | K90: 9431 | L90: 65262.52 | M90: 3263.126
A91: 47 | B91: 13.05.20 | C91: 1253 | D91: 451 | E91: Ball Beverage Packing (India) Pvt Ltd | F91: Sri City | G91: Chittoor | H91: ETP Sludge | I91: 6.67 | J91: LAT-95 | K91: 9431 | L91: 62904.77 | M91: 3145.2385
A92: 477 | B92: 17.11.20 | C92: 9610 | D92: 451 | E92: Ball Beverage Packing (India) Pvt Ltd | F92: Sricity | G92: Chittoor | H92: ETP Sludge | I92: 6.550 | J92: LAT-95 | K92: 9431 | L92: 61773.05 | M92: 3088.6525
A93: 724 | B93: 12.02.21 | C93: 14275 | D93: 451 | E93: Ball Beverage Packing (India) Pvt Ltd | F93: Sricity | G93: Chittoor | H93: ETP Sludge | I93: 6.52 | J93: LAT-95 | K93: 9431 | L93: 61490.12 | M93: 3074.506
A94: 749 | B94: 20.02.21 | C94: 14774 | D94: 451 | E94: Ball Beverage Packing (India) Pvt Ltd | F94: Sricity | G94: Chittoor | H94: ETP Sludge | I94: 6.5 | J94: LAT-95 | K94: 9431 | L94: 61301.5 | M94: 3065.075
A95: 702 | B95: 06.02.21 | C95: 13858 | D95: 451 | E95: Ball Beverage Packing (India) Pvt Ltd | F95: Sricity | G95: Chittoor | H95: ETP Sludge | I95: 6.49 | J95: LAT-95 | K95: 9431 | L95: 61207.19 | M95: 3060.3595
A96: 387 | B96: 2020-10-15 | C96: 8443 | D96: 451 | E96: Ball Beverage Packing (India) Pvt Ltd | F96: Sricity | G96: Chittoor | H96: ETP Sludge | I96: 6.440 | J96: LAT-95 | K96: 9431 | L96: 60735.64 | M96: 3036.782
A97: 540 | B97: 12.12.20 | C97: 10698 | D97: 451 | E97: Ball Beverage Packing (India) Pvt Ltd | F97: Sricity | G97: Chittoor | H97: ETP Sludge | I97: 6.370 | J97: LAT-95 | K97: 9431 | L97: 60075.47 | M97: 3003.7735
A98: 611 | B98: 05.01.21 | C98: 12037 | D98: 451 | E98: Ball Beverage Packing (India) Pvt Ltd | F98: Sricity | G98: Chittoor | H98: ETP Sludge | I98: 6.32 | J98: LAT-95 | K98: 9431 | L98: 59603.92 | M98: 2980.196
A99: 520 | B99: 04.12.20 | C99: 10348 | D99: 451 | E99: Ball Beverage Packing (India) Pvt Ltd | F99: Sricity | G99: Chittoor | H99: ETP Sludge | I99: 6.220 | J99: LAT-95 | K99: 9431 | L99: 58660.82 | M99: 2933.041
A100: 296 | B100: 12.09.20 | C100: 7245 | D100: 451 | E100: Ball Beverage Packing (India) Pvt Ltd | F100: Sricity | G100: Chittoor | H100: ETP Sludge | I100: 5.82 | J100: LAT-95 | K100: 9431 | L100: 54888.42 | M100: 2744.421
A101: 447 | B101: 2020-10-31 | C101: 9031 | D101: 451 | E101: Ball Beverage Packing (India) Pvt Ltd | F101: Sricity | G101: Chittoor | H101: ETP Sludge | I101: 5.500 | J101: LAT-95 | K101: 9431 | L101: 51870.5 | M101: 2593.525
A102: 232 | B102: 20.08.20 | C102: 6246 | D102: 451 | E102: Ball Beverage Packing (India) Pvt Ltd | F102: Sri City | G102: Chittoor | H102: ETP Sludge | I102: 4.69 | J102: LAT-95 | K102: 9431 | L102: 44231.39 | M102: =+L102*5% -> 2211.5695
A103: 192 | B103: 30.07.20 | C103: 5522 | D103: 451 | E103: Ball Beverage Packing (India) Pvt Ltd | F103: Sricity | G103: Chittoor | H103: ETP Sludge | I103: 4.49 | J103: LAT-95 | K103: 9431 | L103: 42345.19 | M103: 2117.2595
A104: 332 | B104: 26.09.20 | C104: 7772 | D104: 250 | E104: Bergen Pipe Supports India Pvt Ltd., | F104: Sri City | G104: Chittoor | H104: Paint sludge | I104: 6.71 | J104: LAT-141 | K104: 10109 | L104: 67831.39 | M104: 3391.5695
A105: 208 | B105: 07.08.20 | C105: 5814 | D105: 295 | E105: Bhagiradha Chemicals & Industries Ltd | F105: Ongole | G105: Prakasam | H105: Inorganic solid waste | I105: 30 | J105: LAT-120 | K105: 3850 | L105: 115500 | M105: 5775
A106: 220 | B106: 14.08.20 | C106: 6075 | D106: 295 | E106: Bhagiradha Chemicals & Industries Ltd | F106: Ongole | G106: Prakasam | H106: Inorganic solid waste | I106: 30 | J106: LAT-120 | K106: 3850 | L106: 115500 | M106: 5775
A107: 227 | B107: 18.08.20 | C107: 6176 | D107: 295 | E107: Bhagiradha Chemicals & Industries Ltd | F107: Ongole | G107: Prakasam | H107: Inorganic solid waste | I107: 30 | J107: LAT-120 | K107: 3850 | L107: 115500 | M107: 5775
A108: 252 | B108: 28.08.20 | C108: 6605 | D108: 295 | E108: Bhagiradha Chemicals & Industries Ltd | F108: Ongole | G108: Prakasam | H108: Inorganic solid waste | I108: 30 | J108: LAT-120 | K108: 3850 | L108: 115500 | M108: 5775
A109: 293 | B109: 11.09.20 | C109: 7228 | D109: 295 | E109: Bhagiradha Chemicals & Industries Ltd | F109: Ongole | G109: Prakasam | H109: Inorganic solid waste | I109: 30 | J109: LAT-120 | K109: 3850 | L109: 115500 | M109: 5775
A110: 336 | B110: 28.09.20 | C110: 7864 | D110: 295 | E110: Bhagiradha Chemicals & Industries Ltd | F110: Ongole | G110: Prakasam | H110: Inorganic solid waste | I110: 30 | J110: LAT-120 | K110: 3850 | L110: 115500 | M110: 5775
A111: 367 | B111: 2020-10-07 | C111: 8206 | D111: 295 | E111: Bhagiradha Chemicals & Industries Ltd | F111: Ongole | G111: Prakasam | H111: Inorganic solid waste | I111: 30.000 | J111: LAT-120 | K111: 3850 | L111: 115500 | M111: 5775
A112: 381 | B112: 2020-10-13 | C112: 8406 | D112: 295 | E112: Bhagiradha Chemicals & Industries Ltd | F112: Ongole | G112: Prakasam | H112: Inorganic solid waste | I112: 30.000 | J112: LAT-120 | K112: 3850 | L112: 115500 | M112: 5775
A113: 388 | B113: 2020-10-15 | C113: 8446 | D113: 295 | E113: Bhagiradha Chemicals & Industries Ltd | F113: Ongole | G113: Prakasam | H113: Inorganic solid waste | I113: 30.000 | J113: LAT-120 | K113: 3850 | L113: 115500 | M113: 5775
A114: 394 | B114: 2020-10-17 | C114: 8496 | D114: 295 | E114: Bhagiradha Chemicals & Industries Ltd | F114: Ongole | G114: Prakasam | H114: Inorganic solid waste | I114: 30.000 | J114: LAT-120 | K114: 3850 | L114: 115500 | M114: 5775
A115: 395 | B115: 2020-10-17 | C115: 8497 | D115: 295 | E115: Bhagiradha Chemicals & Industries Ltd | F115: Ongole | G115: Prakasam | H115: Inorganic solid waste | I115: 30.000 | J115: LAT-120 | K115: 3850 | L115: 115500 | M115: 5775
A116: 417 | B116: 2020-10-22 | C116: 8625 | D116: 295 | E116: Bhagiradha Chemicals & Industries Ltd | F116: Ongole | G116: Prakasam | H116: Inorganic solid waste | I116: 30.000 | J116: LAT-120 | K116: 3850 | L116: 115500 | M116: 5775
A117: 425 | B117: 2020-10-26 | C117: 8790 | D117: 295 | E117: Bhagiradha Chemicals & Industries Ltd | F117: Ongole | G117: Prakasam | H117: Inorganic solid waste | I117: 30.000 | J117: LAT-120 | K117: 3850 | L117: 115500 | M117: 5775
A118: 432 | B118: 2020-10-27 | C118: 8839 | D118: 295 | E118: Bhagiradha Chemicals & Industries Ltd | F118: Ongole | G118: Prakasam | H118: Inorganic solid waste | I118: 30.000 | J118: LAT-120 | K118: 3850 | L118: 115500 | M118: 5775
A119: 494 | B119: 24.11.20 | C119: 9846 | D119: 295 | E119: Bhagiradha Chemicals & Industries Ltd | F119: Ongole | G119: Prakasam | H119: Inorganic solid waste | I119: 30.000 | J119: LAT-120 | K119: 3850 | L119: 115500 | M119: 5775
A120: 499 | B120: 25.11.20 | C120: 9871 | D120: 295 | E120: Bhagiradha Chemicals & Industries Ltd | F120: Ongole | G120: Prakasam | H120: Inorganic solid waste | I120: 30.000 | J120: LAT-120 | K120: 3850 | L120: 115500 | M120: 5775
A121: 504 | B121: 30.11.20 | C121: 10145 | D121: 295 | E121: Bhagiradha Chemicals & Industries Ltd | F121: Ongole | G121: Prakasam | H121: Inorganic solid waste | I121: 30.000 | J121: LAT-120 | K121: 3850 | L121: 115500 | M121: 5775
A122: 512 | B122: 02.12.20 | C122: 10218 | D122: 295 | E122: Bhagiradha Chemicals & Industries Ltd | F122: Ongole | G122: Prakasam | H122: Inorganic solid waste | I122: 30.000 | J122: LAT-120 | K122: 3850 | L122: 115500 | M122: 5775
A123: 530 | B123: 09.12.20 | C123: 10514 | D123: 295 | E123: Bhagiradha Chemicals & Industries Ltd | F123: Ongole | G123: Prakasam | H123: Inorganic solid waste | I123: 30.000 | J123: LAT-120 | K123: 3850 | L123: 115500 | M123: 5775
A124: 537 | B124: 11.12.20 | C124: 10680 | D124: 295 | E124: Bhagiradha Chemicals & Industries Ltd | F124: Ongole | G124: Prakasam | H124: Inorganic solid waste | I124: 30.000 | J124: LAT-120 | K124: 3850 | L124: 115500 | M124: 5775
A125: 556 | B125: 18.12.20 | C125: 11022 | D125: 295 | E125: Bhagiradha Chemicals & Industries Ltd | F125: Ongole | G125: Prakasam | H125: Inorganic solid waste | I125: 30.000 | J125: LAT-120 | K125: 3850 | L125: 115500 | M125: 5775
A126: 561 | B126: 19.12.20 | C126: 11117 | D126: 295 | E126: Bhagiradha Chemicals & Industries Ltd | F126: Ongole | G126: Prakasam | H126: Inorganic solid waste | I126: 30.000 | J126: LAT-120 | K126: 3850 | L126: 115500 | M126: 5775
A127: 570 | B127: 22.12.20 | C127: 11292 | D127: 295 | E127: Bhagiradha Chemicals & Industries Ltd | F127: Ongole | G127: Prakasam | H127: Inorganic solid waste | I127: 30.000 | J127: LAT-120 | K127: 3850 | L127: 115500 | M127: 5775
A128: 584 | B128: 27.12.20 | C128: 11579 | D128: 295 | E128: Bhagiradha Chemicals & Industries Ltd | F128: Ongole | G128: Prakasam | H128: Inorganic solid waste | I128: 30.000 | J128: LAT-120 | K128: 3850 | L128: 115500 | M128: 5775
A129: 589 | B129: 29.12.20 | C129: 11682 | D129: 295 | E129: Bhagiradha Chemicals & Industries Ltd | F129: Ongole | G129: Prakasam | H129: Inorganic solid waste | I129: 30.000 | J129: LAT-120 | K129: 3850 | L129: 115500 | M129: 5775
A130: 591 | B130: 29.12.20 | C130: 11684 | D130: 295 | E130: Bhagiradha Chemicals & Industries Ltd | F130: Ongole | G130: Prakasam | H130: Inorganic solid waste | I130: 30.000 | J130: LAT-120 | K130: 3850 | L130: 115500 | M130: 5775
A131: 598 | B131: 31.12.20 | C131: 11810 | D131: 295 | E131: Bhagiradha Chemicals & Industries Ltd | F131: Ongole | G131: Prakasam | H131: Inorganic solid waste | I131: 30.000 | J131: LAT-120 | K131: 3850 | L131: 115500 | M131: 5775
A132: 606 | B132: 02.01.21 | C132: 11942 | D132: 295 | E132: Bhagiradha Chemicals & Industries Ltd | F132: Ongole | G132: Prakasam | H132: Inorganic Solid Waste | I132: 30 | J132: LAT-120 | K132: 3850 | L132: 115500 | M132: 5775
A133: 610 | B133: 04.01.21 | C133: 11992 | D133: 295 | E133: Bhagiradha Chemicals & Industries Ltd | F133: Ongole | G133: Prakasam | H133: Inorganic Solid Waste | I133: 30 | J133: LAT-120 | K133: 3850 | L133: =+K133*I133 -> 115500 | M133: 5775
A134: 625 | B134: 09.01.21 | C134: 12226 | D134: 295 | E134: Bhagiradha Chemicals & Industries Ltd | F134: Ongole | G134: Prakasam | H134: Inorganic Solid Waste | I134: 30 | J134: LAT-120 | K134: 3850 | L134: 115500 | M134: =+L134*5% -> 5775
A135: 633 | B135: 12.01.21 | C135: 12398 | D135: 295 | E135: Bhagiradha Chemicals & Industries Ltd | F135: Ongole | G135: Prakasam | H135: Inorganic Solid Waste | I135: 30 | J135: LAT-120 | K135: 3850 | L135: 115500 | M135: 5775
A136: 638 | B136: 17.01.21 | C136: 12567 | D136: 295 | E136: Bhagiradha Chemicals & Industries Ltd | F136: Ongole | G136: Prakasam | H136: Inorganic Solid Waste | I136: 30 | J136: LAT-120 | K136: 3850 | L136: 115500 | M136: 5775
A137: 645 | B137: 20.01.21 | C137: 12758 | D137: 295 | E137: Bhagiradha Chemicals & Industries Ltd | F137: Ongole | G137: Prakasam | H137: Inorganic Solid Waste | I137: 30 | J137: LAT-120 | K137: 3850 | L137: 115500 | M137: 5775
A138: 646 | B138: 20.01.21 | C138: 12759 | D138: 295 | E138: Bhagiradha Chemicals & Industries Ltd | F138: Ongole | G138: Prakasam | H138: Inorganic Solid Waste | I138: 30 | J138: LAT-120 | K138: 3850 | L138: 115500 | M138: 5775
A139: 648 | B139: 21.01.21 | C139: 12836 | D139: 295 | E139: Bhagiradha Chemicals & Industries Ltd | F139: Ongole | G139: Prakasam | H139: Inorganic Solid Waste | I139: 30 | J139: LAT-120 | K139: 3850 | L139: 115500 | M139: 5775
A140: 665 | B140: 27.01.21 | C140: 13168 | D140: 295 | E140: Bhagiradha Chemicals & Industries Ltd | F140: Ongole | G140: Prakasam | H140: Inorganic Solid Waste | I140: 30 | J140: LAT-120 | K140: 3850 | L140: 115500 | M140: 5775
A141: 671 | B141: 28.01.21 | C141: 13275 | D141: 295 | E141: Bhagiradha Chemicals & Industries Ltd | F141: Ongole | G141: Prakasam | H141: Inorganic Solid Waste | I141: 30 | J141: LAT-120 | K141: 3850 | L141: 115500 | M141: 5775
A142: 705 | B142: 08.02.21 | C142: 13973 | D142: 295 | E142: Bhagiradha Chemicals & Industries Ltd | F142: Ongole | G142: Prakasam | H142: Inorganic Solid Waste | I142: 30 | J142: LAT-120 | K142: 3850 | L142: 115500 | M142: 5775
A143: 736 | B143: 17.02.21 | C143: 14541 | D143: 295 | E143: Bhagiradha Chemicals & Industries Ltd | F143: Ongole | G143: Prakasam | H143: Inorganic Solid Waste | I143: 30 | J143: LAT-120 | K143: 3850 | L143: 115500 | M143: 5775
A144: 740 | B144: 18.02.21 | C144: 14618 | D144: 295 | E144: Bhagiradha Chemicals & Industries Ltd | F144: Ongole | G144: Prakasam | H144: Inorganic Solid Waste | I144: 30 | J144: LAT-120 | K144: 3850 | L144: 115500 | M144: 5775
A145: 744 | B145: 19.02.21 | C145: 14688 | D145: 295 | E145: Bhagiradha Chemicals & Industries Ltd | F145: Ongole | G145: Prakasam | H145: Inorganic Solid Waste | I145: 30 | J145: LAT-120 | K145: 3850 | L145: 115500 | M145: 5775
A146: 743 | B146: 19.02.21 | C146: 14694 | D146: 295 | E146: Bhagiradha Chemicals & Industries Ltd | F146: Ongole | G146: Prakasam | H146: Inorganic Solid Waste | I146: 30 | J146: LAT-120 | K146: 3850 | L146: 115500 | M146: 5775
A147: 753 | B147: 21.02.21 | C147: 14815 | D147: 295 | E147: Bhagiradha Chemicals & Industries Ltd | F147: Ongole | G147: Prakasam | H147: Inorganic Solid Waste | I147: 30 | J147: LAT-120 | K147: 3850 | L147: 115500 | M147: 5775
A148: 757 | B148: 23.02.21 | C148: 14911 | D148: 295 | E148: Bhagiradha Chemicals & Industries Ltd | F148: Ongole | G148: Prakasam | H148: Inorganic Solid Waste | I148: 30 | J148: LAT-120 | K148: 3850 | L148: 115500 | M148: 5775
A149: 764 | B149: 24.02.21 | C149: 14989 | D149: 295 | E149: Bhagiradha Chemicals & Industries Ltd | F149: Ongole | G149: Prakasam | H149: Inorganic Solid Waste | I149: 30 | J149: LAT-120 | K149: 3850 | L149: 115500 | M149: 5775
A150: 770 | B150: 25.02.21 | C150: 15079 | D150: 295 | E150: Bhagiradha Chemicals & Industries Ltd | F150: Ongole | G150: Prakasam | H150: Inorganic Solid Waste | I150: 30 | J150: LAT-120 | K150: 3850 | L150: 115500 | M150: 5775
A151: 768 | B151: 25.02.21 | C151: 15117 | D151: 295 | E151: Bhagiradha Chemicals & Industries Ltd | F151: Ongole | G151: Prakasam | H151: Inorganic Solid Waste | I151: 30 | J151: LAT-120 | K151: 3850 | L151: 115500 | M151: 5775
A152: 780 | B152: 27.02.21 | C152: 15269 | D152: 295 | E152: Bhagiradha Chemicals & Industries Ltd | F152: Ongole | G152: Prakasam | H152: Inorganic Solid Waste | I152: 30 | J152: LAT-120 | K152: 3850 | L152: 115500 | M152: 5775
A153: 787 | B153: 28.02.21 | C153: 15378 | D153: 295 | E153: Bhagiradha Chemicals & Industries Ltd | F153: Ongole | G153: Prakasam | H153: Inorganic Solid Waste | I153: 30 | J153: LAT-120 | K153: 3850 | L153: 115500 | M153: 5775
A154: 791 | B154: 02.03.21 | C154: 15477 | D154: 295 | E154: Bhagiradha Chemicals & Industries Ltd | F154: Ongole | G154: Prakasam | H154: Inorganic Solid Waste | I154: 30 | J154: LAT-120 | K154: 3850 | L154: 115500 | M154: 5775
A155: 813 | B155: 09.03.21 | C155: 15947 | D155: 295 | E155: Bhagiradha Chemicals & Industries Ltd | F155: Ongole | G155: Prakasam | H155: Inorganic Solid Waste | I155: 30 | J155: LAT-120 | K155: 3850 | L155: 115500 | M155: 5775
A156: 816 | B156: 10.03.21 | C156: 16055 | D156: 295 | E156: Bhagiradha Chemicals & Industries Ltd | F156: Ongole | G156: Prakasam | H156: Inorganic Solid Waste | I156: 30 | J156: LAT-120 | K156: 3850 | L156: 115500 | M156: 5775
A157: 834 | B157: 16.03.21 | C157: 16418 | D157: 295 | E157: Bhagiradha Chemicals & Industries Ltd | F157: Ongole | G157: Prakasam | H157: Inorganic Solid Waste | I157: 30 | J157: LAT-120 | K157: 3850 | L157: 115500 | M157: 5775
A158: 837 | B158: 17.03.21 | C158: 16499 | D158: 295 | E158: Bhagiradha Chemicals & Industries Ltd | F158: Ongole | G158: Prakasam | H158: Inorganic Solid Waste | I158: 30 | J158: LAT-120 | K158: 3850 | L158: 115500 | M158: 5775
A159: 842 | B159: 18.03.21 | C159: 16591 | D159: 295 | E159: Bhagiradha Chemicals & Industries Ltd | F159: Ongole | G159: Prakasam | H159: Inorganic Solid Waste | I159: 30 | J159: LAT-120 | K159: 3850 | L159: 115500 | M159: 5775
A160: 845 | B160: 19.03.21 | C160: 16641 | D160: 295 | E160: Bhagiradha Chemicals & Industries Ltd | F160: Ongole | G160: Prakasam | H160: Inorganic Solid Waste | I160: 30 | J160: LAT-120 | K160: 3850 | L160: 115500 | M160: 5775
A161: 854 | B161: 21.03.21 | C161: 16782 | D161: 295 | E161: Bhagiradha Chemicals & Industries Ltd | F161: Ongole | G161: Prakasam | H161: Inorganic Solid Waste | I161: 30 | J161: LAT-120 | K161: 3850 | L161: 115500 | M161: 5775
A162: 859 | B162: 24.03.21 | C162: 17004 | D162: 295 | E162: Bhagiradha Chemicals & Industries Ltd | F162: Ongole | G162: Prakasam | H162: Inorganic Solid Waste | I162: 30 | J162: LAT-120 | K162: 3850 | L162: 115500 | M162: 5775
A163: 872 | B163: 26.03.21 | C163: 17132 | D163: 295 | E163: Bhagiradha Chemicals & Industries Ltd | F163: Ongole | G163: Prakasam | H163: Inorganic Solid Waste | I163: 30 | J163: LAT-120 | K163: 3850 | L163: 115500 | M163: 5775
A164: 882 | B164: 28.03.21 | C164: 17251 | D164: 295 | E164: Bhagiradha Chemicals & Industries Ltd | F164: Ongole | G164: Prakasam | H164: Inorganic Solid Waste | I164: 30 | J164: LAT-120 | K164: 3850 | L164: 115500 | M164: 5775
A165: 884 | B165: 29.03.21 | C165: 17353 | D165: 295 | E165: Bhagiradha Chemicals & Industries Ltd | F165: Ongole | G165: Prakasam | H165: Inorganic Solid Waste | I165: 30 | J165: LAT-120 | K165: 3850 | L165: 115500 | M165: 5775
A166: 136 | B166: 01.07.20 | C166: 4410 | D166: 295 | E166: Bhagiradha Chemicals & Industries Ltd | F166: Ongole | G166: Prakasam | H166: Inorganic solid waste | I166: 29.99 | J166: LAT-120 | K166: 3850 | L166: 115461.5 | M166: =+L166*5% -> 5773.075
A167: 142 | B167: 06.07.20 | C167: 4588 | D167: 295 | E167: Bhagiradha Chemicals & Industries Ltd | F167: Ongole | G167: Prakasam | H167: Inorganic solid waste | I167: 29.99 | J167: LAT-120 | K167: 3850 | L167: 115461.5 | M167: 5773.075
A168: 157 | B168: 13.07.20 | C168: 4855 | D168: 295 | E168: Bhagiradha Chemicals & Industries Ltd | F168: Ongole | G168: Prakasam | H168: Inorganic solid waste | I168: 29.99 | J168: LAT-120 | K168: 3850 | L168: 115461.5 | M168: 5773.075
A169: 168 | B169: 17.07.20 | C169: 4937 | D169: 295 | E169: Bhagiradha Chemicals & Industries Ltd | F169: Ongole | G169: Prakasam | H169: Inorganic solid waste | I169: 29.99 | J169: LAT-120 | K169: 3850 | L169: 115461.5 | M169: 5773.075
A170: 177 | B170: 24.07.20 | C170: 5217 | D170: 295 | E170: Bhagiradha Chemicals & Industries Ltd | F170: Ongole | G170: Prakasam | H170: Inorganic solid waste | I170: 29.99 | J170: LAT-120 | K170: 3850 | L170: 115461.5 | M170: 5773.075
A171: 200 | B171: 03.08.20 | C171: 5684 | D171: 295 | E171: Bhagiradha Chemicals & Industries Ltd | F171: Ongole | G171: Prakasam | H171: Inorganic solid waste | I171: 29.99 | J171: LAT-120 | K171: 3850 | L171: 115461.5 | M171: 5773.075
A172: 201 | B172: 03.08.20 | C172: 5686 | D172: 295 | E172: Bhagiradha Chemicals & Industries Ltd | F172: Ongole | G172: Prakasam | H172: Inorganic solid waste | I172: 29.99 | J172: LAT-120 | K172: 3850 | L172: 115461.5 | M172: 5773.075
A173: 223 | B173: 17.08.20 | C173: 6137 | D173: 295 | E173: Bhagiradha Chemicals & Industries Ltd | F173: Ongole | G173: Prakasam | H173: Inorganic solid waste | I173: 29.99 | J173: LAT-120 | K173: 3850 | L173: 115461.5 | M173: 5773.075
A174: 233 | B174: 20.08.20 | C174: 6266 | D174: 295 | E174: Bhagiradha Chemicals & Industries Ltd | F174: Ongole | G174: Prakasam | H174: Inorganic solid waste | I174: 29.99 | J174: LAT-120 | K174: 3850 | L174: 115461.5 | M174: 5773.075
A175: 243 | B175: 24.08.20 | C175: 6423 | D175: 295 | E175: Bhagiradha Chemicals & Industries Ltd | F175: Ongole | G175: Prakasam | H175: Inorganic solid waste | I175: 29.99 | J175: LAT-120 | K175: 3850 | L175: 115461.5 | M175: 5773.075
A176: 263 | B176: 31.08.20 | C176: 6745 | D176: 295 | E176: Bhagiradha Chemicals & Industries Ltd | F176: Ongole | G176: Prakasam | H176: Inorganic solid waste | I176: 29.99 | J176: LAT-120 | K176: 3850 | L176: 115461.5 | M176: 5773.075
A177: 283 | B177: 08.09.20 | C177: 7066 | D177: 295 | E177: Bhagiradha Chemicals & Industries Ltd | F177: Ongole | G177: Prakasam | H177: Inorganic solid waste | I177: 29.99 | J177: LAT-120 | K177: 3850 | L177: 115461.5 | M177: 5773.075
A178: 310 | B178: 20.09.20 | C178: 7538 | D178: 295 | E178: Bhagiradha Chemicals & Industries Ltd | F178: Ongole | G178: Prakasam | H178: Inorganic solid waste | I178: 29.99 | J178: LAT-120 | K178: 3850 | L178: 115461.5 | M178: 5773.075
A179: 329 | B179: 25.09.20 | C179: 7718 | D179: 295 | E179: Bhagiradha Chemicals & Industries Ltd | F179: Ongole | G179: Prakasam | H179: Inorganic solid waste | I179: 29.99 | J179: LAT-120 | K179: 3850 | L179: 115461.5 | M179: 5773.075
A180: 484 | B180: 20.11.20 | C180: 9688 | D180: 295 | E180: Bhagiradha Chemicals & Industries Ltd | F180: Ongole | G180: Prakasam | H180: Inorganic solid waste | I180: 29.990 | J180: LAT-120 | K180: 3850 | L180: 115461.5 | M180: 5773.075
A181: 151 | B181: 09.07.20 | C181: 4690 | D181: 295 | E181: Bhagiradha Chemicals & Industries Ltd | F181: Ongole | G181: Prakasam | H181: Inorganic solid waste | I181: 29.98 | J181: LAT-120 | K181: 3850 | L181: 115423 | M181: 5771.15
A182: 184 | B182: 27.07.20 | C182: 5343 | D182: 295 | E182: Bhagiradha Chemicals & Industries Ltd | F182: Ongole | G182: Prakasam | H182: Inorganic solid waste | I182: 29.98 | J182: LAT-120 | K182: 3850 | L182: 115423 | M182: 5771.15
A183: 212 | B183: 10.08.20 | C183: 5925 | D183: 295 | E183: Bhagiradha Chemicals & Industries Ltd | F183: Ongole | G183: Prakasam | H183: Inorganic solid waste | I183: 29.98 | J183: LAT-120 | K183: 3850 | L183: 115423 | M183: 5771.15
A184: 213 | B184: 10.08.20 | C184: 5938 | D184: 295 | E184: Bhagiradha Chemicals & Industries Ltd | F184: Ongole | G184: Prakasam | H184: Inorganic solid waste | I184: 29.98 | J184: LAT-120 | K184: 3850 | L184: 115423 | M184: 5771.15
A185: 217 | B185: 12.08.20 | C185: 6008 | D185: 295 | E185: Bhagiradha Chemicals & Industries Ltd | F185: Ongole | G185: Prakasam | H185: Inorganic solid waste | I185: 29.98 | J185: LAT-120 | K185: 3850 | L185: 115423 | M185: 5771.15
A186: 241 | B186: 23.08.20 | C186: 6387 | D186: 295 | E186: Bhagiradha Chemicals & Industries Ltd | F186: Ongole | G186: Prakasam | H186: Inorganic solid waste | I186: 29.98 | J186: LAT-120 | K186: 3850 | L186: 115423 | M186: 5771.15
A187: 300 | B187: 14.09.20 | C187: 7336 | D187: 295 | E187: Bhagiradha Chemicals & Industries Ltd | F187: Ongole | G187: Prakasam | H187: Inorganic solid waste | I187: 29.98 | J187: LAT-120 | K187: 3850 | L187: 115423 | M187: 5771.15
A188: 305 | B188: 18.09.20 | C188: 7454 | D188: 295 | E188: Bhagiradha Chemicals & Industries Ltd | F188: Ongole | G188: Prakasam | H188: Inorganic solid waste | I188: 29.98 | J188: LAT-120 | K188: 3850 | L188: 115423 | M188: 5771.15
A189: 325 | B189: 23.09.20 | C189: 7633 | D189: 295 | E189: Bhagiradha Chemicals & Industries Ltd | F189: Ongole | G189: Prakasam | H189: Inorganic solid waste | I189: 29.98 | J189: LAT-120 | K189: 3850 | L189: 115423 | M189: 5771.15
A190: 356 | B190: 2020-10-03 | C190: 8085 | D190: 295 | E190: Bhagiradha Chemicals & Industries Ltd | F190: Ongole | G190: Prakasam | H190: Inorganic solid waste | I190: 29.980 | J190: LAT-120 | K190: 3850 | L190: 115423 | M190: 5771.15
A191: 421 | B191: 2020-10-23 | C191: 8683 | D191: 295 | E191: Bhagiradha Chemicals & Industries Ltd | F191: Ongole | G191: Prakasam | H191: Inorganic solid waste | I191: 29.980 | J191: LAT-120 | K191: 3850 | L191: 115423 | M191: 5771.15
A192: 162 | B192: 15.07.20 | C192: 4900 | D192: 295 | E192: Bhagiradha Chemicals & Industries Ltd | F192: Ongole | G192: Prakasam | H192: Inorganic solid waste | I192: 29.97 | J192: LAT-120 | K192: 3850 | L192: 115384.5 | M192: 5769.225
A193: 374 | B193: 2020-10-10 | C193: 8329 | D193: 295 | E193: Bhagiradha Chemicals & Industries Ltd | F193: Ongole | G193: Prakasam | H193: Inorganic solid waste | I193: 29.970 | J193: LAT-120 | K193: 3850 | L193: 115384.5 | M193: 5769.225
A194: 473 | B194: 10.11.20 | C194: 9395 | D194: 295 | E194: Bhagiradha Chemicals & Industries Ltd | F194: Ongole | G194: Prakasam | H194: Inorganic solid waste | I194: 29.970 | J194: LAT-120 | K194: 3850 | L194: 115384.5 | M194: 5769.225
A195: 407 | B195: 2020-10-20 | C195: 8570 | D195: 295 | E195: Bhagiradha Chemicals & Industries Ltd | F195: Ongole | G195: Prakasam | H195: Inorganic solid waste | I195: 29.940 | J195: LAT-120 | K195: 3850 | L195: 115269 | M195: 5763.45
A196: 189 | B196: 29.07.20 | C196: 5435 | D196: 295 | E196: Bhagiradha Chemicals & Industries Ltd | F196: Ongole | G196: Prakasam | H196: Inorganic solid waste | I196: 29.9 | J196: LAT-120 | K196: 3850 | L196: 115115 | M196: 5755.75
A197: 195 | B197: 31.07.20 | C197: 5543 | D197: 295 | E197: Bhagiradha Chemicals & Industries Ltd | F197: Ongole | G197: Prakasam | H197: Inorganic solid waste | I197: 29.89 | J197: LAT-120 | K197: 3850 | L197: =+K197*I197 -> 115076.5 | M197: 5753.825
A198: 319 | B198: 22.09.20 | C198: 7593 | D198: 295 | E198: Bhagiradha Chemicals & Industries Ltd | F198: Ongole | G198: Prakasam | H198: Inorganic solid waste | I198: 29.77 | J198: LAT-120 | K198: 3850 | L198: 114614.5 | M198: =+L198*5% -> 5730.725
A199: 139 | B199: 03.07.20 | C199: 4497 | D199: 295 | E199: Bhagiradha Chemicals & Industries Ltd | F199: Ongole | G199: Prakasam | H199: Inorganic solid waste | I199: 29.76 | J199: LAT-120 | K199: 3850 | L199: 114576 | M199: 5728.8
A200: 148 | B200: 08.07.20 | C200: 4631 | D200: 295 | E200: Bhagiradha Chemicals & Industries Ltd | F200: Ongole | G200: Prakasam | H200: Inorganic solid waste | I200: 29.74 | J200: LAT-120 | K200: 3850 | L200: 114499 | M200: 5724.95
... 675 more rows

Sheet 2021-2022
A1: S.NO | B1: Date | C1: Manifest No | D1: Member Ship No | E1: Generator Name | F1: Location | G1: District | H1: Type of Waste | I1: TONS | J1: DM | K1: Disposal Price | L1: Disposal Rev | M1: Escrow | N1: REMARKS
A2: 247 | B2: 2021-06-28 | C2: 22241 | D2: 434 | E2: 3F Industries Ltd | F2: Muthukur | G2: Nellore | H2: ETP Sludge | I2: 23.520 | J2: LAT-95 | K2: =VLOOKUP(C2,'[1]Daily Billing '!$D:$R,15,0) -> 9381 | L2: =+K2*I2 -> 220641.12 | M2: =+L2*5% -> 11032.056
A3: 626 | B3: 2021-10-21 | C3: 29185 | D3: 434 | E3: 3F Industries Ltd | F3: Muthukur | G3: Nellore | H3: ETP Sludge | I3: 8.993 | J3: LAT-95 | K3: =VLOOKUP(C3,'[1]Daily Billing '!$D:$R,15,0) -> 9381 | L3: 84363.333 | M3: 4218.16665
A4: 340 | B4: 2021-07-27 | C4: 23715 | D4: 323 | E4: Adani wilmar limited | F4: thungabhadra | G4: Kurnool | H4: ETP sludge | I4: 12.550 | J4: LAT-106 | K4: =VLOOKUP(C4,'[1]Daily Billing '!$D:$R,15,0) -> 7331 | L4: 92004.05 | M4: 4600.2025
A5: 978 | B5: 2022-02-13 | C5: 5309 | D5: 323 | E5: Adani wilmar limited | F5: thungabhadra | G5: Kurnool | H5: ETP sludge | I5: 15.240 | J5: LAT-106 | K5: =VLOOKUP(C5,'[1]Daily Billing '!$D:$R,15,0) -> 7331 | L5: 111724.44 | M5: 5586.222
A6: 136 | B6: 2021-05-18 | C6: 19985 | D6: 402 | E6: Adani wilmar limited unit -1 | F6: muthukur | G6: Nellore | H6: ETP Sludge | I6: 17.400 | J6: LAT-30 | K6: =VLOOKUP(C6,'[1]Daily Billing '!$D:$R,15,0) -> 7904 | L6: 137529.6 | M6: 6876.48
A7: 296 | B7: 2021-07-14 | C7: 23094 | D7: 402 | E7: Adani wilmar limited unit -1 | F7: muthukur | G7: Nellore | H7: ETP Sludge | I7: 17.000 | J7: LAT-30 | K7: =VLOOKUP(C7,'[1]Daily Billing '!$D:$R,15,0) -> 7904 | L7: 134368 | M7: 6718.4
A8: 453 | B8: 2021-08-24 | C8: 25556 | D8: 402 | E8: Adani wilmar limited unit -1 | F8: muthukur | G8: Nellore | H8: ETP Sludge | I8: 16.340 | J8: LAT-30 | K8: =VLOOKUP(C8,'[1]Daily Billing '!$D:$R,15,0) -> 7904 | L8: 129151.36 | M8: 6457.568
A9: 597 | B9: 2021-10-12 | C9: 28734 | D9: 402 | E9: Adani wilmar limited unit -1 | F9: muthukur | G9: Nellore | H9: ETP Sludge | I9: 16.140 | J9: LAT-30 | K9: =VLOOKUP(C9,'[1]Daily Billing '!$D:$R,15,0) -> 7904 | L9: 127570.56 | M9: 6378.528
A10: 598 | B10: 2021-10-12 | C10: 28734 | D10: 402 | E10: Adani wilmar limited unit -1 | F10: muthukur | G10: Nellore | H10: MEE Salts | I10: 7.200 | J10: LAT-59E | K10: 9737 | L10: 70106.4 | M10: 3505.32
A11: 137 | B11: 2021-05-18 | C11: 19985 | D11: 402 | E11: Adani wilmar limited unit -1 | F11: muthukur | G11: Nellore | H11: MEE Salts | I11: 6.800 | J11: LAT-59K | K11: 9737 | L11: 66211.6 | M11: 3310.58
A12: 297 | B12: 2021-07-14 | C12: 23094 | D12: 402 | E12: Adani wilmar limited unit -1 | F12: muthukur | G12: Nellore | H12: MEE Salts | I12: 6.700 | J12: LAT-59k | K12: 9737 | L12: 65237.9 | M12: 3261.895
A13: 454 | B13: 2021-08-24 | C13: 25556 | D13: 402 | E13: Adani wilmar limited unit -1 | F13: muthukur | G13: Nellore | H13: MEE Salts | I13: 7.200 | J13: LAT-59K | K13: 9737 | L13: 70106.4 | M13: 3505.32
A14: 743 | B14: 03.12.21 | C14: 31656 | D14: 402 | E14: Adani wilmar Ltd-1 | F14: Nellore | G14: Nellore | H14: ETP Sludge | I14: 15.85 | J14: 30 | K14: =VLOOKUP(C14,'[1]Daily Billing '!$D:$R,15,0) -> 7904 | L14: 125278.4 | M14: 6263.92
A15: 742 | B15: 03.12.21 | C15: 31656 | D15: 402 | E15: Adani wilmar Ltd-1 | F15: Nellore | G15: Nellore | H15: MEE Salts | I15: 6.8 | J15: 59K | K15: 9737 | L15: 66211.6 | M15: 3310.58
A16: 877 | B16: 2022-01-07 | C16: 34093 | D16: 402 | E16: Adani Wilmar Ltd-I | F16: Muthukur | G16: Nellore | H16: ETP Sludge | I16: 16.650 | J16: LAT-30 | K16: =VLOOKUP(C16,'[1]Daily Billing '!$D:$R,15,0) -> 7904 | L16: 131601.6 | M16: 6580.08
A17: 972 | B17: 2022-02-11 | C17: 5023 | D17: 402 | E17: Adani Wilmar Ltd-I | F17: Muthukur | G17: Nellore | H17: ETP Sludge | I17: 14.260 | J17: LAT-30 | K17: =VLOOKUP(C17,'[1]Daily Billing '!$D:$R,15,0) -> 7904 | L17: 112711.04 | M17: 5635.552
A18: 876 | B18: 2022-01-07 | C18: 34093 | D18: 402 | E18: Adani Wilmar Ltd-I | F18: Muthukur | G18: Nellore | H18: MEE Slats | I18: 5.300 | J18: LAT-59K | K18: 9737 | L18: 51606.1 | M18: 2580.305
A19: 971 | B19: 2022-02-11 | C19: 5023 | D19: 402 | E19: Adani Wilmar Ltd-I | F19: Muthukur | G19: Nellore | H19: MEE Slats | I19: 6.450 | J19: LAT-59K | K19: 9737 | L19: 62803.65 | M19: 3140.1825
A20: 760 | B20: 06.12.21 | C20: 31787 | D20: 386 | E20: Adani Wilmar Ltd-II | F20: Pantapalem, Muthukur | G20: Pantapalem, Muthukur | H20: ETP Sludge | I20: 20.01 | J20: 30 | K20: =VLOOKUP(C20,'[1]Daily Billing '!$D:$R,15,0) -> 8064 | L20: 161360.64 | M20: 8068.032
A21: 761 | B21: 06.12.21 | C21: 31787 | D21: 386 | E21: Adani Wilmar Ltd-II | F21: Pantapalem, Muthukur | G21: Pantapalem, Muthukur | H21: MEE Salt | I21: 3.7 | J21: 59E | K21: 9637 | L21: 35656.9 | M21: 1782.845
A22: 50 | B22: 21.04.21 | C22: 18505 | D22: 386 | E22: Adani Wilmar Ltd-II | F22: Muthukuru | G22: Nellore | H22: MEE Salts & ETP Sludge | I22: 24.7 | J22: LAT-30 | K22: =VLOOKUP(C22,'[1]Daily Billing '!$D:$R,15,0) -> 7904 | L22: 195228.8 | M22: 9761.44
A23: 130 | B23: 2021-05-15 | C23: 19842 | D23: 386 | E23: Adani Wilmar Ltd-II | F23: Muthukuru | G23: Nellore | H23: MEE Salts & ETP Sludge | I23: 24.770 | J23: LAT-30 | K23: =VLOOKUP(C23,'[1]Daily Billing '!$D:$R,15,0) -> 7904 | L23: 195782.08 | M23: 9789.104
A24: 195 | B24: 2021-06-11 | C24: 21393 | D24: 386 | E24: Adani Wilmar Ltd-II | F24: Muthukuru | G24: Nellore | H24: MEE Salts & ETP Sludge | I24: 24.360 | J24: LAT-30 | K24: =VLOOKUP(C24,'[1]Daily Billing '!$D:$R,15,0) -> 7904 | L24: 192541.44 | M24: 9627.072
A25: 223 | B25: 2021-06-21 | C25: 21893 | D25: 386 | E25: Adani Wilmar Ltd-II | F25: Muthukuru | G25: Nellore | H25: MEE Salts & ETP Sludge | I25: 24.440 | J25: LAT-30 | K25: =VLOOKUP(C25,'[1]Daily Billing '!$D:$R,15,0) -> 7904 | L25: 193173.76 | M25: 9658.688
A26: 346 | B26: 2021-07-28 | C26: 23853 | D26: 386 | E26: Adani Wilmar Ltd-II | F26: Muthukuru | G26: Nellore | H26: MEE Salts & ETP Sludge | I26: 21.940 | J26: LAT-30 | K26: =VLOOKUP(C26,'[1]Daily Billing '!$D:$R,15,0) -> 7904 | L26: 173413.76 | M26: 8670.688
A27: 432 | B27: 2021-08-19 | C27: 25244 | D27: 386 | E27: Adani Wilmar Ltd-II | F27: Muthukuru | G27: Nellore | H27: ETP Sludge | I27: 16.000 | J27: LAT-30 | K27: =VLOOKUP(C27,'[1]Daily Billing '!$D:$R,15,0) -> 7904 | L27: 126464 | M27: 6323.2
A28: 507 | B28: 2021-09-13 | C28: 26705 | D28: 386 | E28: Adani Wilmar Ltd-II | F28: Muthukuru | G28: Nellore | H28: ETP Sludge | I28: 17.290 | J28: LAT-30 | K28: =VLOOKUP(C28,'[1]Daily Billing '!$D:$R,15,0) -> 7904 | L28: 136660.16 | M28: 6833.008
A29: 545 | B29: 2021-09-23 | C29: 27431 | D29: 386 | E29: Adani Wilmar Ltd-II | F29: Muthukuru | G29: Nellore | H29: ETP Sludge | I29: 18.400 | J29: LAT-30 | K29: =VLOOKUP(C29,'[1]Daily Billing '!$D:$R,15,0) -> 7904 | L29: 145433.6 | M29: 7271.68
A30: 583 | B30: 2021-10-05 | C30: 28240 | D30: 386 | E30: Adani Wilmar Ltd-II | F30: Muthukuru | G30: Nellore | H30: MEE Salts & ETP Sludge | I30: 8.940 | J30: LAT-30 | K30: =VLOOKUP(C30,'[1]Daily Billing '!$D:$R,15,0) -> 7904 | L30: 70661.76 | M30: 3533.088
A31: 586 | B31: 2021-10-06 | C31: 28334 | D31: 386 | E31: Adani Wilmar Ltd-II | F31: Muthukuru | G31: Nellore | H31: ETP Sludge | I31: 20.410 | J31: LAT-30 | K31: =VLOOKUP(C31,'[1]Daily Billing '!$D:$R,15,0) -> 7904 | L31: 161320.64 | M31: 8066.032
A32: 624 | B32: 2021-10-21 | C32: 29192 | D32: 386 | E32: Adani Wilmar Ltd-II | F32: Muthukuru | G32: Nellore | H32: ETP Sludge | I32: 17.080 | J32: LAT-30 | K32: =VLOOKUP(C32,'[1]Daily Billing '!$D:$R,15,0) -> 7904 | L32: 135000.32 | M32: 6750.016
A33: 671 | B33: 2021-11-03 | C33: 29992 | D33: 386 | E33: Adani Wilmar Ltd-II | F33: Muthukuru | G33: Nellore | H33: MEE Salts | I33: 7.200 | J33: LAT-30 | K33: =VLOOKUP(C33,'[1]Daily Billing '!$D:$R,15,0) -> 7904 | L33: 56908.8 | M33: 2845.44
A34: 882 | B34: 2022-01-08 | C34: 34181 | D34: 386 | E34: Adani Wilmar Ltd-II | F34: Muthukuru | G34: Nellore | H34: MEE Salts & ETP Sludge | I34: 24.610 | J34: LAT-30 | K34: =VLOOKUP(C34,'[1]Daily Billing '!$D:$R,15,0) -> 8064 | L34: 198455.04 | M34: =+L34*5% -> 9922.752
A35: 953 | B35: 2022-02-05 | C35: 4376 | D35: 386 | E35: Adani Wilmar Ltd-II | F35: Muthukuru | G35: Nellore | H35: ETP Sludge | I35: 14.730 | J35: LAT-30 | K35: =VLOOKUP(C35,'[1]Daily Billing '!$D:$R,15,0) -> 8064 | L35: 118782.72 | M35: 5939.136
A36: 1096 | B36: 2022-03-22 | C36: 10006 | D36: 386 | E36: Adani Wilmar Ltd-II | F36: Muthukuru | G36: Nellore | H36: ETP Sludge | I36: 15.820 | J36: LAT-30 | K36: =VLOOKUP(C36,'[1]Daily Billing '!$D:$R,15,0) -> 8064 | L36: 127572.48 | M36: 6378.624
A37: 431 | B37: 2021-08-19 | C37: 25244 | D37: 386 | E37: Adani Wilmar Ltd-II | F37: Muthukuru | G37: Nellore | H37: MEE Salts | I37: 8.860 | J37: LAT-59E | K37: 9637 | L37: 85383.82 | M37: 4269.191
A38: 506 | B38: 2021-09-13 | C38: 26705 | D38: 386 | E38: Adani Wilmar Ltd-II | F38: Muthukuru | G38: Nellore | H38: MEE Salts | I38: 7.100 | J38: LAT-59E | K38: 9637 | L38: 68422.7 | M38: 3421.135
A39: 544 | B39: 2021-09-23 | C39: 27431 | D39: 386 | E39: Adani Wilmar Ltd-II | F39: Muthukuru | G39: Nellore | H39: MEE Salts | I39: 6.500 | J39: LAT-59E | K39: 9637 | L39: 62640.5 | M39: 3132.025
A40: 672 | B40: 2021-11-03 | C40: 29992 | D40: 386 | E40: Adani Wilmar Ltd-II | F40: Muthukuru | G40: Nellore | H40: ETP Sludge | I40: 17.580 | J40: LAT-59E | K40: 9637 | L40: 169418.46 | M40: 8470.923
A41: 952 | B41: 2022-02-05 | C41: 4376 | D41: 386 | E41: Adani Wilmar Ltd-II | F41: Muthukuru | G41: Nellore | H41: MEE Salts | I41: 9.500 | J41: LAT-59E | K41: 9637 | L41: 91551.5 | M41: 4577.575
A42: 1095 | B42: 2022-03-22 | C42: 10006 | D42: 386 | E42: Adani Wilmar Ltd-II | F42: Muthukuru | G42: Nellore | H42: MEE Salts | I42: 8.550 | J42: LAT-59E | K42: 9637 | L42: 82396.35 | M42: 4119.8175
A43: 585 | B43: 2021-10-06 | C43: 28334 | D43: 386 | E43: Adani Wilmar Ltd-II | F43: Muthukuru | G43: Nellore | H43: MEE Salts | I43: 4.500 | J43: LAT-59K | K43: 9637 | L43: 43366.5 | M43: 2168.325
A44: 623 | B44: 2021-10-21 | C44: 29192 | D44: 386 | E44: Adani Wilmar Ltd-II | F44: Muthukuru | G44: Nellore | H44: MEE Salts | I44: 6.800 | J44: LAT-59K | K44: 9637 | L44: 65531.6 | M44: 3276.58
A45: 332 | B45: 2021-07-25 | C45: 23648 | D45: 642 | E45: AGM Textiles | F45: Nagari | G45: Chittoor | H45: ETP Sludge | I45: 17.070 | J45: LAT-24 | K45: =VLOOKUP(C45,'[1]Daily Billing '!$D:$R,15,0) -> 7534 | L45: 128605.38 | M45: 6430.269
A46: 611 | B46: 2021-10-17 | C46: 28949 | D46: 642 | E46: AGM Textiles | F46: Nagari | G46: Chittoor | H46: ETP Sludge | I46: 15.390 | J46: LAT-24 | K46: =VLOOKUP(C46,'[1]Daily Billing '!$D:$R,15,0) -> 7534 | L46: 115948.26 | M46: 5797.413
A47: 29 | B47: 12.04.21 | C47: 18056 | D47: 509 | E47: Agrisol India Pvt Ltd | F47: Dhone | G47: Kurnool | H47: Evaporation salt | I47: 24.42 | J47: LAT-59BT | K47: =VLOOKUP(C47,'[1]Daily Billing '!$D:$R,15,0) -> 8789 | L47: 214627.38 | M47: 10731.369
A48: 197 | B48: 2021-06-12 | C48: 21459 | D48: 509 | E48: Agrisol India Pvt Ltd | F48: Dhone | G48: Kurnool | H48: Evaporation salt | I48: 24.110 | J48: LAT-59BT | K48: =VLOOKUP(C48,'[1]Daily Billing '!$D:$R,15,0) -> 8789 | L48: 211902.79 | M48: 10595.1395
A49: 334 | B49: 2021-07-25 | C49: 23651 | D49: 509 | E49: Agrisol India Pvt Ltd | F49: Dhone | G49: Kurnool | H49: Evaporation salt | I49: 24.810 | J49: LAT-59BT | K49: =VLOOKUP(C49,'[1]Daily Billing '!$D:$R,15,0) -> 8789 | L49: 218055.09 | M49: 10902.7545
A50: 472 | B50: 2021-08-30 | C50: 25918 | D50: 509 | E50: Agrisol India Pvt Ltd | F50: Dhone | G50: Kurnool | H50: Evaporation salt | I50: 24.110 | J50: LAT-59H | K50: =VLOOKUP(C50,'[1]Daily Billing '!$D:$R,15,0) -> 8544 | L50: 205995.84 | M50: 10299.792
A51: 556 | B51: 2021-09-26 | C51: 27632 | D51: 509 | E51: Agrisol India Pvt Ltd | F51: Dhone | G51: Kurnool | H51: Evaporation salt | I51: 23.570 | J51: LAT-59H | K51: =VLOOKUP(C51,'[1]Daily Billing '!$D:$R,15,0) -> 8554 | L51: 201617.78 | M51: 10080.889
A52: 937 | B52: 2022-01-31 | C52: 3690 | D52: 509 | E52: Agrisol India Pvt Ltd | F52: Dhone | G52: Kurnool | H52: Evaporation salt | I52: 23.490 | J52: LAT-59H | K52: =VLOOKUP(C52,'[1]Daily Billing '!$D:$R,15,0) -> 8554 | L52: 200933.46 | M52: 10046.673
A53: 1089 | B53: 2022-03-19 | C53: 9643 | D53: 509 | E53: Agrisol India Pvt Ltd | F53: Dhone | G53: Kurnool | H53: Evaporation Solids | I53: 24.660 | J53: LAT-59H | K53: =VLOOKUP(C53,'[1]Daily Billing '!$D:$R,15,0) -> 8544 | L53: 210695.04 | M53: 10534.752
A54: 790 | B54: 16.12.21 | C54: 32407 | D54: 509 | E54: Agrisol India Pvt.Ltd. | F54: Kurnool | G54: Kurnool | H54: Evaporation salts | I54: 24.25 | J54: 59H | K54: =VLOOKUP(C54,'[1]Daily Billing '!$D:$R,15,0) -> 8554 | L54: 207434.5 | M54: 10371.725
A55: 737 | B55: 2021-11-29 | C55: 31348 | D55: 685 | E55: Allegro Speciality Chemicals Pvt Ltd | F55: Ozili | G55: Nellore | H55: Inorganic Salts | I55: 2.135 | J55: LAT-27 | K55: =VLOOKUP(C55,'[1]Daily Billing '!$D:$R,15,0) -> 4471 | L55: 9545.585 | M55: 477.27925
A56: 495 | B56: 2021-09-07 | C56: 26479 | D56: 659 | E56: Amar raja- Automotive batteries unit-3 | F56: Nunegundla Palii | G56: Chittoor | H56: ETP Sludge | I56: 16.540 | J56: LAT-69 | K56: =VLOOKUP(C56,'[1]Daily Billing '!$D:$R,15,0) -> 7097 | L56: 117384.38 | M56: 5869.219
A57: 554 | B57: 2021-09-25 | C57: 27546 | D57: 659 | E57: Amar raja- Automotive batteries unit-3 | F57: Nunegundla Palii | G57: Chittoor | H57: ETP Sludge | I57: 15.880 | J57: LAT-69 | K57: =VLOOKUP(C57,'[1]Daily Billing '!$D:$R,15,0) -> 7097 | L57: 112700.36 | M57: 5635.018
A58: 718 | B58: 2021-11-24 | C58: 31097 | D58: 659 | E58: Amar raja- Automotive batteries unit-3 | F58: Nunegundla Palii | G58: Chittoor | H58: ETP Sludge | I58: 25.000 | J58: LAT-69 | K58: =VLOOKUP(C58,'[1]Daily Billing '!$D:$R,15,0) -> 7097 | L58: 177425 | M58: 8871.25
A59: 886 | B59: 2022-01-10 | C59: 34226 | D59: 659 | E59: Amar raja- Automotive batteries unit-3 | F59: Nunegundla Palii | G59: Chittoor | H59: ETP Sludge | I59: 23.640 | J59: LAT-69 | K59: =VLOOKUP(C59,'[1]Daily Billing '!$D:$R,15,0) -> 7097 | L59: 167773.08 | M59: 8388.654
A60: 1023 | B60: 2022-02-26 | C60: 6939 | D60: 659 | E60: Amar raja- Automotive batteries unit-3 | F60: Nunegundla Palii | G60: Chittoor | H60: ETP Sludge | I60: 23.990 | J60: LAT-69 | K60: 7097 | L60: 170257.03 | M60: 8512.8515
A61: 805 | B61: 21.12.21 | C61: 32822 | D61: 661 | E61: Amara raja batteries Ltd-Small Battery Unit | F61: Nunegundla Palli | G61: Nunegundla Palli | H61: ETP Suldge | I61: 24.39 | J61: 69 | K61: =VLOOKUP(C61,'[1]Daily Billing '!$D:$R,15,0) -> 7097 | L61: 173095.83 | M61: 8654.7915
A62: 804 | B62: 20.12.21 | C62: 32794 | D62: 226 | E62: Amara raja batteries Ltd-TBU | F62: Chitoor | G62: Chitoor | H62: Filter Bed Sand | I62: 6.76 | J62: 43 | K62: =VLOOKUP(C62,'[1]Daily Billing '!$D:$R,15,0) -> 6070 | L62: 41033.2 | M62: 2051.66
A63: 1088 | B63: 2022-03-19 | C63: 9690 | D63: 660 | E63: Amara-raja Automotive Batteries Ltd | F63: Nunegundla Palii | G63: Chittoor | H63: ETP Sludge | I63: 22.940 | J63: LAT-85 | K63: =VLOOKUP(C63,'[1]Daily Billing '!$D:$R,15,0) -> 7097 | L63: 162805.18 | M63: 8140.259
A64: 275 | B64: 2021-07-07 | C64: 22777 | D64: 226 | E64: Amarraja Batteries | F64: Renigunta | G64: Chittoor | H64: Used Respirators | I64: 6.400 | J64: LAT-110 | K64: =VLOOKUP(C64,'[1]Daily Billing '!$D:$R,15,0) -> 14000 | L64: 89600 | M64: 4480
A65: 364 | B65: 2021-08-01 | C65: 24182 | D65: 226 | E65: Amarraja Batteries | F65: Renigunta | G65: Chittoor | H65: Used Respirators | I65: 7.400 | J65: LAT-110 | K65: =VLOOKUP(C65,'[1]Daily Billing '!$D:$R,15,0) -> 14000 | L65: 103600 | M65: 5180
A66: 40 | B66: 16.04.21 | C66: 18286 | D66: 226 | E66: Amarraja Batteries | F66: Renigunta | G66: Chittoor | H66: ETP Sludge | I66: 19.01 | J66: LAT-192 | K66: =VLOOKUP(C66,'[1]Daily Billing '!$D:$R,15,0) -> 9927 | L66: =+K66*I66 -> 188712.27 | M66: =+L66*5% -> 9435.6135
A67: 172 | B67: 2021-05-31 | C67: 20754 | D67: 226 | E67: Amarraja Batteries | F67: Renigunta | G67: Chittoor | H67: ETP Sludge | I67: 22.110 | J67: LAT-192 | K67: =VLOOKUP(C67,'[1]Daily Billing '!$D:$R,15,0) -> 9927 | L67: 219485.97 | M67: 10974.2985
A68: 328 | B68: 2021-07-23 | C68: 23541 | D68: 226 | E68: Amarraja Batteries | F68: Renigunta | G68: Chittoor | H68: ETP Sludge | I68: 14.300 | J68: LAT-192 | K68: =VLOOKUP(C68,'[1]Daily Billing '!$D:$R,15,0) -> 9927 | L68: 141956.1 | M68: 7097.805
A69: 501 | B69: 2021-09-09 | C69: 26609 | D69: 226 | E69: Amarraja Batteries | F69: Renigunta | G69: Chittoor | H69: ETP Sludge | I69: 16.620 | J69: LAT-192 | K69: =VLOOKUP(C69,'[1]Daily Billing '!$D:$R,15,0) -> 9927 | L69: 164986.74 | M69: 8249.337
A70: 707 | B70: 2021-11-18 | C70: 30762 | D70: 226 | E70: Amarraja Batteries | F70: Renigunta | G70: Chittoor | H70: ETP Sludge | I70: 24.400 | J70: LAT-192 | K70: =VLOOKUP(C70,'[1]Daily Billing '!$D:$R,15,0) -> 9557 | L70: 233190.8 | M70: 11659.54
A71: 962 | B71: 2022-02-09 | C71: 4742 | D71: 226 | E71: Amarraja Batteries | F71: Renigunta | G71: Chittoor | H71: ETP Sludge | I71: 21.500 | J71: LAT-206 | K71: =VLOOKUP(C71,'[1]Daily Billing '!$D:$R,15,0) -> 9557 | L71: 205475.5 | M71: 10273.775
A72: 1115 | B72: 2022-03-27 | C72: 10672 | D72: 226 | E72: Amarraja Batteries | F72: Renigunta | G72: Chittoor | H72: ETP Sludge | I72: 20.060 | J72: LAT-206 | K72: =VLOOKUP(C72,'[1]Daily Billing '!$D:$R,15,0) -> 9557 | L72: 191713.42 | M72: 9585.671
A73: 527 | B73: 2021-09-18 | C73: 27096 | D73: 226 | E73: Amarraja Batteries | F73: Renigunta | G73: Chittoor | H73: Filter Bed Sand | I73: 16.950 | J73: LAT-43 | K73: =VLOOKUP(C73,'[1]Daily Billing '!$D:$R,15,0) -> 5570 | L73: 94411.5 | M73: 4720.575
A74: 87 | B74: 2021-05-02 | C74: 19109 | D74: 660 | E74: Amarraja Batteries(MVRLA & Automotive) | F74: Bangarupalem | G74: Chittoor | H74: ETP Sludge | I74: 24.890 | J74: LAT-85 | K74: =VLOOKUP(C74,'[1]Daily Billing '!$D:$R,15,0) -> 7097 | L74: 176644.33 | M74: 8832.2165
A75: 119 | B75: 2021-05-12 | C75: 19653 | D75: 660 | E75: Amarraja Batteries(MVRLA & Automotive) | F75: Bangarupalem | G75: Chittoor | H75: ETP Sludge | I75: 24.640 | J75: LAT-85 | K75: =VLOOKUP(C75,'[1]Daily Billing '!$D:$R,15,0) -> 7097 | L75: 174870.08 | M75: 8743.504
A76: 120 | B76: 2021-05-12 | C76: 19679 | D76: 660 | E76: Amarraja Batteries(MVRLA & Automotive) | F76: Bangarupalem | G76: Chittoor | H76: ETP Sludge | I76: 24.910 | J76: LAT-85 | K76: =VLOOKUP(C76,'[1]Daily Billing '!$D:$R,15,0) -> 7097 | L76: 176786.27 | M76: 8839.3135
A77: 126 | B77: 2021-05-13 | C77: 19736 | D77: 660 | E77: Amarraja Batteries(MVRLA & Automotive) | F77: Bangarupalem | G77: Chittoor | H77: ETP Sludge | I77: 24.710 | J77: LAT-85 | K77: =VLOOKUP(C77,'[1]Daily Billing '!$D:$R,15,0) -> 7097 | L77: 175366.87 | M77: 8768.3435
A78: 149 | B78: 2021-05-24 | C78: 20245 | D78: 660 | E78: Amarraja Batteries(MVRLA & Automotive) | F78: Bangarupalem | G78: Chittoor | H78: ETP Sludge | I78: 24.600 | J78: LAT-85 | K78: =VLOOKUP(C78,'[1]Daily Billing '!$D:$R,15,0) -> 7097 | L78: 174586.2 | M78: 8729.31
A79: 169 | B79: 30.05.23 | C79: 20695 | D79: 660 | E79: Amarraja Batteries(MVRLA & Automotive) | F79: Bangarupalem | G79: Chittoor | H79: ETP Sludge | I79: 22.750 | J79: LAT-85 | K79: =VLOOKUP(C79,'[1]Daily Billing '!$D:$R,15,0) -> 7097 | L79: 161456.75 | M79: 8072.8375
A80: 253 | B80: 2021-06-29 | C80: 22361 | D80: 660 | E80: Amarraja Batteries(MVRLA & Automotive) | F80: Bangarupalem | G80: Chittoor | H80: ETP Sludge | I80: 14.600 | J80: LAT-85 | K80: =VLOOKUP(C80,'[1]Daily Billing '!$D:$R,15,0) -> 7097 | L80: 103616.2 | M80: 5180.81
A81: 458 | B81: 2021-08-25 | C81: 25618 | D81: 660 | E81: Amarraja Batteries(MVRLA & Automotive) | F81: Bangarupalem | G81: Chittoor | H81: ETP Sludge | I81: 23.820 | J81: LAT-85 | K81: =VLOOKUP(C81,'[1]Daily Billing '!$D:$R,15,0) -> 7097 | L81: 169050.54 | M81: 8452.527
A82: 280 | B82: 2021-07-09 | C82: 22879 | D82: 661 | E82: Amarraja Batteries(Small Battery) | F82: Nunegundlapalli | G82: Chittoor | H82: ETP Sludge | I82: 25.000 | J82: LAT-69 | K82: =VLOOKUP(C82,'[1]Daily Billing '!$D:$R,15,0) -> 6071 | L82: 151775 | M82: 7588.75
A83: 381 | B83: 2021-08-07 | C83: 24563 | D83: 662 | E83: Amarraja Batteries(TUBULAR) | F83: Bangarupalem | G83: Chittoor | H83: ETP Sludge | I83: 23.260 | J83: LAT-29 | K83: =VLOOKUP(C83,'[1]Daily Billing '!$D:$R,15,0) -> 7097 | L83: 165076.22 | M83: 8253.811
A84: 512 | B84: 2021-09-15 | C84: 26810 | D84: 662 | E84: Amarraja Batteries(TUBULAR) | F84: Bangarupalem | G84: Chittoor | H84: ETP Sludge | I84: 16.890 | J84: LAT-29 | K84: =VLOOKUP(C84,'[1]Daily Billing '!$D:$R,15,0) -> 7097 | L84: 119868.33 | M84: 5993.4165
A85: 540 | B85: 2021-09-22 | C85: 27297 | D85: 662 | E85: Amarraja Batteries(TUBULAR) | F85: Bangarupalem | G85: Chittoor | H85: ETP Sludge | I85: 16.200 | J85: LAT-29 | K85: =VLOOKUP(C85,'[1]Daily Billing '!$D:$R,15,0) -> 7097 | L85: 114971.4 | M85: 5748.57
A86: 1117 | B86: 2022-03-27 | C86: 10669 | D86: 662 | E86: Amarraja Batteries(TUBULAR) | F86: Bangarupalem | G86: Chittoor | H86: ETP Sludge | I86: 7.610 | J86: LAT-29 | K86: =VLOOKUP(C86,'[1]Daily Billing '!$D:$R,15,0) -> 7097 | L86: 54008.17 | M86: 2700.4085
A87: 1126 | B87: 2022-03-30 | C87: 11051 | D87: 662 | E87: Amarraja Batteries(TUBULAR) | F87: Bangarupalem | G87: Chittoor | H87: ETP Sludge | I87: 7.900 | J87: LAT-29 | K87: =VLOOKUP(C87,'[1]Daily Billing '!$D:$R,15,0) -> 7097 | L87: 56066.3 | M87: 2803.315
A88: 131 | B88: 16.05.21 | C88: 19868 | D88: 662 | E88: Amarraja Batteries(TUBULAR) | F88: Bangarupalem | G88: Chittoor | H88: ETP Sludge | I88: 24.180 | J88: LAT-69 | K88: =VLOOKUP(C88,'[1]Daily Billing '!$D:$R,15,0) -> 7097 | L88: 171605.46 | M88: 8580.273
A89: 872 | B89: 2022-01-06 | C89: 33992 | D89: 293 | E89: Andhra Medi Pharma India Pvt Ltd | F89: Bapulapadu | G89: Krishna | H89: ETP Sludge | I89: 5.640 | J89: LAT-207 | K89: =VLOOKUP(C89,'[1]Daily Billing '!$D:$R,15,0) -> 21728 | L89: 122545.92 | M89: 6127.296
A90: 861 | B90: 2022-01-03 | C90: 33670 | D90: 682 | E90: Anvitha Life Care Pvt Ltd | F90: Ozili | G90: Nellore | H90: Spent Carbon | I90: 1.500 | J90: LAT-24 | K90: 7434 | L90: 11151 | M90: 557.55
A91: 862 | B91: 2022-01-03 | C91: 33670 | D91: 682 | E91: Anvitha Life Care Pvt Ltd | F91: Ozili | G91: Nellore | H91: ETP Sludge | I91: 0.720 | J91: LAT-48 | K91: 6497 | L91: 4677.84 | M91: 233.892
A92: 860 | B92: 2022-01-03 | C92: 33670 | D92: 682 | E92: Anvitha Life Care Pvt Ltd | F92: Ozili | G92: Nellore | H92: Evaporation Salt | I92: 2.570 | J92: LAT-58 | K92: =VLOOKUP(C92,'[1]Daily Billing '!$D:$R,15,0) -> 3517 | L92: 9038.69 | M92: 451.9345
A93: 893 | B93: 2022-01-13 | C93: 34493 | D93: 696 | E93: APL Health Care Ltd | F93: Naidupeta | G93: Nellore | H93: ETP Sludge | I93: 6.700 | J93: LAT-115 | K93: =VLOOKUP(C93,'[1]Daily Billing '!$D:$R,15,0) -> 11849 | L93: 79388.3 | N93: BDMA Customer, Escrow Not Applicable
A94: 748 | B94: 03.12.21 | C94: 31670 | D94: 645 | E94: Apollo Tyres Limited | F94: Chinapanduru,Chittoor | G94: Chinapanduru,Chittoor | H94: ETP Sludge | I94: 2.69 | J94: 201 | K94: 10194 | L94: 27421.86 | M94: =+L94*5% -> 1371.093
A95: 746 | B95: 03.12.21 | C95: 31670 | D95: 645 | E95: Apollo Tyres Limited | F95: Chinapanduru,Chittoor | G95: Chinapanduru,Chittoor | H95: ATFD Salt | I95: 5.24 | J95: 59M | K95: 5520 | L95: 28924.8 | M95: 1446.24
A96: 747 | B96: 03.12.21 | C96: 31670 | D96: 645 | E96: Apollo Tyres Limited | F96: Chinapanduru,Chittoor | G96: Chinapanduru,Chittoor | H96: Lime Sludge | I96: 0.48 | J96: DLF | K96: =VLOOKUP(C96,'[1]Daily Billing '!$D:$R,15,0) -> 3017 | L96: 1448.16 | M96: 72.408
A97: 232 | B97: 2021-06-23 | C97: 22074 | D97: 645 | E97: Apollo tyres Limited | F97: Varadaiapalem | G97: Chittoor | H97: ATFD salt | I97: 5.600 | J97: LAT-59M | K97: =VLOOKUP(C97,'[1]Daily Billing '!$D:$R,15,0) -> 5520 | L97: 30912 | M97: 1545.6
A98: 524 | B98: 2021-09-17 | C98: 26971 | D98: 645 | E98: Apollo tyres Limited | F98: Varadaiapalem | G98: Chittoor | H98: ATFD salt | I98: 5.320 | J98: LAT-59M | K98: =VLOOKUP(C98,'[1]Daily Billing '!$D:$R,15,0) -> 5520 | L98: 29366.4 | M98: 1468.32
A99: 1038 | B99: 03.03.22 | C99: 7572 | D99: 645 | E99: Apollo Tyres Ltd | F99: Varadaiapalem | G99: Chittoor | H99: ETP Sludge | I99: 3.810 | J99: LAT-201 | K99: =VLOOKUP(C99,'[1]Daily Billing '!$D:$R,15,0) -> 10194 | L99: 38839.14 | M99: 1941.957
A100: 1039 | B100: 03.03.22 | C100: 7572 | D100: 645 | E100: Apollo Tyres Ltd | F100: Varadaiapalem | G100: Chittoor | H100: AFTD Salts | I100: 3.620 | J100: LAT-59M | K100: 5520 | L100: 19982.4 | M100: 999.12
A101: 539 | B101: 2021-09-22 | C101: 27350 | D101: 494 | E101: Ardee Industries Pvt Ltd | F101: Naidupeta | G101: Nellore | H101: Lead slag | I101: 24.740 | J101: LAT-54 | K101: =VLOOKUP(C101,'[1]Daily Billing '!$D:$R,15,0) -> 5500 | L101: 136070 | M101: 6803.5
A102: 603 | B102: 2021-10-13 | C102: 28807 | D102: 494 | E102: Ardee Industries Pvt Ltd | F102: Naidupeta | G102: Nellore | H102: Lead slag | I102: 24.820 | J102: LAT-54 | K102: =VLOOKUP(C102,'[1]Daily Billing '!$D:$R,15,0) -> 5500 | L102: 136510 | M102: 6825.5
A103: 1108 | B103: 2022-03-25 | C103: 10374 | D103: 494 | E103: Ardee Industries Pvt Ltd | F103: Naidupeta | G103: Nellore | H103: Lead slag | I103: 22.480 | J103: LAT-83 | K103: =VLOOKUP(C103,'[1]Daily Billing '!$D:$R,15,0) -> 5500 | L103: 123640 | M103: 6182
A104: 799 | B104: 18.12.21 | C104: 32652 | E104: Ardee Industries Pvt Ltd., | F104: Naidupet, Menakuru | G104: Naidupet, Menakuru | H104: Lead slag | I104: 24.26 | J104: 83 | K104: =VLOOKUP(C104,'[1]Daily Billing '!$D:$R,15,0) -> 5520 | L104: 133915.2 | M104: 6695.76
A105: 154 | B105: 2021-05-26 | C105: 20438 | D105: 446 | E105: Aurobindo Pharma Ltd Unit-X | F105: Naidupeta | G105: Nellore | H105: ETP Sludge | I105: 6.500 | J105: LAT-106 | K105: =VLOOKUP(C105,'[1]Daily Billing '!$D:$R,15,0) -> 6475 | L105: 42087.5 | N105: BDMA Customer, Escrow Not Applicable
A106: 282 | B106: 2021-07-10 | C106: 22952 | D106: 446 | E106: Aurobindo Pharma Ltd Unit-X | F106: Naidupeta | G106: Nellore | H106: ETP Sludge | I106: 10.000 | J106: LAT-106 | K106: =VLOOKUP(C106,'[1]Daily Billing '!$D:$R,15,0) -> 6475 | L106: 64750 | N106: BDMA Customer, Escrow Not Applicable
A107: 307 | B107: 2021-07-17 | C107: 23248 | D107: 446 | E107: Aurobindo Pharma Ltd Unit-X | F107: Naidupeta | G107: Nellore | H107: ETP Sludge | I107: 7.300 | J107: LAT-106 | K107: =VLOOKUP(C107,'[1]Daily Billing '!$D:$R,15,0) -> 6475 | L107: 47267.5 | N107: BDMA Customer, Escrow Not Applicable
A108: 429 | B108: 2021-08-19 | C108: 25234 | D108: 446 | E108: Aurobindo Pharma Ltd Unit-X | F108: Naidupeta | G108: Nellore | H108: ETP Sludge | I108: 7.000 | J108: LAT-106 | K108: =VLOOKUP(C108,'[1]Daily Billing '!$D:$R,15,0) -> 7367 | L108: 51569 | N108: BDMA Customer, Escrow Not Applicable
A109: 546 | B109: 2021-09-23 | C109: 27406 | D109: 446 | E109: Aurobindo Pharma Ltd Unit-X | F109: Naidupeta | G109: Nellore | H109: ETP Sludge | I109: 6.900 | J109: LAT-106 | K109: =VLOOKUP(C109,'[1]Daily Billing '!$D:$R,15,0) -> 7367 | L109: 50832.3 | N109: BDMA Customer, Escrow Not Applicable
A110: 1066 | B110: 13.03.22 | C110: 8911 | D110: 227 | E110: Avanthi Leathers Pvt Ltd | F110: Varadaiapalem | G110: Chittoor | H110: ETP Sludge | I110: 21.370 | J110: LAT-88 | K110: =VLOOKUP(C110,'[1]Daily Billing '!$D:$R,15,0) -> 10063 | L110: 215046.31 | M110: =+L110*5% -> 10752.3155
A111: 1067 | B111: 13.03.22 | C111: 8871 | D111: 227 | E111: Avanthi Leathers Pvt Ltd | F111: Varadaiapalem | G111: Chittoor | H111: ETP Sludge | I111: 11.860 | J111: LAT-88 | K111: =VLOOKUP(C111,'[1]Daily Billing '!$D:$R,15,0) -> 10063 | L111: 119347.18 | M111: 5967.359
A112: 39 | B112: 16.04.21 | C112: 18278 | D112: 410 | E112: AWM Consulting Ltd | F112: vedunkuppam | G112: Chittoor | H112: Incineration Ash | I112: 3.93 | J112: DLF | K112: =VLOOKUP(C112,'[1]Daily Billing '!$D:$R,15,0) -> 3017 | L112: 11856.81 | M112: 592.8405
A113: 91 | B113: 2021-05-03 | C113: 19192 | D113: 410 | E113: AWM Consulting Ltd | F113: vedunkuppam | G113: Chittoor | H113: Incineration Ash | I113: 4.745 | J113: DLF | K113: =VLOOKUP(C113,'[1]Daily Billing '!$D:$R,15,0) -> 3017 | L113: 14315.665 | M113: 715.78325
A114: 146 | B114: 2021-05-21 | C114: 20162 | D114: 410 | E114: AWM Consulting Ltd | F114: vedunkuppam | G114: Chittoor | H114: Incineration Ash | I114: 3.430 | J114: DLF | K114: =VLOOKUP(C114,'[1]Daily Billing '!$D:$R,15,0) -> 3017 | L114: 10348.31 | M114: 517.4155
A115: 164 | B115: 2021-05-28 | C115: 20573 | D115: 410 | E115: AWM Consulting Ltd | F115: vedunkuppam | G115: Chittoor | H115: Incineration Ash | I115: 3.470 | J115: DLF | K115: =VLOOKUP(C115,'[1]Daily Billing '!$D:$R,15,0) -> 3017 | L115: 10468.99 | M115: 523.4495
A116: 215 | B116: 2021-06-18 | C116: 21817 | D116: 410 | E116: AWM Consulting Ltd | F116: vedunkuppam | G116: Chittoor | H116: Incineration Ash | I116: 3.440 | J116: DLF | K116: =VLOOKUP(C116,'[1]Daily Billing '!$D:$R,15,0) -> 3017 | L116: 10378.48 | M116: 518.924
A117: 256 | B117: 2021-06-30 | C117: 22480 | D117: 410 | E117: AWM Consulting Ltd | F117: vedunkuppam | G117: Chittoor | H117: Incineration Ash | I117: 3.450 | J117: DLF | K117: =VLOOKUP(C117,'[1]Daily Billing '!$D:$R,15,0) -> 3017 | L117: 10408.65 | M117: 520.4325
A118: 298 | B118: 2021-07-14 | C118: 23111 | D118: 410 | E118: AWM Consulting Ltd | F118: vedunkuppam | G118: Chittoor | H118: Incineration Ash | I118: 3.640 | J118: DLF | K118: =VLOOKUP(C118,'[1]Daily Billing '!$D:$R,15,0) -> 3017 | L118: 10981.88 | M118: 549.094
A119: 373 | B119: 2021-08-04 | C119: 24359 | D119: 410 | E119: AWM Consulting Ltd | F119: vedunkuppam | G119: Chittoor | H119: Incineration Ash | I119: 3.640 | J119: DLF | K119: =VLOOKUP(C119,'[1]Daily Billing '!$D:$R,15,0) -> 3017 | L119: 10981.88 | M119: 549.094
A120: 464 | B120: 2021-08-26 | C120: 25740 | D120: 410 | E120: AWM Consulting Ltd | F120: vedunkuppam | G120: Chittoor | H120: Incineration Ash | I120: 4.400 | J120: DLF | K120: =VLOOKUP(C120,'[1]Daily Billing '!$D:$R,15,0) -> 3017 | L120: 13274.8 | M120: 663.74
A121: 517 | B121: 2021-09-15 | C121: 26819 | D121: 410 | E121: AWM Consulting Ltd | F121: vedunkuppam | G121: Chittoor | H121: Incineration Ash | I121: 4.650 | J121: DLF | K121: =VLOOKUP(C121,'[1]Daily Billing '!$D:$R,15,0) -> 3017 | L121: 14029.05 | M121: 701.4525
A122: 630 | B122: 2021-10-22 | C122: 29252 | D122: 410 | E122: AWM Consulting Ltd | F122: vedunkuppam | G122: Chittoor | H122: Incineration Ash | I122: 3.855 | J122: DLF | K122: =VLOOKUP(C122,'[1]Daily Billing '!$D:$R,15,0) -> 3017 | L122: 11630.535 | M122: 581.52675
A123: 750 | B123: 03.12.21 | C123: 31675 | D123: 410 | E123: AWM Consulting Ltd | F123: Vedurukuppam | G123: Vedurukuppam | H123: Inc.Ash | I123: 3.48 | J123: DLF | K123: =VLOOKUP(C123,'[1]Daily Billing '!$D:$R,15,0) -> 3017 | L123: 10499.16 | M123: 524.958
A124: 814 | B124: 22.12.21 | C124: 32956 | D124: 410 | E124: AWM Consulting Ltd | F124: Vedurukuppam | G124: Vedurukuppam | H124: Inc.Ash | I124: 4.28 | J124: DLF | K124: =VLOOKUP(C124,'[1]Daily Billing '!$D:$R,15,0) -> 3017 | L124: 12912.76 | M124: 645.638
A125: 854 | B125: 31.12.21 | C125: 33609 | D125: 410 | E125: AWM Consulting Ltd | F125: Chittoor | G125: Chittoor | H125: Inc.Ash | I125: 4.3 | J125: DLF | K125: =VLOOKUP(C125,'[1]Daily Billing '!$D:$R,15,0) -> 3017 | L125: 12973.1 | M125: 648.655
A126: 934 | B126: 2022-01-30 | C126: 3558 | D126: 410 | E126: AWM Consulting Ltd | F126: vedunkuppam | G126: Chittoor | H126: Incineration Ash | I126: 3.960 | J126: DLF | K126: =VLOOKUP(C126,'[1]Daily Billing '!$D:$R,15,0) -> 3017 | L126: 11947.32 | M126: 597.366
A127: 1008 | B127: 2022-02-21 | C127: 6299 | D127: 410 | E127: AWM Consulting Ltd | F127: vedunkuppam | G127: Chittoor | H127: Incineration Ash | I127: 3.860 | J127: DLF | K127: =VLOOKUP(C127,'[1]Daily Billing '!$D:$R,15,0) -> 3017 | L127: 11645.62 | M127: 582.281
A128: 1075 | B128: 15.03.22 | C128: 9147 | D128: 410 | E128: AWM Consulting Ltd | F128: vedunkuppam | G128: Chittoor | H128: Incineration Ash | I128: 3.720 | J128: DLF | K128: =VLOOKUP(C128,'[1]Daily Billing '!$D:$R,15,0) -> 3017 | L128: 11223.24 | M128: 561.162
A129: 1112 | B129: 2022-03-26 | C129: 10427 | D129: 410 | E129: AWM Consulting Ltd | F129: vedunkuppam | G129: Chittoor | H129: Incineration Ash | I129: 3.800 | J129: DLF | K129: =VLOOKUP(C129,'[1]Daily Billing '!$D:$R,15,0) -> 3017 | L129: 11464.6 | M129: 573.23
A130: 358 | B130: 2021-07-31 | C130: 24076 | D130: 501 | E130: Axora Resources Ltd | F130: Tottembedu | G130: Chittoor | H130: Lead slag | I130: 17.000 | J130: LAT-42 | K130: =VLOOKUP(C130,'[1]Daily Billing '!$D:$R,15,0) -> 4544 | L130: =+K130*I130 -> 77248 | M130: 3862.4
A131: 413 | B131: 2021-08-16 | C131: 25063 | D131: 501 | E131: Axora Resources Ltd | F131: Tottembedu | G131: Chittoor | H131: Lead Slag | I131: 16.75 | J131: LAT-42 | K131: =VLOOKUP(C131,'[1]Daily Billing '!$D:$R,15,0) -> 4544 | L131: 76112 | M131: 3805.6
A132: 414 | B132: 2021-08-16 | C132: 25065 | D132: 501 | E132: Axora Resources Ltd | F132: Tottembedu | G132: Chittoor | H132: Lead Slag | I132: 24.94 | J132: LAT-42 | K132: =VLOOKUP(C132,'[1]Daily Billing '!$D:$R,15,0) -> 4544 | L132: 113327.36 | M132: 5666.368
A133: 693 | B133: 2021-11-13 | C133: 30542 | D133: 501 | E133: Axora Resources Ltd | F133: Tottembedu | G133: Chittoor | H133: Lead Slag | I133: 24.520 | J133: LAT-42 | K133: =VLOOKUP(C133,'[1]Daily Billing '!$D:$R,15,0) -> 4544 | L133: 111418.88 | M133: 5570.944
A134: 768 | B134: 09.12.21 | C134: 31984 | D134: 451 | E134: Ball beverage india | F134: Sricity | G134: Sricity | H134: ETP Sludge | I134: 7.82 | J134: 110 | K134: =VLOOKUP(C134,'[1]Daily Billing '!$D:$R,15,0) -> 9431 | L134: 73750.42 | M134: 3687.521
A135: 842 | B135: 30.12.21 | C135: 33507 | D135: 451 | E135: Ball beverage india | F135: Sricity | G135: Sricity | H135: ETP Sludge | I135: 6.66 | J135: 110 | K135: =VLOOKUP(C135,'[1]Daily Billing '!$D:$R,15,0) -> 9431 | L135: 62810.46 | M135: 3140.523
A136: 931 | B136: 2022-01-29 | C136: 3455 | D136: 451 | E136: Ball Beverage Packaging India Pvt Ltd | F136: Sricity | G136: Chittoor | H136: ETP Sludge | I136: 8.400 | J136: LAT-110 | K136: =VLOOKUP(C136,'[1]Daily Billing '!$D:$R,15,0) -> 16920 | L136: 142128 | M136: 7106.4
A137: 965 | B137: 2022-02-10 | C137: 4872 | D137: 451 | E137: Ball Beverage Packaging India Pvt Ltd | F137: Sricity | G137: Chittoor | H137: ETP Sludge | I137: 6.830 | J137: LAT-110 | K137: =VLOOKUP(C137,'[1]Daily Billing '!$D:$R,15,0) -> 16920 | L137: 115563.6 | M137: 5778.18
A138: 1007 | B138: 2022-02-21 | C138: 6093 | D138: 451 | E138: Ball Beverage Packaging India Pvt Ltd | F138: Sricity | G138: Chittoor | H138: ETP Sludge | I138: 7.650 | J138: LAT-110 | K138: =VLOOKUP(C138,'[1]Daily Billing '!$D:$R,15,0) -> 16920 | L138: 129438 | M138: 6471.9
A139: 1058 | B139: 2022-03-10 | C139: 8496 | D139: 451 | E139: Ball Beverage Packaging India Pvt Ltd | F139: Sricity | G139: Chittoor | H139: ETP Sludge | I139: 6.7 | J139: LAT-110 | K139: =VLOOKUP(C139,'[1]Daily Billing '!$D:$R,15,0) -> 16920 | L139: 113364 | M139: 5668.2
A140: 1084 | B140: 18.03.22 | C140: 9547 | D140: 451 | E140: Ball Beverage Packaging India Pvt Ltd | F140: Sricity | G140: Chittoor | H140: ETP Sludge | I140: 5.740 | J140: LAT-110 | K140: =VLOOKUP(C140,'[1]Daily Billing '!$D:$R,15,0) -> 16920 | L140: 97120.8 | M140: 4856.04
A141: 1128 | B141: 2022-03-30 | C141: 11086 | D141: 451 | E141: Ball Beverage Packaging India Pvt Ltd | F141: Sricity | G141: Chittoor | H141: ETP Sludge | I141: 6.480 | J141: LAT-110 | K141: =VLOOKUP(C141,'[1]Daily Billing '!$D:$R,15,0) -> 16920 | L141: 109641.6 | M141: 5482.08
A142: 6 | B142: 03.04.21 | C142: 17639 | D142: 451 | E142: Ball Beverage packing Pvt Ltd | F142: Sricity | G142: Chittoor | H142: ETP Sludge | I142: 6.64 | J142: LAT-95 | K142: =VLOOKUP(C142,'[1]Daily Billing '!$D:$R,15,0) -> 9431 | L142: 62621.84 | M142: 3131.092
A143: 23 | B143: 10.04.21 | C143: 18003 | D143: 451 | E143: Ball Beverage packing Pvt Ltd | F143: Sricity | G143: Chittoor | H143: ETP Sludge | I143: 6.49 | J143: LAT-95 | K143: =VLOOKUP(C143,'[1]Daily Billing '!$D:$R,15,0) -> 9431 | L143: 61207.19 | M143: 3060.3595
A144: 57 | B144: 23.04.21 | C144: 18603 | D144: 451 | E144: Ball Beverage packing Pvt Ltd | F144: Sricity | G144: Chittoor | H144: ETP Sludge | I144: 6.43 | J144: LAT-95 | K144: =VLOOKUP(C144,'[1]Daily Billing '!$D:$R,15,0) -> 9431 | L144: 60641.33 | M144: 3032.0665
A145: 96 | B145: 2021-05-04 | C145: 19205 | D145: 451 | E145: Ball Beverage packing Pvt Ltd | F145: Sricity | G145: Chittoor | H145: ETP Sludge | I145: 6.230 | J145: LAT-95 | K145: =VLOOKUP(C145,'[1]Daily Billing '!$D:$R,15,0) -> 9431 | L145: 58755.13 | M145: 2937.7565
A146: 129 | B146: 2021-05-15 | C146: 19804 | D146: 451 | E146: Ball Beverage packing Pvt Ltd | F146: Sricity | G146: Chittoor | H146: ETP Sludge | I146: 6.590 | J146: LAT-95 | K146: =VLOOKUP(C146,'[1]Daily Billing '!$D:$R,15,0) -> 9431 | L146: 62150.29 | M146: 3107.5145
A147: 159 | B147: 2021-05-27 | C147: 20530 | D147: 451 | E147: Ball Beverage packing Pvt Ltd | F147: Sricity | G147: Chittoor | H147: ETP Sludge | I147: 7.460 | J147: LAT-95 | K147: =VLOOKUP(C147,'[1]Daily Billing '!$D:$R,15,0) -> 9431 | L147: 70355.26 | M147: 3517.763
A148: 194 | B148: 2021-06-11 | C148: 21367 | D148: 451 | E148: Ball Beverage packing Pvt Ltd | F148: Sricity | G148: Chittoor | H148: ETP Sludge | I148: 5.860 | J148: LAT-95 | K148: =VLOOKUP(C148,'[1]Daily Billing '!$D:$R,15,0) -> 9431 | L148: 55265.66 | M148: 2763.283
A149: 226 | B149: 2021-06-21 | C149: 21985 | D149: 451 | E149: Ball Beverage packing Pvt Ltd | F149: Sricity | G149: Chittoor | H149: ETP Sludge | I149: 7.080 | J149: LAT-95 | K149: =VLOOKUP(C149,'[1]Daily Billing '!$D:$R,15,0) -> 9431 | L149: 66771.48 | M149: 3338.574
A150: 270 | B150: 2021-07-06 | C150: 22750 | D150: 451 | E150: Ball Beverage packing Pvt Ltd | F150: Sricity | G150: Chittoor | H150: ETP Sludge | I150: 6.100 | J150: LAT-95 | K150: =VLOOKUP(C150,'[1]Daily Billing '!$D:$R,15,0) -> 9431 | L150: 57529.1 | M150: 2876.455
A151: 308 | B151: 2021-07-17 | C151: 23226 | D151: 451 | E151: Ball Beverage packing Pvt Ltd | F151: Sricity | G151: Chittoor | H151: ETP Sludge | I151: 7.360 | J151: LAT-95 | K151: =VLOOKUP(C151,'[1]Daily Billing '!$D:$R,15,0) -> 9431 | L151: 69412.16 | M151: 3470.608
A152: 354 | B152: 2021-07-30 | C152: 24001 | D152: 451 | E152: Ball Beverage packing Pvt Ltd | F152: Sricity | G152: Chittoor | H152: ETP Sludge | I152: 7.310 | J152: LAT-95 | K152: =VLOOKUP(C152,'[1]Daily Billing '!$D:$R,15,0) -> 9431 | L152: 68940.61 | M152: 3447.0305
A153: 382 | B153: 2021-08-07 | C153: 24527 | D153: 451 | E153: Ball Beverage packing Pvt Ltd | F153: Sricity | G153: Chittoor | H153: ETP Sludge | I153: 6.300 | J153: LAT-95 | K153: =VLOOKUP(C153,'[1]Daily Billing '!$D:$R,15,0) -> 9431 | L153: 59415.3 | M153: 2970.765
A154: 426 | B154: 2021-08-18 | C154: 25171 | D154: 451 | E154: Ball Beverage packing Pvt Ltd | F154: Sricity | G154: Chittoor | H154: ETP Sludge | I154: 6.540 | J154: LAT-95 | K154: =VLOOKUP(C154,'[1]Daily Billing '!$D:$R,15,0) -> 9431 | L154: 61678.74 | M154: 3083.937
A155: 488 | B155: 2021-09-04 | C155: 26300 | D155: 451 | E155: Ball Beverage packing Pvt Ltd | F155: Sricity | G155: Chittoor | H155: ETP sludge | I155: 6.560 | J155: LAT-95 | K155: =VLOOKUP(C155,'[1]Daily Billing '!$D:$R,15,0) -> 9431 | L155: 61867.36 | M155: 3093.368
A156: 528 | B156: 2021-09-19 | C156: 27115 | D156: 451 | E156: Ball Beverage packing Pvt Ltd | F156: Sricity | G156: Chittoor | H156: ETP sludge | I156: 6.180 | J156: LAT-95 | K156: =VLOOKUP(C156,'[1]Daily Billing '!$D:$R,15,0) -> 9431 | L156: 58283.58 | M156: 2914.179
A157: 610 | B157: 2021-10-16 | C157: 28908 | D157: 451 | E157: Ball Beverage packing Pvt Ltd | F157: Sricity | G157: Chittoor | H157: ETP sludge | I157: 5.840 | J157: LAT-95 | K157: =VLOOKUP(C157,'[1]Daily Billing '!$D:$R,15,0) -> 9431 | L157: 55077.04 | M157: 2753.852
A158: 708 | B158: 2021-11-18 | C158: 30768 | D158: 451 | E158: Ball Beverage packing Pvt Ltd | F158: Sricity | G158: Chittoor | H158: ETP sludge | I158: 6.200 | J158: LAT-95 | K158: =VLOOKUP(C158,'[1]Daily Billing '!$D:$R,15,0) -> 9431 | L158: 58472.2 | M158: 2923.61
A159: 833 | B159: 28.12.21 | C159: 33379 | D159: 477 | E159: Bezwada Biomedical Research | F159: Prakasam | G159: Prakasam | H159: Mixed Waste | I159: 1.14 | J159: DLF | K159: =VLOOKUP(C159,'[1]Daily Billing '!$D:$R,15,0) -> 8204 | L159: 9352.56 | M159: 467.628
A160: 740 | B160: 02.12.21 | C160: 31530 | D160: 295 | E160: Bhagiradha Chemicals | F160: Ongole | G160: Ongole | H160: Inorganic solid waste | I160: 29.82 | J160: 59O | K160: =VLOOKUP(C160,'[1]Daily Billing '!$D:$R,15,0) -> 4356 | L160: 129895.92 | M160: 6494.796
A161: 741 | B161: 02.12.21 | C161: 31531 | D161: 295 | E161: Bhagiradha Chemicals | F161: Ongole | G161: Ongole | H161: Inorganic solid waste | I161: 29.96 | J161: 59O | K161: =VLOOKUP(C161,'[1]Daily Billing '!$D:$R,15,0) -> 4356 | L161: 130505.76 | M161: 6525.288
A162: 756 | B162: 04.12.21 | C162: 31712 | D162: 295 | E162: Bhagiradha Chemicals | F162: Ongole | G162: Ongole | H162: Inorganic solid waste | I162: 29.71 | J162: 59O | K162: =VLOOKUP(C162,'[1]Daily Billing '!$D:$R,15,0) -> 4356 | L162: 129416.76 | M162: 6470.838
A163: 763 | B163: 07.12.21 | C163: 31794 | D163: 295 | E163: Bhagiradha Chemicals | F163: Ongole | G163: Ongole | H163: Inorganic solid waste | I163: 29.48 | J163: 59O | K163: =VLOOKUP(C163,'[1]Daily Billing '!$D:$R,15,0) -> 4356 | L163: 128414.88 | M163: 6420.744
A164: 773 | B164: 09.12.21 | C164: 31991 | D164: 295 | E164: Bhagiradha Chemicals | F164: Ongole | G164: Ongole | H164: Inorganic solid waste | I164: 29.83 | J164: 59O | K164: =VLOOKUP(C164,'[1]Daily Billing '!$D:$R,15,0) -> 4356 | L164: 129939.48 | M164: 6496.974
A165: 775 | B165: 11.12.21 | C165: 32134 | D165: 295 | E165: Bhagiradha Chemicals | F165: Ongole | G165: Ongole | H165: Inorganic solid waste | I165: 29.76 | J165: 59O | K165: =VLOOKUP(C165,'[1]Daily Billing '!$D:$R,15,0) -> 4356 | L165: 129634.56 | M165: 6481.728
A166: 781 | B166: 13.12.21 | C166: 32240 | D166: 295 | E166: Bhagiradha Chemicals | F166: Ongole | G166: Ongole | H166: Inorganic solid waste | I166: 29.66 | J166: 59O | K166: =VLOOKUP(C166,'[1]Daily Billing '!$D:$R,15,0) -> 4356 | L166: 129198.96 | M166: 6459.948
A167: 784 | B167: 14.12.21 | C167: 32304 | D167: 295 | E167: Bhagiradha Chemicals | F167: Ongole | G167: Ongole | H167: Inorganic solid waste | I167: 29.78 | J167: 59O | K167: =VLOOKUP(C167,'[1]Daily Billing '!$D:$R,15,0) -> 4356 | L167: 129721.68 | M167: 6486.084
A168: 792 | B168: 16.12.21 | C168: 32409 | D168: 295 | E168: Bhagiradha Chemicals | F168: Ongole | G168: Ongole | H168: Inorganic solid waste | I168: 29.85 | J168: 59O | K168: =VLOOKUP(C168,'[1]Daily Billing '!$D:$R,15,0) -> 4356 | L168: 130026.6 | M168: 6501.33
A169: 807 | B169: 21.12.21 | C169: 32812 | D169: 295 | E169: Bhagiradha Chemicals | F169: Ongole | G169: Ongole | H169: Inorganic solid waste | I169: 26.94 | J169: 59O | K169: =VLOOKUP(C169,'[1]Daily Billing '!$D:$R,15,0) -> 4356 | L169: 117350.64 | M169: 5867.532
A170: 827 | B170: 27.12.21 | C170: 33273 | D170: 295 | E170: Bhagiradha Chemicals | F170: Ongole | G170: Ongole | H170: Inorganic solid waste | I170: 29.85 | J170: 59O | K170: =VLOOKUP(C170,'[1]Daily Billing '!$D:$R,15,0) -> 4356 | L170: 130026.6 | M170: 6501.33
A171: 838 | B171: 29.12.21 | C171: 33407 | D171: 295 | E171: Bhagiradha Chemicals | F171: Ongole | G171: Ongole | H171: Inorganic solid waste | I171: 29.41 | J171: 59O | K171: =VLOOKUP(C171,'[1]Daily Billing '!$D:$R,15,0) -> 4356 | L171: 128109.96 | M171: 6405.498
A172: 837 | B172: 29.12.21 | C172: 33424 | D172: 295 | E172: Bhagiradha Chemicals | F172: Ongole | G172: Ongole | H172: Inorganic solid waste | I172: 29.87 | J172: 59O | K172: =VLOOKUP(C172,'[1]Daily Billing '!$D:$R,15,0) -> 4356 | L172: 130113.72 | M172: 6505.686
A173: 853 | B173: 31.12.21 | C173: 33543 | D173: 295 | E173: Bhagiradha Chemicals | F173: Ongole | G173: Ongole | H173: Inorganic solid waste | I173: 29.57 | J173: 59O | K173: =VLOOKUP(C173,'[1]Daily Billing '!$D:$R,15,0) -> 4356 | L173: 128806.92 | M173: 6440.346
A174: 638 | B174: 2021-10-25 | C174: 29390 | D174: 295 | E174: Bhagiradha Chemicals & Industries Ltd | F174: Ongole | G174: Prakasam | H174: Inorganic Solid Waste | I174: 29.740 | J174: LAT-590 | K174: =VLOOKUP(C174,'[1]Daily Billing '!$D:$R,15,0) -> 4356 | L174: 129547.44 | M174: =+L174*5% -> 6477.372
A175: 1 | B175: 01.04.21 | C175: 17540 | D175: 295 | E175: Bhagiradha Chemicals & Industries Ltd | F175: Ongole | G175: Prakasam | H175: Inorganic Solid Waste | I175: 30 | J175: LAT-59O | K175: =VLOOKUP(C175,'[1]Daily Billing '!$D:$R,15,0) -> 3850 | L175: 115500 | M175: 5775
A176: 8 | B176: 03.04.21 | C176: 17677 | D176: 295 | E176: Bhagiradha Chemicals & Industries Ltd | F176: Ongole | G176: Prakasam | H176: Inorganic Solid Waste | I176: 30 | J176: LAT-59O | K176: =VLOOKUP(C176,'[1]Daily Billing '!$D:$R,15,0) -> 3850 | L176: 115500 | M176: 5775
A177: 16 | B177: 08.04.21 | C177: 17873 | D177: 295 | E177: Bhagiradha Chemicals & Industries Ltd | F177: Ongole | G177: Prakasam | H177: Inorganic Solid Waste | I177: 30 | J177: LAT-59O | K177: =VLOOKUP(C177,'[1]Daily Billing '!$D:$R,15,0) -> 3850 | L177: 115500 | M177: 5775
A178: 25 | B178: 10.04.21 | C178: 17874 | D178: 295 | E178: Bhagiradha Chemicals & Industries Ltd | F178: Ongole | G178: Prakasam | H178: Inorganic Solid Waste | I178: 30 | J178: LAT-59O | K178: =VLOOKUP(C178,'[1]Daily Billing '!$D:$R,15,0) -> 3850 | L178: 115500 | M178: 5775
A179: 15 | B179: 08.04.21 | C179: 17875 | D179: 295 | E179: Bhagiradha Chemicals & Industries Ltd | F179: Ongole | G179: Prakasam | H179: Inorganic Solid Waste | I179: 30 | J179: LAT-59O | K179: =VLOOKUP(C179,'[1]Daily Billing '!$D:$R,15,0) -> 3850 | L179: 115500 | M179: 5775
A180: 26 | B180: 11.04.21 | C180: 18072 | D180: 295 | E180: Bhagiradha Chemicals & Industries Ltd | F180: Ongole | G180: Prakasam | H180: Inorganic Solid Waste | I180: 30 | J180: LAT-59O | K180: =VLOOKUP(C180,'[1]Daily Billing '!$D:$R,15,0) -> 3850 | L180: 115500 | M180: 5775
A181: 34 | B181: 15.04.21 | C181: 18194 | D181: 295 | E181: Bhagiradha Chemicals & Industries Ltd | F181: Ongole | G181: Prakasam | H181: Inorganic Solid Waste | I181: 30 | J181: LAT-59O | K181: =VLOOKUP(C181,'[1]Daily Billing '!$D:$R,15,0) -> 3850 | L181: 115500 | M181: 5775
A182: 35 | B182: 15.04.21 | C182: 18199 | D182: 295 | E182: Bhagiradha Chemicals & Industries Ltd | F182: Ongole | G182: Prakasam | H182: Inorganic Solid Waste | I182: 30 | J182: LAT-59O | K182: =VLOOKUP(C182,'[1]Daily Billing '!$D:$R,15,0) -> 3850 | L182: 115500 | M182: 5775
A183: 42 | B183: 18.04.21 | C183: 18346 | D183: 295 | E183: Bhagiradha Chemicals & Industries Ltd | F183: Ongole | G183: Prakasam | H183: Inorganic Solid Waste | I183: 30 | J183: LAT-59O | K183: =VLOOKUP(C183,'[1]Daily Billing '!$D:$R,15,0) -> 3850 | L183: 115500 | M183: 5775
A184: 52 | B184: 21.04.21 | C184: 18512 | D184: 295 | E184: Bhagiradha Chemicals & Industries Ltd | F184: Ongole | G184: Prakasam | H184: Inorganic Solid Waste | I184: 30 | J184: LAT-59O | K184: =VLOOKUP(C184,'[1]Daily Billing '!$D:$R,15,0) -> 3850 | L184: 115500 | M184: 5775
A185: 56 | B185: 22.04.21 | C185: 18563 | D185: 295 | E185: Bhagiradha Chemicals & Industries Ltd | F185: Ongole | G185: Prakasam | H185: Inorganic Solid Waste | I185: 30 | J185: LAT-59O | K185: =VLOOKUP(C185,'[1]Daily Billing '!$D:$R,15,0) -> 3850 | L185: 115500 | M185: 5775
A186: 64 | B186: 24.04.21 | C186: 18643 | D186: 295 | E186: Bhagiradha Chemicals & Industries Ltd | F186: Ongole | G186: Prakasam | H186: Inorganic Solid Waste | I186: 30 | J186: LAT-59O | K186: =VLOOKUP(C186,'[1]Daily Billing '!$D:$R,15,0) -> 3850 | L186: 115500 | M186: 5775
A187: 61 | B187: 24.04.21 | C187: 18689 | D187: 295 | E187: Bhagiradha Chemicals & Industries Ltd | F187: Ongole | G187: Prakasam | H187: Inorganic Solid Waste | I187: 30 | J187: LAT-59O | K187: =VLOOKUP(C187,'[1]Daily Billing '!$D:$R,15,0) -> 3850 | L187: 115500 | M187: 5775
A188: 68 | B188: 26.04.21 | C188: 18787 | D188: 295 | E188: Bhagiradha Chemicals & Industries Ltd | F188: Ongole | G188: Prakasam | H188: Inorganic Solid Waste | I188: 30 | J188: LAT-59O | K188: =VLOOKUP(C188,'[1]Daily Billing '!$D:$R,15,0) -> 3850 | L188: 115500 | M188: 5775
A189: 81 | B189: 29.04.21 | C189: 18953 | D189: 295 | E189: Bhagiradha Chemicals & Industries Ltd | F189: Ongole | G189: Prakasam | H189: Inorganic Solid Waste | I189: 30 | J189: LAT-59O | K189: =VLOOKUP(C189,'[1]Daily Billing '!$D:$R,15,0) -> 3850 | L189: 115500 | M189: 5775
A190: 90 | B190: 2021-05-03 | C190: 19184 | D190: 295 | E190: Bhagiradha Chemicals & Industries Ltd | F190: Ongole | G190: Prakasam | H190: Inorganic Solid Waste | I190: 30.000 | J190: LAT-59O | K190: =VLOOKUP(C190,'[1]Daily Billing '!$D:$R,15,0) -> 3850 | L190: 115500 | M190: 5775
A191: 95 | B191: 2021-05-04 | C191: 19218 | D191: 295 | E191: Bhagiradha Chemicals & Industries Ltd | F191: Ongole | G191: Prakasam | H191: Inorganic Solid Waste | I191: 30.000 | J191: LAT-59O | K191: =VLOOKUP(C191,'[1]Daily Billing '!$D:$R,15,0) -> 3850 | L191: 115500 | M191: 5775
A192: 115 | B192: 2021-05-11 | C192: 19611 | D192: 295 | E192: Bhagiradha Chemicals & Industries Ltd | F192: Ongole | G192: Prakasam | H192: Inorganic Solid Waste | I192: 30.000 | J192: LAT-59O | K192: =VLOOKUP(C192,'[1]Daily Billing '!$D:$R,15,0) -> 3850 | L192: 115500 | M192: 5775
A193: 124 | B193: 2021-05-13 | C193: 19718 | D193: 295 | E193: Bhagiradha Chemicals & Industries Ltd | F193: Ongole | G193: Prakasam | H193: Inorganic Solid Waste | I193: 30.000 | J193: LAT-59O | K193: =VLOOKUP(C193,'[1]Daily Billing '!$D:$R,15,0) -> 3850 | L193: 115500 | M193: 5775
A194: 133 | B194: 2021-05-18 | C194: 19965 | D194: 295 | E194: Bhagiradha Chemicals & Industries Ltd | F194: Ongole | G194: Prakasam | H194: Inorganic Solid Waste | I194: 30.000 | J194: LAT-59O | K194: =VLOOKUP(C194,'[1]Daily Billing '!$D:$R,15,0) -> 3850 | L194: =+K194*I194 -> 115500 | M194: 5775
A195: 150 | B195: 2021-05-24 | C195: 20308 | D195: 295 | E195: Bhagiradha Chemicals & Industries Ltd | F195: Ongole | G195: Prakasam | H195: Inorganic Solid Waste | I195: 30.000 | J195: LAT-59O | K195: =VLOOKUP(C195,'[1]Daily Billing '!$D:$R,15,0) -> 3850 | L195: 115500 | M195: 5775
A196: 157 | B196: 2021-05-26 | C196: 20427 | D196: 295 | E196: Bhagiradha Chemicals & Industries Ltd | F196: Ongole | G196: Prakasam | H196: Inorganic Solid Waste | I196: 30.000 | J196: LAT-59O | K196: =VLOOKUP(C196,'[1]Daily Billing '!$D:$R,15,0) -> 3850 | L196: 115500 | M196: 5775
A197: 160 | B197: 2021-05-28 | C197: 20532 | D197: 295 | E197: Bhagiradha Chemicals & Industries Ltd | F197: Ongole | G197: Prakasam | H197: Inorganic Solid Waste | I197: 30.000 | J197: LAT-59O | K197: =VLOOKUP(C197,'[1]Daily Billing '!$D:$R,15,0) -> 3850 | L197: 115500 | M197: 5775
A198: 170 | B198: 2021-05-31 | C198: 20717 | D198: 295 | E198: Bhagiradha Chemicals & Industries Ltd | F198: Ongole | G198: Prakasam | H198: Inorganic Solid Waste | I198: 30.000 | J198: LAT-59O | K198: =VLOOKUP(C198,'[1]Daily Billing '!$D:$R,15,0) -> 3850 | L198: 115500 | M198: 5775
A199: 898 | B199: 2022-01-18 | C199: 2278 | D199: 295 | E199: Bhagiradha Chemicals & Industries Ltd | F199: Ongole | G199: Prakasam | H199: Inorganic Solid Waste | I199: 29.740 | J199: LAT-59O | K199: =VLOOKUP(C199,'[1]Daily Billing '!$D:$R,15,0) -> 4356 | L199: 129547.44 | M199: 6477.372
A200: 901 | B200: 2022-01-18 | C200: 2282 | D200: 295 | E200: Bhagiradha Chemicals & Industries Ltd | F200: Ongole | G200: Prakasam | H200: Inorganic Solid Waste | I200: 29.950 | J200: LAT-59O | K200: =VLOOKUP(C200,'[1]Daily Billing '!$D:$R,15,0) -> 4356 | L200: 130462.2 | M200: 6523.11
... 925 more rows

Sheet 2022-2023
A1: COASTAL WASTE MAGEMENT PROJECT UNIT-II,NELLORE
A2: LABORATORY YEARLY DATA
A3: YEARLY WASTE RECIEPTS -April 2022 to March 2023
A4: S.NO | B4: Date | C4: Manifest No | D4: Member Ship No | E4: Generator Name | F4: Location | G4: District | H4: Type of Waste | I4: TONS | J4: DM | K4: Disposal Price | L4: Disposal Rev | M4: Escrow | N4: REMARKS
A5: 1107 | B5: 20.02.23 | C5: 53901 | D5: 421 | E5: 1947 INC | F5: Krishna | G5: Krishna | H5: Used Spend Oil | I5: 0.25 | J5: 41 | K5: =VLOOKUP(C5,'[2]Daily Billing '!$C:$Q,15,0) -> 6500 | L5: =+K5*I5 -> 1,625.00 | M5: =5%*L5 -> 81.25
A6: 1108 | B6: 20.02.23 | C6: 53901 | D6: 421 | E6: 1947 INC | F6: Krishna | G6: Krishna | H6: Leather Trimmings | I6: 0.74 | J6: 110 | K6: 30000 | L6: 22,200.00 | M6: 1,110.00
A7: 1109 | B7: 20.02.23 | C7: 53901 | D7: 421 | E7: 1947 INC | F7: Krishna | G7: Krishna | H7: Empty Barrels/Contain/Cans/Buckets/Line Contaminated with Hazardous Chemiclas | I7: 0.1 | J7: 110 | K7: 21000 | L7: 2,100.00 | M7: 105.00
A8: 45 | B8: 2022-04-15 | C8: 12926 | D8: 434 | E8: 3F Industries Ltd | F8: Muthukur | G8: Nellore | H8: ETP Sludge | I8: 24.100 | J8: LAT-95 | K8: =VLOOKUP(C8,'[2]Daily Billing '!$C:$Q,15,0) -> 9381 | L8: 226,082.10 | M8: 11,304.11
A9: 435 | B9: 2022-08-12 | C9: 26677 | D9: 434 | E9: 3F Industries Ltd | F9: Muthukur | G9: Nellore | H9: MEE Salts | I9: 20.800 | J9: LAT-95 | K9: =VLOOKUP(C9,'[2]Daily Billing '!$C:$Q,15,0) -> 9381 | L9: 195,124.80 | M9: 9,756.24
A10: 712 | B10: 2022-11-01 | C10: 36885 | D10: 434 | E10: 3F Industries Ltd | F10: Muthukur | G10: Nellore | H10: MEE Salts | I10: 13.400 | J10: LAT-95 | K10: =VLOOKUP(C10,'[2]Daily Billing '!$C:$Q,15,0) -> 9381 | L10: 125,705.40 | M10: 6,285.27
A11: 379 | B11: 2022-07-27 | C11: 24854 | D11: 323 | E11: Adani wilmar limited | F11: thungabhadra | G11: Kurnool | H11: ETP sludge | I11: 5.540 | J11: LAT-106 | K11: =VLOOKUP(C11,'[2]Daily Billing '!$C:$Q,15,0) -> 7331 | L11: 40,613.74 | M11: 2,030.69
A12: 1137 | B12: 26.02.23 | C12: 55107 | D12: 323 | E12: Adani Wilmar Ltd | F12: Kurnool | G12: Kurnool | H12: ETP Sludge | I12: 5.02 | J12: 106 | K12: =VLOOKUP(C12,'[2]Daily Billing '!$C:$Q,15,0) -> 7331 | L12: 36,801.62 | M12: 1,840.08
A13: 821 | B13: 06.12.22 | C13: 41794 | D13: 402 | E13: Adani wilmar Ltd Unit-I | F13: Nellore | G13: Nellore | H13: ETP Sludge | I13: 10.87 | J13: 30 | K13: =VLOOKUP(C13,'[2]Daily Billing '!$C:$Q,15,0) -> 7904 | L13: 85,916.48 | M13: 4,295.82
A14: 1002 | B14: 21.01.23 | C14: 49401 | D14: 402 | E14: Adani wilmar Ltd Unit-I | F14: Nellore | G14: Nellore | H14: ETP Sludge | I14: 12.4 | J14: 30 | K14: 7904 | L14: 98,009.60 | M14: 4,900.48
A15: 1214 | B15: 20.03.23 | C15: 58386 | D15: 402 | E15: Adani wilmar Ltd Unit-I | F15: Nellore | G15: Nellore | H15: ETP Sludge | I15: 16.76 | J15: 30 | K15: =VLOOKUP(C15,'[2]Daily Billing '!$C:$Q,15,0) -> 7904 | L15: 132,471.04 | M15: 6,623.55
A16: 822 | B16: 06.12.22 | C16: 41794 | D16: 402 | E16: Adani wilmar Ltd Unit-I | F16: Nellore | G16: Nellore | H16: MEE Salts | I16: 3.4 | J16: 59K | K16: 9737 | L16: 33,105.80 | M16: 1,655.29
A17: 1003 | B17: 21.01.23 | C17: 49401 | D17: 402 | E17: Adani wilmar Ltd Unit-I | F17: Nellore | G17: Nellore | H17: MEE Salts | I17: 4.1 | J17: 59K | K17: =VLOOKUP(C17,'[2]Daily Billing '!$C:$Q,15,0) -> 9737 | L17: 39,921.70 | M17: 1,996.09
A18: 1215 | B18: 20.03.23 | C18: 58386 | D18: 402 | E18: Adani wilmar Ltd Unit-I | F18: Nellore | G18: Nellore | H18: MEE Salts | I18: 7.5 | J18: 59K | K18: 9737 | L18: 73,027.50 | M18: 3,651.38
A19: 855 | B19: 16.12.22 | C19: 43452 | D19: 386 | E19: Adani wilmar Ltd Unit-II | F19: Nellore | G19: Nellore | H19: ETP Sludge | I19: 18.6 | J19: 30 | K19: =VLOOKUP(C19,'[2]Daily Billing '!$C:$Q,15,0) -> 8064 | L19: 149,990.40 | M19: 7,499.52
A20: 991 | B20: 19.01.23 | C20: 48973 | D20: 386 | E20: Adani wilmar Ltd Unit-II | F20: Nellore | G20: Nellore | H20: ETP Sludge | I20: 6.35 | J20: 30 | K20: =VLOOKUP(C20,'[2]Daily Billing '!$C:$Q,15,0) -> 8064 | L20: 51,206.40 | M20: 2,560.32
A21: 1029 | B21: 27.01.23 | C21: 50358 | D21: 386 | E21: Adani wilmar Ltd Unit-II | F21: Nellore | G21: Nellore | H21: ETP Sludge | I21: 7.02 | J21: 30 | K21: 8064 | L21: 56,609.28 | M21: 2,830.46
A22: 1113 | B22: 22.02.23 | C22: 54322 | D22: 386 | E22: Adani wilmar Ltd Unit-II | F22: Nellore | G22: Nellore | H22: ETP Sludge | I22: 18.14 | J22: 30 | K22: 8064 | L22: 146,280.96 | M22: 7,314.05
A23: 1185 | B23: 14.03.23 | C23: 57495 | D23: 386 | E23: Adani wilmar Ltd Unit-II | F23: Nellore | G23: Nellore | H23: ETP Sludge | I23: 19.35 | J23: 30 | K23: =VLOOKUP(C23,'[2]Daily Billing '!$C:$Q,15,0) -> 8064 | L23: 156,038.40 | M23: 7,801.92
A24: 856 | B24: 16.12.22 | C24: 43452 | D24: 386 | E24: Adani wilmar Ltd Unit-II | F24: Nellore | G24: Nellore | H24: MEE Salts | I24: 2.16 | J24: 59K | K24: 9637 | L24: 20,815.92 | M24: 1,040.80
A25: 992 | B25: 19.01.23 | C25: 48973 | D25: 386 | E25: Adani wilmar Ltd Unit-II | F25: Nellore | G25: Nellore | H25: MEE Salts | I25: 1.1 | J25: 59O | K25: 9637 | L25: 10,600.70 | M25: 530.04
A26: 1030 | B26: 27.01.23 | C26: 50358 | D26: 386 | E26: Adani wilmar Ltd Unit-II | F26: Nellore | G26: Nellore | H26: MEE Salts | I26: 0.82 | J26: 59O | K26: =VLOOKUP(C26,'[2]Daily Billing '!$C:$Q,15,0) -> 9637 | L26: 7,902.34 | M26: 395.12
A27: 1114 | B27: 22.02.23 | C27: 54322 | D27: 386 | E27: Adani wilmar Ltd Unit-II | F27: Nellore | G27: Nellore | H27: MEE Salts | I27: 4.79 | J27: 59O | K27: =VLOOKUP(C27,'[2]Daily Billing '!$C:$Q,15,0) -> 9637 | L27: 46,161.23 | M27: 2,308.06
A28: 1186 | B28: 14.03.23 | C28: 57495 | D28: 386 | E28: Adani wilmar Ltd Unit-II | F28: Nellore | G28: Nellore | H28: MEE Salts | I28: 4.25 | J28: 59O | K28: 9637 | L28: 40,957.25 | M28: 2,047.86
A29: 73 | B29: 2022-04-26 | C29: 14060 | D29: 402 | E29: Adani Wilmar Ltd-I | F29: Muthukur | G29: Nellore | H29: MEE Slats | I29: 9.100 | J29: LAT-30 | K29: 9737 | L29: 88,606.70 | M29: 4,430.34
A30: 237 | B30: 2022-06-16 | C30: 19845 | D30: 402 | E30: Adani Wilmar Ltd-I | F30: Muthukur | G30: Nellore | H30: ETP Sludge | I30: 16.620 | J30: LAT-30 | K30: =VLOOKUP(C30,'[2]Daily Billing '!$C:$Q,15,0) -> 7904 | L30: 131,364.48 | M30: 6,568.22
A31: 303 | B31: 2022-07-03 | C31: 21980 | D31: 402 | E31: Adani Wilmar Ltd-I | F31: Muthukur | G31: Nellore | H31: ETP Sludge | I31: 6.400 | J31: LAT-30 | K31: =VLOOKUP(C31,'[2]Daily Billing '!$C:$Q,15,0) -> 7904 | L31: 50,585.60 | M31: 2,529.28
A32: 406 | B32: 2022-08-03 | C32: 25625 | D32: 402 | E32: Adani Wilmar Ltd-I | F32: Muthukur | G32: Nellore | H32: ETP Sludge | I32: 5.410 | J32: LAT-30 | K32: =VLOOKUP(C32,'[2]Daily Billing '!$C:$Q,15,0) -> 7904 | L32: 42,760.64 | M32: 2,138.03
A33: 491 | B33: 2022-08-30 | C33: 28699 | D33: 402 | E33: Adani Wilmar Ltd-I | F33: Muthukur | G33: Nellore | H33: MEE Slats | I33: 2.800 | J33: LAT-30 | K33: 9737 | L33: 27,263.60 | M33: 1,363.18
A34: 574 | B34: 2022-09-23 | C34: 31678 | D34: 402 | E34: Adani Wilmar Ltd-I | F34: Muthukur | G34: Nellore | H34: ETP Sludge | I34: 5.860 | J34: LAT-30 | K34: =VLOOKUP(C34,'[2]Daily Billing '!$C:$Q,15,0) -> 7904 | L34: 46,317.44 | M34: 2,315.87
A35: 650 | B35: 2022-10-18 | C35: 34806 | D35: 402 | E35: Adani Wilmar Ltd-I | F35: Muthukur | G35: Nellore | H35: ETP Sludge | I35: 11.500 | J35: LAT-30 | K35: =VLOOKUP(C35,'[2]Daily Billing '!$C:$Q,15,0) -> 7904 | L35: 90,896.00 | M35: 4,544.80
A36: 771 | B36: 18.11.22 | C36: 39362 | D36: 402 | E36: Adani Wilmar Ltd-I | F36: Muthukur | G36: Nellore | H36: ETP Sludge | I36: 7.100 | J36: LAT-30 | K36: =VLOOKUP(C36,'[2]Daily Billing '!$C:$Q,15,0) -> 7904 | L36: 56,118.40 | M36: 2,805.92
A37: 74 | B37: 2022-04-26 | C37: 14060 | D37: 402 | E37: Adani Wilmar Ltd-I | F37: Muthukur | G37: Nellore | H37: ETP Sludge | I37: 13.890 | J37: LAT-59K | K37: =VLOOKUP(C37,'[2]Daily Billing '!$C:$Q,15,0) -> 7904 | L37: 109,786.56 | M37: =5%*L37 -> 5,489.33
A38: 236 | B38: 2022-06-16 | C38: 19845 | D38: 402 | E38: Adani Wilmar Ltd-I | F38: Muthukur | G38: Nellore | H38: MEE Slats | I38: 6.550 | J38: LAT-59K | K38: 9737 | L38: 63,777.35 | M38: 3,188.87
A39: 302 | B39: 2022-07-03 | C39: 21980 | D39: 402 | E39: Adani Wilmar Ltd-I | F39: Muthukur | G39: Nellore | H39: MEE Slats | I39: 1.900 | J39: LAT-59K | K39: 9737 | L39: 18,500.30 | M39: 925.02
A40: 405 | B40: 2022-08-03 | C40: 25625 | D40: 402 | E40: Adani Wilmar Ltd-I | F40: Muthukur | G40: Nellore | H40: MEE Slats | I40: 3.500 | J40: LAT-59K | K40: 9737 | L40: 34,079.50 | M40: 1,703.98
A41: 492 | B41: 2022-08-30 | C41: 28699 | D41: 402 | E41: Adani Wilmar Ltd-I | F41: Muthukur | G41: Nellore | H41: ETP Sludge | I41: 5.340 | J41: LAT-59K | K41: =VLOOKUP(C41,'[2]Daily Billing '!$C:$Q,15,0) -> 7904 | L41: 42,207.36 | M41: 2,110.37
A42: 573 | B42: 2022-09-23 | C42: 31678 | D42: 402 | E42: Adani Wilmar Ltd-I | F42: Muthukur | G42: Nellore | H42: MEE Slats | I42: 2.400 | J42: LAT-59K | K42: 9737 | L42: 23,368.80 | M42: 1,168.44
A43: 649 | B43: 2022-10-18 | C43: 34806 | D43: 402 | E43: Adani Wilmar Ltd-I | F43: Muthukur | G43: Nellore | H43: MEE Slats | I43: 3.900 | J43: LAT-59K | K43: 9737 | L43: 37,974.30 | M43: 1,898.72
A44: 770 | B44: 18.11.22 | C44: 39362 | D44: 402 | E44: Adani Wilmar Ltd-I | F44: Muthukur | G44: Nellore | H44: MEE Slats | I44: 1.900 | J44: LAT-59K | K44: 9737 | L44: 18,500.30 | M44: 925.02
A45: 456 | B45: 2022-08-19 | C45: 27453 | D45: 386 | E45: Adani Wilmar Ltd-II | F45: Muthukuru | G45: Nellore | H45: MEE Salts | I45: 1.600 | J45: LAT | K45: 9637 | L45: 15,419.20 | M45: 770.96
A46: 71 | B46: 2022-04-25 | C46: 13986 | D46: 386 | E46: Adani Wilmar Ltd-II | F46: Muthukuru | G46: Nellore | H46: ETP Sludge | I46: 11.760 | J46: LAT-30 | K46: =VLOOKUP(C46,'[2]Daily Billing '!$C:$Q,15,0) -> 8064 | L46: 94,832.64 | M46: 4,741.63
A47: 178 | B47: 2022-05-26 | C47: 17490 | D47: 386 | E47: Adani Wilmar Ltd-II | F47: Muthukuru | G47: Nellore | H47: ETP Sludge | I47: 13.860 | J47: Lat-30 | K47: =VLOOKUP(C47,'[2]Daily Billing '!$C:$Q,15,0) -> 8064 | L47: 111,767.04 | M47: 5,588.35
A48: 299 | B48: 2022-07-03 | C48: 22014 | D48: 386 | E48: Adani Wilmar Ltd-II | F48: Muthukuru | G48: Nellore | H48: ETP Sludge | I48: 6.000 | J48: LAT-30 | K48: =VLOOKUP(C48,'[2]Daily Billing '!$C:$Q,15,0) -> 8064 | L48: 48,384.00 | M48: 2,419.20
A49: 307 | B49: 2022-07-05 | C49: 22231 | D49: 386 | E49: Adani Wilmar Ltd-II | F49: Muthukuru | G49: Nellore | H49: ETP Sludge | I49: 6.920 | J49: LAT-30 | K49: =VLOOKUP(C49,'[2]Daily Billing '!$C:$Q,15,0) -> 8064 | L49: 55,802.88 | M49: 2,790.14
A50: 408 | B50: 2022-08-03 | C50: 25637 | D50: 386 | E50: Adani Wilmar Ltd-II | F50: Muthukuru | G50: Nellore | H50: ETP Sludge | I50: 7.600 | J50: LAT-30 | K50: =VLOOKUP(C50,'[2]Daily Billing '!$C:$Q,15,0) -> 8064 | L50: 61,286.40 | M50: 3,064.32
A51: 564 | B51: 2022-09-20 | C51: 31281 | D51: 386 | E51: Adani Wilmar Ltd-II | F51: Muthukuru | G51: Nellore | H51: ETP Sludge | I51: 11.000 | J51: LAT-30 | K51: =VLOOKUP(C51,'[2]Daily Billing '!$C:$Q,15,0) -> 8064 | L51: 88,704.00 | M51: 4,435.20
A52: 679 | B52: 2022-10-26 | C52: 35896 | D52: 386 | E52: Adani Wilmar Ltd-II | F52: Muthukuru | G52: Nellore | H52: ETP Sludge | I52: 13.500 | J52: LAT-30 | K52: =VLOOKUP(C52,'[2]Daily Billing '!$C:$Q,15,0) -> 8064 | L52: 108,864.00 | M52: 5,443.20
A53: 763 | B53: 16.11.22 | C53: 39096 | D53: 386 | E53: Adani Wilmar Ltd-II | F53: Muthukuru | G53: Nellore | H53: ETP Sludge | I53: 16.770 | J53: LAT-30 | K53: =VLOOKUP(C53,'[2]Daily Billing '!$C:$Q,15,0) -> 8064 | L53: 135,233.28 | M53: 6,761.66
A54: 70 | B54: 2022-04-25 | C54: 13986 | D54: 386 | E54: Adani Wilmar Ltd-II | F54: Muthukuru | G54: Nellore | H54: MEE Salts | I54: 3.800 | J54: LAT-59E | K54: 9637 | L54: 36,620.60 | M54: 1,831.03
A55: 177 | B55: 2022-05-26 | C55: 17490 | D55: 386 | E55: Adani Wilmar Ltd-II | F55: Muthukuru | G55: Nellore | H55: MEE Salts | I55: 8.500 | J55: Lat-59E | K55: 9637 | L55: 81,914.50 | M55: 4,095.73
A56: 298 | B56: 2022-07-03 | C56: 22014 | D56: 386 | E56: Adani Wilmar Ltd-II | F56: Muthukuru | G56: Nellore | H56: MEE Salts | I56: 2.140 | J56: LAT-59E | K56: 9637 | L56: 20,623.18 | M56: 1,031.16
A57: 306 | B57: 2022-07-05 | C57: 22231 | D57: 386 | E57: Adani Wilmar Ltd-II | F57: Muthukuru | G57: Nellore | H57: MEE Salts | I57: 2.000 | J57: LAT-59E | K57: 9637 | L57: 19,274.00 | M57: 963.70
A58: 407 | B58: 2022-08-03 | C58: 25637 | D58: 386 | E58: Adani Wilmar Ltd-II | F58: Muthukuru | G58: Nellore | H58: MEE Salts | I58: 1.400 | J58: LAT59O | K58: 9637 | L58: 13,491.80 | M58: 674.59
A59: 455 | B59: 2022-08-19 | C59: 27453 | D59: 386 | E59: Adani Wilmar Ltd-II | F59: Muthukuru | G59: Nellore | H59: ETP Sludge | I59: 7.180 | J59: LAT-59O | K59: =VLOOKUP(C59,'[2]Daily Billing '!$C:$Q,15,0) -> 8064 | L59: 57,899.52 | M59: 2,894.98
A60: 565 | B60: 2022-09-20 | C60: 31281 | D60: 386 | E60: Adani Wilmar Ltd-II | F60: Muthukuru | G60: Nellore | H60: MEE Salts | I60: 5.760 | J60: LAT-59O | K60: 9637 | L60: 55,509.12 | M60: 2,775.46
A61: 680 | B61: 2022-10-26 | C61: 35896 | D61: 386 | E61: Adani Wilmar Ltd-II | F61: Muthukuru | G61: Nellore | H61: MEE Salts | I61: 3.120 | J61: LAT-59O | K61: 9637 | L61: 30,067.44 | M61: 1,503.37
A62: 764 | B62: 16.11.22 | C62: 39096 | D62: 386 | E62: Adani Wilmar Ltd-II | F62: Muthukuru | G62: Nellore | H62: MEE Salts | I62: 4.850 | J62: LAT-59O | K62: 9637 | L62: 46,739.45 | M62: 2,336.97
A63: 258 | B63: 2022-06-22 | C63: 20539 | D63: 642 | E63: AGM Textiles | F63: Nagari | G63: Chittoor | H63: ETP Sludge | I63: 7.550 | J63: LAT-24 | K63: =VLOOKUP(C63,'[2]Daily Billing '!$C:$Q,15,0) -> 7534 | L63: 56,881.70 | M63: 2,844.09
A64: 287 | B64: 2022-06-30 | C64: 21679 | D64: 642 | E64: AGM Textiles | F64: Nagari | G64: Chittoor | H64: ETP Sludge | I64: 6.870 | J64: LAT-24 | K64: =VLOOKUP(C64,'[2]Daily Billing '!$C:$Q,15,0) -> 7534 | L64: 51,758.58 | M64: 2,587.93
A65: 843 | B65: 12.12.22 | C65: 42802 | D65: 509 | E65: Agrisol (India) Pvt.Ltd | F65: Kurnool | G65: Kurnool | H65: Evaporation Salts | I65: 21.53 | J65: 59H | K65: =VLOOKUP(C65,'[2]Daily Billing '!$C:$Q,15,0) -> 8554 | L65: 184,167.62 | M65: 9,208.38
A66: 947 | B66: 05.01.23 | C66: 46731 | D66: 509 | E66: Agrisol (India) Pvt.Ltd | F66: Kurnool | G66: Kurnool | H66: Evaporation Salts | I66: 22.47 | J66: 59H | K66: =VLOOKUP(C66,'[2]Daily Billing '!$C:$Q,15,0) -> 8554 | L66: 192,208.38 | M66: 9,610.42
A67: 1206 | B67: 18.03.23 | C67: 58132 | D67: 509 | E67: Agrisol (India) Pvt.Ltd | F67: Kurnool | G67: Kurnool | H67: Evaporation Salts | I67: 25 | J67: 59H | K67: =VLOOKUP(C67,'[2]Daily Billing '!$C:$Q,15,0) -> 8554 | L67: 213,850.00 | M67: 10,692.50
A68: 52 | B68: 2022-04-18 | C68: 13091 | D68: 509 | E68: Agrisol India Pvt Ltd | F68: Dhone | G68: Kurnool | H68: Evaporation Solids | I68: 22.550 | J68: LAT-59H | K68: =VLOOKUP(C68,'[2]Daily Billing '!$C:$Q,15,0) -> 8554 | L68: 192,892.70 | M68: 9,644.64
A69: 268 | B69: 2022-06-24 | C69: 20837 | D69: 509 | E69: Agrisol India Pvt Ltd | F69: Dhone | G69: Kurnool | H69: Evaporation Solids | I69: 23.170 | J69: LAT-59H | K69: =VLOOKUP(C69,'[2]Daily Billing '!$C:$Q,15,0) -> 8554 | L69: =+K69*I69 -> 198,196.18 | M69: =5%*L69 -> 9,909.81
A70: 401 | B70: 2022-07-31 | C70: 25403 | D70: 509 | E70: Agrisol India Pvt Ltd | F70: Dhone | G70: Kurnool | H70: Evaporation Solids | I70: 25.000 | J70: LAT-59H | K70: =VLOOKUP(C70,'[2]Daily Billing '!$C:$Q,15,0) -> 8554 | L70: 213,850.00 | M70: 10,692.50
A71: 521 | B71: 2022-09-09 | C71: 29931 | D71: 509 | E71: Agrisol India Pvt Ltd | F71: Dhone | G71: Kurnool | H71: Evaporation Solids | I71: 21.140 | J71: LAT-59H | K71: =VLOOKUP(C71,'[2]Daily Billing '!$C:$Q,15,0) -> 8554 | L71: 180,831.56 | M71: 9,041.58
A72: 587 | B72: 2022-09-26 | C72: 32080 | D72: 509 | E72: Agrisol India Pvt Ltd | F72: Dhone | G72: Kurnool | H72: ETP SLUdge | I72: 20.440 | J72: LAT-93 | K72: =VLOOKUP(C72,'[2]Daily Billing '!$C:$Q,15,0) -> 10414 | L72: 212,862.16 | M72: 10,643.11
A73: 1188 | B73: 14.03.23 | C73: 57460 | D73: 502 | E73: Ainesh Pharma (P) Ltd | F73: Krishna | G73: Krishna | H73: Contaminated Soil | I73: 6 | J73: 42 | K73: =VLOOKUP(C73,'[2]Daily Billing '!$C:$Q,15,0) -> 4577 | L73: 27,462.00 | M73: 1,373.10
A74: 404 | B74: 2022-08-02 | C74: 25549 | D74: 507 | E74: Ainesh Pharma Pvt Ltd | F74: Jaggaiahpeta | G74: krishna | H74: MEE Salts | I74: 5.300 | J74: LAT-211 | K74: =VLOOKUP(C74,'[2]Daily Billing '!$C:$Q,15,0) -> 16410 | L74: 86,973.00 | M74: 4,348.65
A75: 765 | B75: 16.11.22 | C75: 39072 | D75: 715 | E75: Aisan Auto Parts India Pvt Ltd | F75: Sricity | G75: Chittoor | H75: Spent Oil,Waste Oil | I75: 8.840 | J75: LAT-110 | K75: =VLOOKUP(C75,'[2]Daily Billing '!$C:$Q,15,0) -> 16290 | L75: 144,003.60 | M75: 7,200.18
A76: 265 | B76: 2022-06-23 | C76: 20019 | D76: 278 | E76: Alekhya Drugs Pvt Ltd | F76: Kondapalli | G76: krishna | H76: Inorganic & Evaporation Salt | I76: 9.000 | J76: LAT-58 | K76: =VLOOKUP(C76,'[2]Daily Billing '!$C:$Q,15,0) -> 3517 | L76: 31,653.00 | M76: 1,582.65
A77: 322 | B77: 2022-07-10 | C77: 22834 | D77: 659 | E77: Amar raja- Automotive batteries unit-3 | F77: Nunegundla Palii | G77: Chittoor | H77: Used Respirators | I77: 4.630 | J77: LAT-110 | K77: =VLOOKUP(C77,'[2]Daily Billing '!$C:$Q,15,0) -> 14000 | L77: 64,820.00 | M77: 3,241.00
A78: 493 | B78: 2022-08-30 | C78: 28750 | D78: 659 | E78: Amar raja- Automotive batteries unit-3 | F78: Nunegundla Palii | G78: Chittoor | H78: Used Respirators | I78: 5.150 | J78: LAT-110 | K78: =VLOOKUP(C78,'[2]Daily Billing '!$C:$Q,15,0) -> 14000 | L78: 72,100.00 | M78: 3,605.00
A79: 608 | B79: 2022-10-01 | C79: 32850 | D79: 659 | E79: Amar raja- Automotive batteries unit-3 | F79: Nunegundla Palii | G79: Chittoor | H79: Used Respirators | I79: 4.350 | J79: LAT-110 | K79: =VLOOKUP(C79,'[2]Daily Billing '!$C:$Q,15,0) -> 14000 | L79: 60,900.00 | M79: 3,045.00
A80: 685 | B80: 2022-10-27 | C80: 36074 | D80: 659 | E80: Amar raja- Automotive batteries unit-3 | F80: Nunegundla Palii | G80: Chittoor | H80: Used Respirators | I80: 4.350 | J80: LAT-110 | K80: =VLOOKUP(C80,'[2]Daily Billing '!$C:$Q,15,0) -> 14000 | L80: 60,900.00 | M80: 3,045.00
A81: 190 | B81: 2022-05-31 | C81: 18051 | D81: 659 | E81: Amar raja- Automotive batteries unit-3 | F81: Nunegundla Palii | G81: Chittoor | H81: ETP Sludge | I81: 7.080 | J81: LAT-69 | K81: =VLOOKUP(C81,'[2]Daily Billing '!$C:$Q,15,0) -> 7097 | L81: 50,246.76 | M81: 2,512.34
A82: 427 | B82: 2022-08-10 | C82: 26406 | D82: 659 | E82: Amar raja- Automotive batteries unit-3 | F82: Nunegundla Palii | G82: Chittoor | H82: ETP Sludge | I82: 8.290 | J82: LAT-69 | K82: =VLOOKUP(C82,'[2]Daily Billing '!$C:$Q,15,0) -> 7097 | L82: 58,834.13 | M82: 2,941.71
A83: 688 | B83: 2022-10-28 | C83: 36261 | D83: 659 | E83: Amar raja- Automotive batteries unit-3 | F83: Nunegundla Palii | G83: Chittoor | H83: ETP Sludge | I83: 8.860 | J83: LAT-69 | K83: =VLOOKUP(C83,'[2]Daily Billing '!$C:$Q,15,0) -> 7097 | L83: 62,879.42 | M83: 3,143.97
A84: 1202 | B84: 17.03.23 | C84: 57951 | D84: 226 | E84: Amara raja Batteries (ABD) | F84: Chittoor | G84: Chittoor | H84: ETP Sludge | I84: 7.75 | J84: 206 | K84: =VLOOKUP(C84,'[2]Daily Billing '!$C:$Q,15,0) -> 9557 | L84: 74,066.75 | M84: 3,703.34
A85: 1201 | B85: 17.03.23 | C85: 57962 | D85: 660 | E85: Amara raja Batteries (MVRLA) | F85: Chittoor | G85: Chittoor | H85: ETP Sludge | I85: 7.11 | J85: 85 | K85: =VLOOKUP(C85,'[2]Daily Billing '!$C:$Q,15,0) -> 7097 | L85: 50,459.67 | M85: 2,522.98
A86: 889 | B86: 27.12.22 | C86: 45277 | D86: 659 | E86: Amara Raja Batteries Ltd(ABD-3) | F86: Chittoor | G86: Chittoor | H86: ETP Sludge | I86: 23.7 | J86: 69 | K86: =VLOOKUP(C86,'[2]Daily Billing '!$C:$Q,15,0) -> 7097 | L86: 168,198.90 | M86: 8,409.95
A87: 917 | B87: 30.12.22 | C87: 45829 | D87: 659 | E87: Amara Raja Batteries Ltd(ABD-3) | F87: Chittoor | G87: Chittoor | H87: ETP Sludge | I87: 23.25 | J87: 69 | K87: =VLOOKUP(C87,'[2]Daily Billing '!$C:$Q,15,0) -> 7097 | L87: 165,005.25 | M87: 8,250.26
A88: 976 | B88: 11.01.23 | C88: 47741 | D88: 659 | E88: Amara Raja Batteries Ltd(ABD-3) | F88: Chittoor | G88: Chittoor | H88: ETP Sludge | I88: 24.94 | J88: 69 | K88: =VLOOKUP(C88,'[2]Daily Billing '!$C:$Q,15,0) -> 7097 | L88: 176,999.18 | M88: 8,849.96
A89: 1036 | B89: 29.01.23 | C89: 50606 | D89: 659 | E89: Amara Raja Batteries Ltd(ABD-3) | F89: Chittoor | G89: Chittoor | H89: ETP Sludge | I89: 24.88 | J89: 69 | K89: =VLOOKUP(C89,'[2]Daily Billing '!$C:$Q,15,0) -> 7097 | L89: 176,573.36 | M89: 8,828.67
A90: 1094 | B90: 16.02.23 | C90: 53481 | D90: 659 | E90: Amara Raja Batteries Ltd(ABD-3) | F90: Chittoor | G90: Chittoor | H90: ETP Sludge | I90: 24.88 | J90: 69 | K90: =VLOOKUP(C90,'[2]Daily Billing '!$C:$Q,15,0) -> 7097 | L90: 176,573.36 | M90: 8,828.67
A91: 1152 | B91: 03.03.23 | C91: 55742 | D91: 659 | E91: Amara Raja Batteries Ltd(ABD-3) | F91: Chittoor | G91: Chittoor | H91: ETP Sludge | I91: 24.67 | J91: 69 | K91: =VLOOKUP(C91,'[2]Daily Billing '!$C:$Q,15,0) -> 7097 | L91: 175,082.99 | M91: 8,754.15
A92: 1224 | B92: 21.03.23 | C92: 58548 | D92: 659 | E92: Amara Raja Batteries Ltd(ABD-3) | F92: Chittoor | G92: Chittoor | H92: ETP Sludge | I92: 24.94 | J92: 69 | K92: =VLOOKUP(C92,'[2]Daily Billing '!$C:$Q,15,0) -> 7097 | L92: 176,999.18 | M92: 8,849.96
A93: 1059 | B93: 06.02.23 | C93: 52049 | D93: 226 | E93: Amara Raja Batteries Ltd. | F93: Chittoor | G93: Chittoor | H93: ETP Sludge | I93: 5.28 | J93: 206 | K93: =VLOOKUP(C93,'[2]Daily Billing '!$C:$Q,15,0) -> 9557 | L93: 50,460.96 | M93: 2,523.05
A94: 829 | B94: 07.12.22 | C94: 41930 | D94: 660 | E94: Amara Raja Batteries Ltd.Mvrl & Auto | F94: Chittoor | G94: Chittoor | H94: ETP Sludge | I94: 7.74 | J94: 85 | K94: =VLOOKUP(C94,'[2]Daily Billing '!$C:$Q,15,0) -> 7097 | L94: 54,930.78 | M94: 2,746.54
A95: 993 | B95: 19.01.23 | C95: 48977 | D95: 660 | E95: Amara Raja Batteries Ltd.Mvrl & Auto | F95: Chittoor | G95: Chittoor | H95: ETP Sludge | I95: 7.24 | J95: 85 | K95: =VLOOKUP(C95,'[2]Daily Billing '!$C:$Q,15,0) -> 7097 | L95: 51,382.28 | M95: 2,569.11
A96: 1167 | B96: 09.03.23 | C96: 56639 | D96: 660 | E96: Amara Raja Batteries Ltd.Mvrl & Auto | F96: Chittoor | G96: Chittoor | H96: ETP Sludge | I96: 7.06 | J96: 85 | K96: =VLOOKUP(C96,'[2]Daily Billing '!$C:$Q,15,0) -> 7097 | L96: 50,104.82 | M96: 2,505.24
A97: 1157 | B97: 04.03.23 | C97: 55952 | D97: 660 | E97: Amara Raja Batteries Ltd.Mvrl & Auto | F97: Chittoor | G97: Chittoor | H97: Used Resiperators | I97: 6.43 | J97: 110 | K97: =VLOOKUP(C97,'[2]Daily Billing '!$C:$Q,15,0) -> 14000 | L97: 90,020.00 | M97: 4,501.00
A98: 1000 | B98: 21.01.23 | C98: 49381 | D98: 661 | E98: Amara raja Batteries-small battery unit | F98: Nunegundlapalii | G98: Nunegundlapalii | H98: ETP Sludge | I98: 24.63 | J98: 69 | K98: =VLOOKUP(C98,'[2]Daily Billing '!$C:$Q,15,0) -> 7097 | L98: 174,799.11 | M98: 8,739.96
A99: 1067 | B99: 08.02.23 | C99: 52236 | D99: 661 | E99: Amara raja Batteries-small battery unit | F99: Nunegundlapalii | G99: Nunegundlapalii | H99: ETP Sludge | I99: 24.19 | J99: 69 | K99: =VLOOKUP(C99,'[2]Daily Billing '!$C:$Q,15,0) -> 7097 | L99: 171,676.43 | M99: 8,583.82
A100: 1183 | B100: 12.03.23 | C100: 57129 | D100: 661 | E100: Amara raja Batteries-small battery unit | F100: Nunegundlapalii | G100: Nunegundlapalii | H100: ETP Sludge | I100: 24.61 | J100: 69 | K100: =VLOOKUP(C100,'[2]Daily Billing '!$C:$Q,15,0) -> 7097 | L100: 174,657.17 | M100: 8,732.86
A101: 1020 | B101: 25.01.23 | C101: 49974 | D101: 661 | E101: Amara raja Batteries-small battery unit | F101: Nunegundlapalii | G101: Nunegundlapalii | H101: ETP Sludge | I101: 7.04 | J101: 85 | K101: =VLOOKUP(C101,'[2]Daily Billing '!$C:$Q,15,0) -> 7097 | L101: 49,962.88 | M101: =5%*L101 -> 2,498.14
A102: 823 | B102: 06.12.22 | C102: 41757 | D102: 662 | E102: Amara Raja Batteries-Tubular Unit | F102: Chittoor | G102: Chittoor | H102: ETP Sludge | I102: 8.03 | J102: 29 | K102: =VLOOKUP(C102,'[2]Daily Billing '!$C:$Q,15,0) -> 7097 | L102: 56,988.91 | M102: 2,849.45
A103: 1060 | B103: 07.02.23 | C103: 52066 | D103: 662 | E103: Amara Raja Batteries-Tubular Unit | F103: Chittoor | G103: Chittoor | H103: ETP Sludge | I103: 7.26 | J103: 29 | K103: =VLOOKUP(C103,'[2]Daily Billing '!$C:$Q,15,0) -> 7097 | L103: 51,524.22 | M103: 2,576.21
A104: 1264 | B104: 30.03.23 | C104: 60226 | D104: 662 | E104: Amara Raja Batteries-Tubular Unit | F104: Chittoor | G104: Chittoor | H104: ETP Sludge | I104: 23.78 | J104: 29 | K104: =VLOOKUP(C104,'[2]Daily Billing '!$C:$Q,15,0) -> 7097 | L104: 168,766.66 | M104: 8,438.33
A105: 849 | B105: 14.12.22 | C105: 43126 | D105: 659 | E105: Amaraja Batteries Ltd.(Automotive batteries unit-3) | F105: Chittoor | G105: Chittoor | H105: Used Respirator | I105: 6.41 | J105: 110 | K105: =VLOOKUP(C105,'[2]Daily Billing '!$C:$Q,15,0) -> 14000 | L105: 89,740.00 | M105: 4,487.00
A106: 946 | B106: 05.01.23 | C106: 46737 | D106: 659 | E106: Amaraja Batteries Ltd.(Automotive batteries unit-3) | F106: Chittoor | G106: Chittoor | H106: Used Respirator | I106: 8.33 | J106: 110 | K106: =VLOOKUP(C106,'[2]Daily Billing '!$C:$Q,15,0) -> 14000 | L106: 116,620.00 | M106: 5,831.00
A107: 1055 | B107: 04.02.23 | C107: 51690 | D107: 659 | E107: Amaraja Batteries Ltd.(Automotive batteries unit-3) | F107: Chittoor | G107: Chittoor | H107: Used Respirator | I107: 8.41 | J107: 110 | K107: =VLOOKUP(C107,'[2]Daily Billing '!$C:$Q,15,0) -> 14000 | L107: 117,740.00 | M107: 5,887.00
A108: 835 | B108: 09.12.22 | C108: 42335 | D108: 226 | E108: Amaraja Batteries Ltd.(Industrials A&Two wheeler) | F108: Chittoor | G108: Chittoor | H108: ETP Sludge | I108: 8.27 | J108: 206 | K108: =VLOOKUP(C108,'[2]Daily Billing '!$C:$Q,15,0) -> 9557 | L108: 79,036.39 | M108: 3,951.82
A109: 888 | B109: 26.12.22 | C109: 45207 | D109: 226 | E109: Amaraja Batteries Ltd.(Industrials A&Two wheeler) | F109: Chittoor | G109: Chittoor | H109: ETP Sludge | I109: 8 | J109: 206 | K109: =VLOOKUP(C109,'[2]Daily Billing '!$C:$Q,15,0) -> 9557 | L109: 76,456.00 | M109: 3,822.80
A110: 923 | B110: 30.12.22 | C110: 45990 | D110: 226 | E110: Amaraja Batteries Ltd.(Industrials A&Two wheeler) | F110: Chittoor | G110: Chittoor | H110: ETP Sludge | I110: 8.95 | J110: 206 | K110: =VLOOKUP(C110,'[2]Daily Billing '!$C:$Q,15,0) -> 9557 | L110: 85,535.15 | M110: 4,276.76
A111: 990 | B111: 19.01.23 | C111: 48974 | D111: 226 | E111: Amaraja Batteries Ltd.(Industrials A&Two wheeler) | F111: Chittoor | G111: Chittoor | H111: ETP Sludge | I111: 21.29 | J111: 206 | K111: =VLOOKUP(C111,'[2]Daily Billing '!$C:$Q,15,0) -> 9557 | L111: 203,468.53 | M111: 10,173.43
A112: 1035 | B112: 28.01.23 | C112: 50586 | D112: 226 | E112: Amaraja Batteries Ltd.(Industrials A&Two wheeler) | F112: Chittoor | G112: Chittoor | H112: ETP Sludge | I112: 7.6 | J112: 206 | K112: =VLOOKUP(C112,'[2]Daily Billing '!$C:$Q,15,0) -> 9557 | L112: 72,633.20 | M112: 3,631.66
A113: 1049 | B113: 03.02.23 | C113: 51447 | D113: 226 | E113: Amaraja Batteries Ltd.(Industrials A&Two wheeler) | F113: Chittoor | G113: Chittoor | H113: ETP Sludge | I113: 8.56 | J113: 206 | K113: =VLOOKUP(C113,'[2]Daily Billing '!$C:$Q,15,0) -> 9557 | L113: 81,807.92 | M113: 4,090.40
A114: 1090 | B114: 14.02.23 | C114: 53348 | D114: 226 | E114: Amaraja Batteries Ltd.(Industrials A&Two wheeler) | F114: Chittoor | G114: Chittoor | H114: ETP Sludge | I114: 7.68 | J114: 206 | K114: =VLOOKUP(C114,'[2]Daily Billing '!$C:$Q,15,0) -> 9557 | L114: 73,397.76 | M114: 3,669.89
A115: 1119 | B115: 23.02.23 | C115: 54478 | D115: 226 | E115: Amaraja Batteries Ltd.(Industrials A&Two wheeler) | F115: Chittoor | G115: Chittoor | H115: ETP Sludge | I115: 7.36 | J115: 206 | K115: =VLOOKUP(C115,'[2]Daily Billing '!$C:$Q,15,0) -> 9557 | L115: 70,339.52 | M115: 3,516.98
A116: 1138 | B116: 26.02.23 | C116: 55043 | D116: 226 | E116: Amaraja Batteries Ltd.(Industrials A&Two wheeler) | F116: Chittoor | G116: Chittoor | H116: ETP Sludge | I116: 13.92 | J116: 206 | K116: =VLOOKUP(C116,'[2]Daily Billing '!$C:$Q,15,0) -> 9557 | L116: 133,033.44 | M116: 6,651.67
A117: 1163 | B117: 07.03.23 | C117: 56507 | D117: 226 | E117: Amaraja Batteries Ltd.(Industrials A&Two wheeler) | F117: Chittoor | G117: Chittoor | H117: ETP Sludge | I117: 7.33 | J117: 206 | K117: =VLOOKUP(C117,'[2]Daily Billing '!$C:$Q,15,0) -> 9557 | L117: 70,052.81 | M117: 3,502.64
A118: 1257 | B118: 29.03.23 | C118: 59943 | D118: 226 | E118: Amaraja Batteries Ltd.(Industrials A&Two wheeler) | F118: Chittoor | G118: Chittoor | H118: ETP Sludge | I118: 14.51 | J118: 206 | K118: =VLOOKUP(C118,'[2]Daily Billing '!$C:$Q,15,0) -> 9557 | L118: 138,672.07 | M118: 6,933.60
A119: 1241 | B119: 26.03.23 | C119: 59491 | D119: 662 | E119: Amaraja Batteries Tubular | F119: Chittoor | G119: Chittoor | H119: ETP Sludge | I119: 24.89 | J119: 29 | K119: =VLOOKUP(C119,'[2]Daily Billing '!$C:$Q,15,0) -> 7097 | L119: 176,644.33 | M119: 8,832.22
A120: 380 | B120: 2022-07-27 | C120: 24853 | D120: 660 | E120: Amara-raja MVRLA&Automotive Batteries Ltd | F120: Nunegundla Palii | G120: Chittoor | H120: Used Respirators | I120: 4.620 | J120: LAT-110 | K120: =VLOOKUP(C120,'[2]Daily Billing '!$C:$Q,15,0) -> 14000 | L120: 64,680.00 | M120: 3,234.00
A121: 526 | B121: 2022-09-10 | C121: 30062 | D121: 660 | E121: Amara-raja MVRLA&Automotive Batteries Ltd | F121: Nunegundla Palii | G121: Chittoor | H121: Used Respirators | I121: 4.970 | J121: LAT-110 | K121: =VLOOKUP(C121,'[2]Daily Billing '!$C:$Q,15,0) -> 14000 | L121: 69,580.00 | M121: 3,479.00
A122: 645 | B122: 2022-10-15 | C122: 34474 | D122: 660 | E122: Amara-raja MVRLA&Automotive Batteries Ltd | F122: Nunegundla Palii | G122: Chittoor | H122: Used Respirators | I122: 3.850 | J122: LAT-110 | K122: =VLOOKUP(C122,'[2]Daily Billing '!$C:$Q,15,0) -> 14000 | L122: 53,900.00 | M122: 2,695.00
A123: 774 | B123: 19.11.22 | C123: 39507 | D123: 660 | E123: Amara-raja MVRLA&Automotive Batteries Ltd | F123: Nunegundla Palii | G123: Chittoor | H123: Used Respirators | I123: 7.110 | J123: LAT-110 | K123: =VLOOKUP(C123,'[2]Daily Billing '!$C:$Q,15,0) -> 14000 | L123: 99,540.00 | M123: 4,977.00
A124: 185 | B124: 2022-05-30 | C124: 17814 | D124: 660 | E124: Amara-raja MVRLA&Automotive Batteries Ltd | F124: Nunegundla Palii | G124: Chittoor | H124: ETP Sludge | I124: 6.650 | J124: Lat-85 | K124: =VLOOKUP(C124,'[2]Daily Billing '!$C:$Q,15,0) -> 7097 | L124: 47,195.05 | M124: 2,359.75
A125: 204 | B125: 2022-06-06 | C125: 18682 | D125: 660 | E125: Amara-raja MVRLA&Automotive Batteries Ltd | F125: Nunegundla Palii | G125: Chittoor | H125: ETP Sludge | I125: 5.950 | J125: LAT-85 | K125: =VLOOKUP(C125,'[2]Daily Billing '!$C:$Q,15,0) -> 7097 | L125: 42,227.15 | M125: 2,111.36
A126: 378 | B126: 2022-07-26 | C126: 24667 | D126: 660 | E126: Amara-raja MVRLA&Automotive Batteries Ltd | F126: Nunegundla Palii | G126: Chittoor | H126: ETP Sludge | I126: 7.110 | J126: LAT-85 | K126: =VLOOKUP(C126,'[2]Daily Billing '!$C:$Q,15,0) -> 7097 | L126: 50,459.67 | M126: 2,522.98
A127: 481 | B127: 2022-08-27 | C127: 28315 | D127: 660 | E127: Amara-raja MVRLA&Automotive Batteries Ltd | F127: Nunegundla Palii | G127: Chittoor | H127: ETP Sludge | I127: 7.110 | J127: LAT-85 | K127: =VLOOKUP(C127,'[2]Daily Billing '!$C:$Q,15,0) -> 7097 | L127: 50,459.67 | M127: 2,522.98
A128: 513 | B128: 2022-09-07 | C128: 29676 | D128: 660 | E128: Amara-raja MVRLA&Automotive Batteries Ltd | F128: Nunegundla Palii | G128: Chittoor | H128: ETP Sludge | I128: 6.560 | J128: LAT-85 | K128: =VLOOKUP(C128,'[2]Daily Billing '!$C:$Q,15,0) -> 7097 | L128: 46,556.32 | M128: 2,327.82
A129: 664 | B129: 2022-10-21 | C129: 35219 | D129: 660 | E129: Amara-raja MVRLA&Automotive Batteries Ltd | F129: Nunegundla Palii | G129: Chittoor | H129: ETP Sludge | I129: 7.040 | J129: LAT-85 | K129: =VLOOKUP(C129,'[2]Daily Billing '!$C:$Q,15,0) -> 7097 | L129: 49,962.88 | M129: 2,498.14
A130: 672 | B130: 2022-10-23 | C130: 35499 | D130: 660 | E130: Amara-raja MVRLA&Automotive Batteries Ltd | F130: Nunegundla Palii | G130: Chittoor | H130: ETP Sludge | I130: 6.730 | J130: LAT-85 | K130: =VLOOKUP(C130,'[2]Daily Billing '!$C:$Q,15,0) -> 7097 | L130: 47,762.81 | M130: 2,388.14
A131: 486 | B131: 2022-08-28 | C131: 28500 | D131: 296 | E131: Amaravathi Textiles Pvt Ltd | F131: Martur | G131: Prakasam | H131: ETP Sludge | I131: 6.500 | J131: LAT-59F | K131: =VLOOKUP(C131,'[2]Daily Billing '!$C:$Q,15,0) -> 6646 | L131: 43,199.00 | M131: 2,159.95
A132: 96 | B132: 2022-05-01 | C132: 14670 | D132: 226 | E132: Amarraja Batteries | F132: Renigunta | G132: Chittoor | H132: ETP Sludge | I132: 7.600 | J132: LAT-206 | K132: =VLOOKUP(C132,'[2]Daily Billing '!$C:$Q,15,0) -> 9557 | L132: 72,633.20 | M132: 3,631.66
A133: 156 | B133: 2022-05-21 | C133: 16882 | D133: 226 | E133: Amarraja Batteries | F133: Renigunta | G133: Chittoor | H133: ETP Sludge | I133: 7.570 | J133: Lat-206 | K133: =VLOOKUP(C133,'[2]Daily Billing '!$C:$Q,15,0) -> 9557 | L133: =+K133*I133 -> 72,346.49 | M133: =5%*L133 -> 3,617.32
A134: 232 | B134: 2022-06-15 | C134: 19704 | D134: 226 | E134: Amarraja Batteries | F134: Renigunta | G134: Chittoor | H134: ETP Sludge | I134: 7.370 | J134: LAT-206 | K134: =VLOOKUP(C134,'[2]Daily Billing '!$C:$Q,15,0) -> 9557 | L134: 70,435.09 | M134: 3,521.75
A135: 272 | B135: 2022-06-26 | C135: 21088 | D135: 226 | E135: Amarraja Batteries | F135: Renigunta | G135: Chittoor | H135: ETP Sludge | I135: 7.560 | J135: LAT-206 | K135: =VLOOKUP(C135,'[2]Daily Billing '!$C:$Q,15,0) -> 9557 | L135: 72,250.92 | M135: 3,612.55
A136: 334 | B136: 2022-07-13 | C136: 23120 | D136: 226 | E136: Amarraja Batteries | F136: Renigunta | G136: Chittoor | H136: ETP Sludge | I136: 8.170 | J136: LAT-206 | K136: =VLOOKUP(C136,'[2]Daily Billing '!$C:$Q,15,0) -> 9557 | L136: 78,080.69 | M136: 3,904.03
A137: 386 | B137: 2022-07-29 | C137: 25036 | D137: 226 | E137: Amarraja Batteries | F137: Renigunta | G137: Chittoor | H137: ETP Sludge | I137: 8.740 | J137: LAT-206 | K137: =VLOOKUP(C137,'[2]Daily Billing '!$C:$Q,15,0) -> 9557 | L137: 83,528.18 | M137: 4,176.41
A138: 431 | B138: 2022-08-11 | C138: 26610 | D138: 226 | E138: Amarraja Batteries | F138: Renigunta | G138: Chittoor | H138: ETP Sludge | I138: 7.530 | J138: LAT-206 | K138: =VLOOKUP(C138,'[2]Daily Billing '!$C:$Q,15,0) -> 9557 | L138: 71,964.21 | M138: 3,598.21
A139: 453 | B139: 2022-08-18 | C139: 27197 | D139: 226 | E139: Amarraja Batteries | F139: Renigunta | G139: Chittoor | H139: ETP Sludge | I139: 8.880 | J139: LAT-206 | K139: =VLOOKUP(C139,'[2]Daily Billing '!$C:$Q,15,0) -> 9557 | L139: 84,866.16 | M139: 4,243.31
A140: 475 | B140: 2022-08-25 | C140: 28163 | D140: 226 | E140: Amarraja Batteries | F140: Renigunta | G140: Chittoor | H140: ETP Sludge | I140: 6.720 | J140: LAT-206 | K140: =VLOOKUP(C140,'[2]Daily Billing '!$C:$Q,15,0) -> 9557 | L140: 64,223.04 | M140: 3,211.15
A141: 499 | B141: 2022-08-30 | C141: 28823 | D141: 226 | E141: Amarraja Batteries | F141: Renigunta | G141: Chittoor | H141: ETP Sludge | I141: 8.440 | J141: LAT-206 | K141: =VLOOKUP(C141,'[2]Daily Billing '!$C:$Q,15,0) -> 9577 | L141: 80,829.88 | M141: 4,041.49
A142: 531 | B142: 2022-09-11 | C142: 30152 | D142: 226 | E142: Amarraja Batteries | F142: Renigunta | G142: Chittoor | H142: ETP Sludge | I142: 8.510 | J142: LAT-206 | K142: =VLOOKUP(C142,'[2]Daily Billing '!$C:$Q,15,0) -> 9557 | L142: 81,330.07 | M142: 4,066.50
A143: 555 | B143: 2022-09-17 | C143: 30958 | D143: 226 | E143: Amarraja Batteries | F143: Renigunta | G143: Chittoor | H143: ETP Sludge | I143: 8.090 | J143: LAT-206 | K143: =VLOOKUP(C143,'[2]Daily Billing '!$C:$Q,15,0) -> 9557 | L143: 77,316.13 | M143: 3,865.81
A144: 598 | B144: 2022-09-29 | C144: 32619 | D144: 226 | E144: Amarraja Batteries | F144: Renigunta | G144: Chittoor | H144: ETP Sludge | I144: 6.540 | J144: LAT-206 | K144: =VLOOKUP(C144,'[2]Daily Billing '!$C:$Q,15,0) -> 9557 | L144: 62,502.78 | M144: 3,125.14
A145: 629 | B145: 2022-10-11 | C145: 33867 | D145: 226 | E145: Amarraja Batteries | F145: Renigunta | G145: Chittoor | H145: ETP Sludge | I145: 8.870 | J145: LAT-206 | K145: =VLOOKUP(C145,'[2]Daily Billing '!$C:$Q,15,0) -> 9557 | L145: 84,770.59 | M145: 4,238.53
A146: 684 | B146: 2022-10-27 | C146: 36003 | D146: 226 | E146: Amarraja Batteries | F146: Renigunta | G146: Chittoor | H146: ETP Sludge | I146: 8.790 | J146: LAT-206 | K146: =VLOOKUP(C146,'[2]Daily Billing '!$C:$Q,15,0) -> 9557 | L146: 84,006.03 | M146: 4,200.30
A147: 689 | B147: 2022-10-28 | C147: 36281 | D147: 226 | E147: Amarraja Batteries | F147: Renigunta | G147: Chittoor | H147: ETP Sludge | I147: 7.490 | J147: LAT-206 | K147: =VLOOKUP(C147,'[2]Daily Billing '!$C:$Q,15,0) -> 9557 | L147: 71,581.93 | M147: 3,579.10
A148: 744 | B148: 2022-11-11 | C148: 38314 | D148: 226 | E148: Amarraja Batteries | F148: Renigunta | G148: Chittoor | H148: ETP Sludge | I148: 8.410 | J148: LAT-206 | K148: =VLOOKUP(C148,'[2]Daily Billing '!$C:$Q,15,0) -> 9557 | L148: 80,374.37 | M148: 4,018.72
A149: 783 | B149: 24.11.22 | C149: 40130 | D149: 226 | E149: Amarraja Batteries | F149: Renigunta | G149: Chittoor | H149: ETP Sludge | I149: 8.170 | J149: LAT-206 | K149: =VLOOKUP(C149,'[2]Daily Billing '!$C:$Q,15,0) -> 9557 | L149: 78,080.69 | M149: 3,904.03
A150: 28 | B150: 2022-04-11 | C150: 12405 | D150: 226 | E150: Amarraja Batteries | F150: Renigunta | G150: Chittoor | H150: Filter Bed Sand | I150: 24.780 | J150: LAT-43 | K150: =VLOOKUP(C150,'[2]Daily Billing '!$C:$Q,15,0) -> 6070 | L150: 150,414.60 | M150: 7,520.73
A151: 61 | B151: 2022-04-22 | C151: 13666 | D151: 226 | E151: Amarraja Batteries | F151: Renigunta | G151: Chittoor | H151: Filter Bed Sand | I151: 18.780 | J151: LAT-43 | K151: =VLOOKUP(C151,'[2]Daily Billing '!$C:$Q,15,0) -> 6070 | L151: 113,994.60 | M151: 5,699.73
A152: 209 | B152: 2022-06-07 | C152: 18891 | D152: 661 | E152: Amarraja Batteries(Small Battery) | F152: Nunegundlapalli | G152: Chittoor | H152: ETP Sludge | I152: 6.270 | J152: LAT-69 | K152: =VLOOKUP(C152,'[2]Daily Billing '!$C:$Q,15,0) -> 7097 | L152: 44,498.19 | M152: 2,224.91
A153: 537 | B153: 2022-09-13 | C153: 30352 | D153: 661 | E153: Amarraja Batteries(Small Battery) | F153: Nunegundlapalli | G153: Chittoor | H153: ETP Sludge | I153: 6.780 | J153: LAT-69 | K153: =VLOOKUP(C153,'[2]Daily Billing '!$C:$Q,15,0) -> 7097 | L153: 48,117.66 | M153: 2,405.88
A154: 787 | B154: 25.11.22 | C154: 40298 | D154: 661 | E154: Amarraja Batteries(Small Battery) | F154: Nunegundlapalli | G154: Chittoor | H154: ETP Sludge | I154: 6.950 | J154: LAT-69 | K154: =VLOOKUP(C154,'[2]Daily Billing '!$C:$Q,15,0) -> 7097 | L154: 49,324.15 | M154: 2,466.21
A155: 590 | B155: 2022-09-27 | C155: 32204 | D155: 662 | E155: Amarraja Batteries(TUBULAR) | F155: Bangarupalem | G155: Chittoor | H155: Used Bed Sand | I155: 4.090 | J155: LAT-112 | K155: =VLOOKUP(C155,'[2]Daily Billing '!$C:$Q,15,0) -> 7097 | L155: 29,026.73 | M155: 1,451.34
A156: 197 | B156: 2022-06-03 | C156: 18416 | D156: 662 | E156: Amarraja Batteries(TUBULAR) | F156: Bangarupalem | G156: Chittoor | H156: ETP Sludge | I156: 7.400 | J156: LAT-29 | K156: =VLOOKUP(C156,'[2]Daily Billing '!$C:$Q,15,0) -> 7097 | L156: 52,517.80 | M156: 2,625.89
A157: 387 | B157: 2022-07-29 | C157: 25029 | D157: 662 | E157: Amarraja Batteries(TUBULAR) | F157: Bangarupalem | G157: Chittoor | H157: ETP Sludge | I157: 8.210 | J157: LAT-29 | K157: =VLOOKUP(C157,'[2]Daily Billing '!$C:$Q,15,0) -> 7097 | L157: 58,266.37 | M157: 2,913.32
A158: 591 | B158: 2022-09-27 | C158: 32204 | D158: 662 | E158: Amarraja Batteries(TUBULAR) | F158: Bangarupalem | G158: Chittoor | H158: ETP Sludge | I158: 4.640 | J158: LAT-29 | K158: =VLOOKUP(C158,'[2]Daily Billing '!$C:$Q,15,0) -> 7097 | L158: 32,930.08 | M158: 1,646.50
A159: 319 | B159: 2022-07-09 | C159: 22690 | D159: 293 | E159: Andhra Medi Pharma India Pvt Ltd | F159: Bapulapadu | G159: Krishna | H159: ETP Sludge | I159: 3.130 | J159: LAT-30 | K159: =VLOOKUP(C159,'[2]Daily Billing '!$C:$Q,15,0) -> 8064 | L159: 25,240.32 | M159: 1,262.02
A160: 637 | B160: 2022-10-13 | C160: 34130 | D160: 433 | E160: Andhra Medi Pharma India Pvt Ltd | F160: Bapulapadu | G160: Krishna | H160: ETP Sludge | I160: 2.160 | J160: LAT-30 | K160: =VLOOKUP(C160,'[2]Daily Billing '!$C:$Q,15,0) -> 8064 | L160: 17,418.24 | M160: 870.91
A161: 372 | B161: 2022-07-24 | C161: 24509 | D161: 682 | E161: Anvitha Life Care Pvt Ltd | F161: Ozili | G161: Nellore | H161: Spent Carbon | I161: 1.860 | J161: LAT-24 | K161: 7434 | L161: 13,827.24 | M161: 691.36
A162: 371 | B162: 2022-07-24 | C162: 24509 | D162: 682 | E162: Anvitha Life Care Pvt Ltd | F162: Ozili | G162: Nellore | H162: Evaporation Salt | I162: 5.330 | J162: LAT-58 | K162: =VLOOKUP(C162,'[2]Daily Billing '!$C:$Q,15,0) -> 3517 | L162: 18,745.61 | M162: 937.28
A163: 1243 | B163: 26.03.23 | C163: 59447 | D163: 682 | E163: Anvitha Life Care Pvt.Ltd(II) | F163: Nellore | G163: Nellore | H163: Spent Carbon | I163: 1.33 | J163: 24 | K163: 7434 | L163: 9,887.22 | M163: 494.36
A164: 1244 | B164: 26.03.23 | C164: 59447 | D164: 682 | E164: Anvitha Life Care Pvt.Ltd(II) | F164: Nellore | G164: Nellore | H164: ETP Sludge | I164: 2.11 | J164: 48 | K164: =VLOOKUP(C164,'[2]Daily Billing '!$C:$Q,15,0) -> 6497 | L164: 13,708.67 | M164: 685.43
A165: 1242 | B165: 26.03.23 | C165: 59447 | D165: 682 | E165: Anvitha Life Care Pvt.Ltd(II) | F165: Nellore | G165: Nellore | H165: Evaporation Salts | I165: 1.89 | J165: 58 | K165: 3517 | L165: 6,647.13 | M165: =5%*L165 -> 332.36
A166: 978 | B166: 12.01.23 | C166: 48005 | D166: 696 | E166: APL Health Care Ltd | F166: Nellore | G166: Nellore | H166: ETP Sludge | I166: 4.75 | J166: 106 | K166: =VLOOKUP(C166,'[2]Daily Billing '!$C:$Q,15,0) -> 7588 | L166: 36,043.00 | N166: BDMA Customer, Escrow Not Applicable
A167: 216 | B167: 2022-06-09 | C167: 19093 | D167: 696 | E167: APL Health Care Ltd | F167: Naidupeta | G167: Nellore | H167: ETP Sludge | I167: 7.640 | J167: LAT-106 | K167: =VLOOKUP(C167,'[2]Daily Billing '!$C:$Q,15,0) -> 7367 | L167: 56,283.88 | N167: BDMA Customer, Escrow Not Applicable
A168: 428 | B168: 2022-08-10 | C168: 26497 | D168: 696 | E168: APL Health Care Ltd | F168: Naidupeta | G168: Nellore | H168: ETP Sludge | I168: 8.130 | J168: LAT-106 | K168: =VLOOKUP(C168,'[2]Daily Billing '!$C:$Q,15,0) -> 7367 | L168: 59,893.71 | N168: BDMA Customer, Escrow Not Applicable
A169: 477 | B169: 2022-08-26 | C169: 28220 | D169: 696 | E169: APL Health Care Ltd | F169: Naidupeta | G169: Nellore | H169: ETP Sludge | I169: 9.600 | J169: LAT-106 | K169: =VLOOKUP(C169,'[2]Daily Billing '!$C:$Q,15,0) -> 7367 | L169: 70,723.20 | N169: BDMA Customer, Escrow Not Applicable
A170: 784 | B170: 24.11.22 | C170: 40151 | D170: 696 | E170: APL Health Care Ltd | F170: Naidupeta | G170: Nellore | H170: ETP Sludge | I170: 7.120 | J170: LAT-106 | K170: =VLOOKUP(C170,'[2]Daily Billing '!$C:$Q,15,0) -> 7367 | L170: 52,453.04 | N170: BDMA Customer, Escrow Not Applicable
A171: 115 | B171: 2022-05-07 | C171: 15375 | D171: 696 | E171: APL Health Care Ltd | F171: Naidupeta | G171: Nellore | H171: ETP Sludge | I171: 7.560 | J171: LAT-201 | K171: =VLOOKUP(C171,'[2]Daily Billing '!$C:$Q,15,0) -> 9975 | L171: 75,411.00 | N171: BDMA Customer, Escrow Not Applicable
A172: 1001 | B172: 21.01.23 | C172: 49433 | D172: 645 | E172: Apollo Tyres Ltd | F172: Chittoor | G172: Chittoor | H172: ETP Sludge | I172: 7.96 | J172: 201 | K172: =VLOOKUP(C172,'[2]Daily Billing '!$C:$Q,15,0) -> 10194 | L172: 81,144.24 | M172: =5%*L172 -> 4,057.21
A173: 1012 | B173: 24.01.23 | C173: 49872 | D173: 645 | E173: Apollo Tyres Ltd | F173: Chittoor | G173: Chittoor | H173: ETP Sludge | I173: 8.9 | J173: 201 | K173: =VLOOKUP(C173,'[2]Daily Billing '!$C:$Q,15,0) -> 10194 | L173: 90,726.60 | M173: 4,536.33
A174: 1018 | B174: 25.01.23 | C174: 50055 | D174: 645 | E174: Apollo Tyres Ltd | F174: Chittoor | G174: Chittoor | H174: ETP Sludge | I174: 8.78 | J174: 201 | K174: 10194 | L174: 89,503.32 | M174: 4,475.17
A175: 1040 | B175: 31.01.23 | C175: 50993 | D175: 645 | E175: Apollo Tyres Ltd | F175: Chittoor | G175: Chittoor | H175: ETP Sludge | I175: 8.01 | J175: 201 | K175: 10194 | L175: 81,653.94 | M175: 4,082.70
A176: 1143 | B176: 28.02.23 | C176: 55368 | D176: 645 | E176: Apollo Tyres Ltd | F176: Chittoor | G176: Chittoor | H176: ETP Sludge | I176: 6.62 | J176: 201 | K176: 10194 | L176: 67,484.28 | M176: 3,374.21
A177: 1271 | B177: 31.03.23 | C177: 60400 | D177: 645 | E177: Apollo Tyres Ltd | F177: Chittor | G177: Chittor | H177: ETP Sludge | I177: 6.86 | J177: 201 | K177: =VLOOKUP(C177,'[2]Daily Billing '!$C:$Q,15,0) -> 10194 | L177: 69,930.84 | M177: 3,496.54
A178: 1019 | B178: 25.01.23 | C178: 50055 | D178: 645 | E178: Apollo Tyres Ltd | F178: Chittoor | G178: Chittoor | H178: ATFD Salts | I178: 0.14 | J178: 59M | K178: =VLOOKUP(C178,'[2]Daily Billing '!$C:$Q,15,0) -> 5520 | L178: 772.80 | M178: 38.64
A179: 1041 | B179: 31.01.23 | C179: 50993 | D179: 645 | E179: Apollo Tyres Ltd | F179: Chittoor | G179: Chittoor | H179: ATFD Salts | I179: 0.98 | J179: 59M | K179: =VLOOKUP(C179,'[2]Daily Billing '!$C:$Q,15,0) -> 5520 | L179: 5,409.60 | M179: 270.48
A180: 1144 | B180: 28.02.23 | C180: 55368 | D180: 645 | E180: Apollo Tyres Ltd | F180: Chittoor | G180: Chittoor | H180: ATFD Salts | I180: 0.47 | J180: 59M | K180: =VLOOKUP(C180,'[2]Daily Billing '!$C:$Q,15,0) -> 5520 | L180: 2,594.40 | M180: 129.72
A181: 1272 | B181: 31.03.23 | C181: 60400 | D181: 645 | E181: Apollo Tyres Ltd | F181: Chittor | G181: Chittor | H181: ATFD Salts | I181: 1.39 | J181: 59M | K181: 5520 | L181: 7,672.80 | M181: 383.64
A182: 173 | B182: 2022-05-26 | C182: 17502 | D182: 645 | E182: Apollo Tyres Ltd | F182: Varadaiapalem | G182: Chittoor | H182: ETP Sludge | I182: 2.830 | J182: Lat-201 | K182: =VLOOKUP(C182,'[2]Daily Billing '!$C:$Q,15,0) -> 10194 | L182: 28,849.02 | M182: 1,442.45
A183: 465 | B183: 2022-08-24 | C183: 27910 | D183: 645 | E183: Apollo Tyres Ltd | F183: Varadaiapalem | G183: Chittoor | H183: ETP Sludge | I183: 2.200 | J183: LAT-201 | K183: 10194 | L183: 22,426.80 | M183: 1,121.34
A184: 732 | B184: 2022-11-08 | C184: 37961 | D184: 645 | E184: Apollo Tyres Ltd | F184: Varadaiapalem | G184: Chittoor | H184: ETP Sludge | I184: 8.660 | J184: LAT-201 | K184: =VLOOKUP(C184,'[2]Daily Billing '!$C:$Q,15,0) -> 10194 | L184: 88,280.04 | M184: 4,414.00
A185: 741 | B185: 2022-11-10 | C185: 38185 | D185: 645 | E185: Apollo Tyres Ltd | F185: Varadaiapalem | G185: Chittoor | H185: ETP Sludge | I185: 2.580 | J185: LAT-201 | K185: =VLOOKUP(C185,'[2]Daily Billing '!$C:$Q,15,0) -> 10194 | L185: 26,300.52 | M185: 1,315.03
A186: 174 | B186: 2022-05-26 | C186: 17502 | D186: 645 | E186: Apollo Tyres Ltd | F186: Varadaiapalem | G186: Chittoor | H186: AFTD Salts | I186: 2.760 | J186: Lat-59M | K186: 5520 | L186: 15,235.20 | M186: 761.76
A187: 466 | B187: 2022-08-24 | C187: 27910 | D187: 645 | E187: Apollo Tyres Ltd | F187: Varadaiapalem | G187: Chittoor | H187: ATFD Salts | I187: 3.070 | J187: LAT-59M | K187: =VLOOKUP(C187,'[2]Daily Billing '!$C:$Q,15,0) -> 5520 | L187: 16,946.40 | M187: 847.32
A188: 740 | B188: 2022-11-10 | C188: 38185 | D188: 645 | E188: Apollo Tyres Ltd | F188: Varadaiapalem | G188: Chittoor | H188: ATFD Salts | I188: 0.940 | J188: LAT-59M | K188: 5520 | L188: 5,188.80 | M188: 259.44
A189: 14 | B189: 2022-04-06 | C189: 11951 | D189: 494 | E189: Ardee Industries Pvt Ltd | F189: Naidupeta | G189: Nellore | H189: Lead slag | I189: 24.270 | J189: LAT-83 | K189: =VLOOKUP(C189,'[2]Daily Billing '!$C:$Q,15,0) -> 5500 | L189: 133,485.00 | M189: 6,674.25
A190: 112 | B190: 2022-05-06 | C190: 15286 | D190: 494 | E190: Ardee Industries Pvt Ltd | F190: Naidupeta | G190: Nellore | H190: Lead slag | I190: 24.840 | J190: LAT-83 | K190: =VLOOKUP(C190,'[2]Daily Billing '!$C:$Q,15,0) -> 5500 | L190: 136,620.00 | M190: 6,831.00
A191: 255 | B191: 2022-06-21 | C191: 20449 | D191: 494 | E191: Ardee Industries Pvt Ltd | F191: Naidupeta | G191: Nellore | H191: Lead slag | I191: 24.630 | J191: LAT-83 | K191: =VLOOKUP(C191,'[2]Daily Billing '!$C:$Q,15,0) -> 5500 | L191: 135,465.00 | M191: 6,773.25
A192: 329 | B192: 2022-07-12 | C192: 23068 | D192: 494 | E192: Ardee Industries Pvt Ltd | F192: Naidupeta | G192: Nellore | H192: Lead slag | I192: 24.520 | J192: LAT-83 | K192: =VLOOKUP(C192,'[2]Daily Billing '!$C:$Q,15,0) -> 5500 | L192: 134,860.00 | M192: 6,743.00
A193: 418 | B193: 2022-08-07 | C193: 26112 | D193: 494 | E193: Ardee Industries Pvt Ltd | F193: Naidupeta | G193: Nellore | H193: Lead slag | I193: 24.660 | J193: LAT-83 | K193: =VLOOKUP(C193,'[2]Daily Billing '!$C:$Q,15,0) -> 5500 | L193: 135,630.00 | M193: 6,781.50
A194: 507 | B194: 2022-09-04 | C194: 29384 | D194: 494 | E194: Ardee Industries Pvt Ltd | F194: Naidupeta | G194: Nellore | H194: Lead slag | I194: 24.100 | J194: LAT-83 | K194: =VLOOKUP(C194,'[2]Daily Billing '!$C:$Q,15,0) -> 5500 | L194: 132,550.00 | M194: 6,627.50
A195: 561 | B195: 2022-09-19 | C195: 31216 | D195: 494 | E195: Ardee Industries Pvt Ltd | F195: Naidupeta | G195: Nellore | H195: Lead slag | I195: 24.890 | J195: LAT-83 | K195: =VLOOKUP(C195,'[2]Daily Billing '!$C:$Q,15,0) -> 5500 | L195: 136,895.00 | M195: 6,844.75
A196: 658 | B196: 2022-10-19 | C196: 34965 | D196: 494 | E196: Ardee Industries Pvt Ltd | F196: Naidupeta | G196: Nellore | H196: Lead slag | I196: 17.000 | J196: LAT-83 | K196: =VLOOKUP(C196,'[2]Daily Billing '!$C:$Q,15,0) -> 5500 | L196: 93,500.00 | M196: 4,675.00
A197: 659 | B197: 2022-10-19 | C197: 34918 | D197: 494 | E197: Ardee Industries Pvt Ltd | F197: Naidupeta | G197: Nellore | H197: Lead slag | I197: 14.490 | J197: LAT-83 | K197: =VLOOKUP(C197,'[2]Daily Billing '!$C:$Q,15,0) -> 5500 | L197: =+K197*I197 -> 79,695.00 | M197: 3,984.75
A198: 696 | B198: 2022-10-28 | C198: 36410 | D198: 494 | E198: Ardee Industries Pvt Ltd | F198: Naidupeta | G198: Nellore | H198: Lead slag | I198: 16.860 | J198: LAT-83 | K198: =VLOOKUP(C198,'[2]Daily Billing '!$C:$Q,15,0) -> 5500 | L198: 92,730.00 | M198: 4,636.50
A199: 709 | B199: 2022-10-31 | C199: 36763 | D199: 494 | E199: Ardee Industries Pvt Ltd | F199: Naidupeta | G199: Nellore | H199: Lead slag | I199: 22.130 | J199: LAT-83 | K199: =VLOOKUP(C199,'[2]Daily Billing '!$C:$Q,15,0) -> 5500 | L199: 121,715.00 | M199: 6,085.75
A200: 754 | B200: 2022-11-12 | C200: 38580 | D200: 494 | E200: Ardee Industries Pvt Ltd | F200: Naidupeta | G200: Nellore | H200: Lead slag | I200: 16.210 | J200: LAT-83 | K200: =VLOOKUP(C200,'[2]Daily Billing '!$C:$Q,15,0) -> 5500 | L200: 89,155.00 | M200: 4,457.75
... 976 more rows

Sheet Sheet1
C4: FY | D4: TON | E4: Disposal Price | F4: Disposal Rev | G4: Escrow
C5: 2019-20 | D5: 3.50 | E5: 12,000.00 | F5: =E5*D5 -> 42,000.00 | G5: =F5*5% -> 2,100.00
C6: 2019-20 | D6: 0.29 | E6: 12,000.00 | F6: =E6*D6 -> 3,420.00 | G6: =F6*5% -> 171.00
C7: 2019-20 | D7: 1.00 | E7: 6,070.50 | F7: 6,070.50 | G7: 303.53
C8: 2019-20 | D8: 1.00 | E8: 15,000.00 | F8: 15,000.00 | G8: 750.00
C9: 2019-20 | D9: 2.00 | E9: 15,000.00 | F9: 30,000.00 | G9: 1,500.00
C10: 2019-20 | D10: 1.96 | E10: 12,000.00 | F10: 23,520.00 | G10: 1,176.00
C11: 2020-21 | D11: 7.94 | E11: 15,000.00 | F11: 119,100.00 | G11: 5,955.00
C12: 2021-22 | D12: 1.14 | E12: 8,204.00 | F12: =E12*D12 -> 9,352.56 | G12: 467.63
C13: 2021-22 | D13: 5.25 | E13: 6,827.00 | F13: 35,841.75 | G13: 1,792.09
C14: 2021-22 | D14: 1.02 | E14: 5,595.00 | F14: 5,706.90 | G14: 285.35
C15: 2021-22 | D15: 0.75 | E15: 18,000.00 | F15: 13,500.00 | G15: 675.00
C16: 2022-23 | D16: 1.00 | E16: 18,000.00 | F16: =E16*D16 -> 18,000.00 | G16: 900.00
C17: 2022-23 | D17: 4.00 | E17: 18,000.00 | F17: 72,000.00 | G17: 3,600.00
C18: 2022-23 | D18: 1.00 | E18: 18,000.00 | F18: 18,000.00 | G18: 900.00
C19: Total | D19: =SUM(D5:D18) -> 31.85 | F19: =SUM(F5:F18) -> 411,511.71 | G19: 20,575.59

Sheet Remarks (hidden)
A1: Date | B1: Manifest No | C1: Member Ship No | D1: Generator Name | E1: Location | F1: District | G1: Type of Waste | H1: TONS | I1: DM | J1: Remarks
A2: 03.12.21 | B2: 31670 | C2: 645 | D2: Apollo Tyres Limited | E2: Chinapanduru,Chittoor | F2: Chinapanduru,Chittoor | G2: ETP Sludge | H2: 2.69 | I2: 59M | J2: DP is 201
A3: 2021-07-07 | B3: 22777 | C3: 226 | D3: Amarraja Batteries | E3: Renigunta | F3: Chittoor | G3: Used Respirators | H3: 6.400 | I3: LAT-110 | J3: It is AFRF Material
A4: 2021-08-01 | B4: 24182 | C4: 226 | D4: Amarraja Batteries | E4: Renigunta | F4: Chittoor | G4: Used Respirators | H4: 7.400 | I4: LAT-110 | J4: It is AFRF Material
A5: 2021-08-25 | B5: 25648 | C5: 290 | D5: Coromondal paints pvt ltd | E5: Nuzvid | F5: krishna | G5: Repacking Wastes,NCIP,Residues Sludges | H5: 25.015 | I5: LAT-30 | J5: Single Manifest , Two types of waste s received DLF & LAT-30
A6: 2021-10-23 | B6: 29313 | C6: 290 | D6: Coromondal paints pvt ltd | E6: Nuzvid | F6: krishna | G6: Repacking Wastes,NCIP,Residues Sludges | H6: 24.710 | I6: LAT-30 | J6: Single Manifest , Two types of waste s received DLF & LAT-30
A7: 2021-11-15 | B7: 30604 | C7: 290 | D7: Coromondal paints pvt ltd | E7: Nuzvid | F7: krishna | G7: Repacking Wastes,NCIP,Residues Sludges | H7: 26.800 | I7: LAT-30 | J7: Single Manifest , Two types of waste s received DLF & LAT-30
A8: 2021-11-29 | B8: 31354 | C8: 290 | D8: Coromondal paints pvt ltd | E8: Nuzvid | F8: krishna | G8: Repacking Wastes,NCIP,Residues Sludges | H8: 24.990 | I8: LAT-30 | J8: Single Manifest , Two types of waste s received DLF & LAT-30
A9: 2021-06-19 | B9: 21766 | C9: 290 | D9: Coromondal paints pvt ltd | E9: Nuzvid | F9: krishna | G9: Residue | H9: 23.890 | I9: LAT-30 | J9: Single Manifest , Two types of waste s received DLF & LAT-30
A10: 2021-08-22 | B10: 25431 | C10: 597 | D10: Crest Cellulose Pvt Ltd | E10: Menakuru | F10: Nellore | G10: ETP Sludge | H10: 5.300 | I10: LAT- | J10: AFRF
A11: 04.03.22 | B11: 7706 | C11: 597 | D11: Crest Cellulose Pvt Ltd | E11: Menakuru | F11: Nellore | G11: Evaporation salt | H11: 8.870 | I11: LAT-59BF | J11: 104
A12: 2021-09-24 | B12: 27626 | C12: 353 | D12: Hindustan Coca-Cola Beverages Pvt Ltd | E12: Mangalagiri | F12: Guntur | G12: WTP sludge | H12: 21.610 | I12: LAT-115 | J12: ConfirmManiefest number
A13: 18.04.21 | B13: 18323 | C13: 524 | D13: Kia Motors India Pvt Ltd | E13: Penukonda | F13: Anantapur | G13: High Salt Sludge | H13: 10 | I13: LAT-201 | J13: Confirm LAT Number LAT-201 or LAT-59BN
A14: 24.11.20 | B14: 9810 | C14: 524 | D14: Kia Motors India Pvt Ltd | E14: Penukonda | F14: Anantapur | G14: Chemical sludge | H14: 7.900 | I14: LAT-200 | J14: In FY 20-21, 50 entries are in LAT-200 Please Check & Confirm
A15: 2021-09-25 | B15: 27575 | C15: 352 | D15: Powertrek Industries | E15: Auto nagar | F15: Guntur | G15: Low Lead Slag | H15: 7.100 | I15: LAT-59BP | J15: Confirm Manifest number
A16: 2021-11-08 | B16: 30180 | C16: 331 | D16: Siflon drugs | E16: Rachana palli | F16: Anantapur | G16: MEE Salts & ETP Sludge | H16: 6.850 | I16: LAT-59C | J16: Single Manifest , Two types of waste s received
A17: 31.12.21 | B17: 33553 | C17: 349 | D17: Wipro Infrastructure Engineerings | E17: Ananthapur | F17: Ananthapur | G17: Untreated chrome sludge(Spent chromic acid) | H17: 9.687 | I17: 191 | J17: Please check the quantities
A18: 31.12.21 | B18: 33553 | C18: 349 | D18: Wipro Infrastructure Engineerings | E18: Ananthapur | F18: Ananthapur | G18: MEE &ETP Sludge | I18: 127 | J18: Please check the quantities
A19: 2022-08-30 | B19: 28699 | C19: 402 | D19: Adani Wilmar Ltd-I | E19: Muthukur | F19: Nellore | G19: ETP Sludge | H19: 5.340 | I19: LAT-59K | J19: Confirm LAT Number
A20: 2022-08-30 | B20: 28699 | C20: 402 | D20: Adani Wilmar Ltd-I | E20: Muthukur | F20: Nellore | G20: MEE Slats | H20: 2.800 | I20: LAT-30 | J20: Confirm LAT Number
A21: 2022-07-10 | B21: 22834 | C21: 659 | D21: Amar raja- Automotive batteries unit-3 | E21: Nunegundla Palii | F21: Chittoor | G21: Used Respirators | H21: 4.630 | I21: LAT-110 | J21: It is AFRF Material
A22: 2022-08-30 | B22: 28750 | C22: 659 | D22: Amar raja- Automotive batteries unit-3 | E22: Nunegundla Palii | F22: Chittoor | G22: Used Respirators | H22: 5.150 | I22: LAT-110 | J22: It is AFRF Material
A23: 2022-10-01 | B23: 32850 | C23: 659 | D23: Amar raja- Automotive batteries unit-3 | E23: Nunegundla Palii | F23: Chittoor | G23: Used Respirators | H23: 4.350 | I23: LAT-110 | J23: It is AFRF Material
A24: 2022-10-27 | B24: 36074 | C24: 659 | D24: Amar raja- Automotive batteries unit-3 | E24: Nunegundla Palii | F24: Chittoor | G24: Used Respirators | H24: 4.350 | I24: LAT-110 | J24: It is AFRF Material
A25: 04.03.23 | B25: 55952 | C25: 660 | D25: Amara Raja Batteries Ltd.Mvrl & Auto | E25: Chittoor | F25: Chittoor | G25: Used Resiperators | H25: 6.43 | I25: 110 | J25: It is AFRF Material
A26: 14.12.22 | B26: 43126 | C26: 659 | D26: Amaraja Batteries Ltd.(Automotive batteries unit-3) | E26: Chittoor | F26: Chittoor | G26: Used Respirator | H26: 6.41 | I26: 110 | J26: It is AFRF Material
A27: 05.01.23 | B27: 46737 | C27: 659 | D27: Amaraja Batteries Ltd.(Automotive batteries unit-3) | E27: Chittoor | F27: Chittoor | G27: Used Respirator | H27: 8.33 | I27: 110 | J27: It is AFRF Material
A28: 04.02.23 | B28: 51690 | C28: 659 | D28: Amaraja Batteries Ltd.(Automotive batteries unit-3) | E28: Chittoor | F28: Chittoor | G28: Used Respirator | H28: 8.41 | I28: 110 | J28: It is AFRF Material
A29: 2022-07-27 | B29: 24853 | C29: 660 | D29: Amara-raja MVRLA&Automotive Batteries Ltd | E29: Nunegundla Palii | F29: Chittoor | G29: Used Respirators | H29: 4.620 | I29: LAT-110 | J29: It is AFRF Material
A30: 2022-09-10 | B30: 30062 | C30: 660 | D30: Amara-raja MVRLA&Automotive Batteries Ltd | E30: Nunegundla Palii | F30: Chittoor | G30: Used Respirators | H30: 4.970 | I30: LAT-110 | J30: It is AFRF Material
A31: 2022-10-15 | B31: 34474 | C31: 660 | D31: Amara-raja MVRLA&Automotive Batteries Ltd | E31: Nunegundla Palii | F31: Chittoor | G31: Used Respirators | H31: 3.850 | I31: LAT-110 | J31: It is AFRF Material
A32: 19.11.22 | B32: 39507 | C32: 660 | D32: Amara-raja MVRLA&Automotive Batteries Ltd | E32: Nunegundla Palii | F32: Chittoor | G32: Used Respirators | H32: 7.110 | I32: LAT-110 | J32: It is AFRF Material
A33: 30.03.23 | B33: 60211 | C33: 575 | D33: CCL Products India Unit-1 | E33: Guntur | F33: Guntur | G33: MEE/ATFD Salts | H33: 20.55 | I33: 59E | J33: It is AFRF Material
A34: 2022-07-23 | B34: 24412 | C34: 691 | D34: Industries Coffee Pvt Ltd | E34: Naidupeta | F34: Nellore | G34: ATFD salt | H34: 24.710 | I34: LAT-58 | J34: Change name to indus Coffee Pvt Limited
A35: 23.03.23 | B35: 58813 | C35: 700 | D35: Mcwane India Pvt Ltd. | E35: Chittoor | F35: Chittoor | G35: Filters | H35: 0.72 | I35: LAC | J35: It is AFRF Material
A36: 2022-08-04 | B36: 25827 | C36: 354 | D36: Pearl Beverages Ltd | E36: Nadimpalem | F36: Guntur | G36: ETP Sludge | H36: 18.800 | I36: LAT-164 | J36: Single Manifest , Two types of waste s received
A37: 2022-05-07 | B37: 15383 | C37: 276 | D37: Porus Laboratories Pvt Ltd | E37: Musunuru | F37: krishna | G37: Contaminated Solid Waste | H37: 5.805 | I37: LAT-110 | J37: It is AFRF Material
A38: 2022-05-07 | B38: 15386 | C38: 276 | D38: Porus Laboratories Pvt Ltd | E38: Musunuru | F38: krishna | G38: Contaminated Solid Waste | H38: 6.085 | I38: LAT-110 | J38: It is AFRF Material
A39: 2022-05-07 | B39: 15385 | C39: 276 | D39: Porus Laboratories Pvt Ltd | E39: Musunuru | F39: krishna | G39: Contaminated Solid Waste | H39: 7.080 | I39: LAT-110 | J39: It is AFRF Material
A40: 2022-05-11 | B40: 15782 | C40: 276 | D40: Porus Laboratories Pvt Ltd | E40: Musunuru | F40: krishna | G40: Contaminated Solid Waste | H40: 6.255 | I40: LAT-110 | J40: It is AFRF Material
A41: 2023-08-10 | B41: 82989 | C41: 659 | D41: Amar raja- Automotive batteries unit-3 | E41: Nunegundla Palii | F41: Chittoor | G41: Used Respirators | H41: 6.260 | I41: 110 | J41: It is AFRF Material
A42: 30.09.23 | B42: 91927 | C42: 659 | D42: Amara Raja Batteries Ltd(ABD-3) | E42: Nunegundlapalli | F42: Nunegundlapalli | G42: Used Respirator | H42: 6.300 | I42: 110 | J42: It is AFRF Material
A43: 29.04.23 | B43: 65285 | C43: 660 | D43: Amara Raja Batteries Ltd.Mvrl & Auto | E43: Nunegundlapalii | F43: Nunegundlapalii | G43: Used Resiperators | H43: 6.7 | I43: 110 | J43: It is AFRF Material
A44: 2023-06-18 | B44: 73712 | C44: 660 | D44: Amara-raja MVRLA&Automotive Batteries Ltd | E44: Nunegundla Palii | F44: Chittoor | G44: Used Respirators | H44: 6.310 | I44: LAT-110 | J44: It is AFRF Material
